Workbook

Sheet Accueil - Volet I
D15: Programme d’investissement en aménagement forestier (PIAF) - Volet I Forêt publique Annexe au rapport et au calcul des taux d'investissement pour les coupes partielles 2024-2025
D18: L'activation du contenu de ce fichier est requise afin d'assurer l'exécution des macro-commandes qui sont nécessaires à son bon fonctionnement.
D22: https://support.office.com/fr-fr/article/activer-ou-d%C3%A9sactiver-les-macros-dans-les-fichiers-office-12b036fd-d140-4e74-b45e-16fed1a7e5c6

Sheet Accueil - Volet II (hidden)
D15: Programme d’investissement en aménagement forestier (PIAF) - Volet II Forêt publique Annexes au rapport et au calcul de l'aide pour le transport et l'optimisation des bois feuillus issus de coupes partielles et de l'aide pour le transport des bois feuillus issus de coupes de régénération 2024-2025
D18: L'activation du contenu de ce fichier est requise afin d'assurer l'exécution des macro-commandes qui sont nécessaires à son bon fonctionnement.
D22: https://support.office.com/fr-fr/article/activer-ou-d%C3%A9sactiver-les-macros-dans-les-fichiers-office-12b036fd-d140-4e74-b45e-16fed1a7e5c6

Sheet Calcul des taux (formules) (hidden)
A2: Programme d’investissement en aménagement forestier (PIAF) - Volet I Forêt publique Annexe au rapport et au calcul des taux d'investissement pour les coupes partielles 2024-2025
A3: *** Veuillez saisir les informations dans les cellules blanches (Planification et BGAD) et jaunes (Ministère) *** | H3: Version 2 : 2024-07-19
A4: Contexte d'utilisation
A5: Identification
A6: Unité d'aménagement (UA)
A7: Secteur d'intervention
A8: Unité de compilation
A9: Numéro de la prescription
A10: Traitement (Code DICA)
A11: Traitement (Code RATF) | E11: =IFERROR(VLOOKUP($I$10,Codes_DICA_RATF_RechercheV,3,FALSE),Menus!$C$336) -> RATF_Utilisateur
A12: Formule à utiliser pour le calcul
A13: =IFERROR(IF(EXACT($I$10,Menus!$A$102),"Choix de la formule en fonction du code DICA - Inscrire une valeur à I10",IF(ISBLANK($I$10)=FALSE,"Choix de la formule en fonction du code DICA - "&$I$10,"Choix de la formule en fonction du code DICA - Inscrire une valeur à I10")),"Choix de la formule en fonction du code DICA") -> Choix de la formule en fonction du code DICA - Inscrire une valeur à I10 | F13: =IFERROR(VLOOKUP($I$10,Codes_DICA_Formules,6,FALSE),Menus!$F$462) -> F_Utilisateur
A14: Constantes et formule utilisées pour déterminer le taux d'investissement
A15: Constante 1
A16: C1 = -0,0672P + (420,684 / P) + 6,797
A17: Constante 2
A18: C2 = -0,0672P + (210,342 / P) + 8,096
A19: Constante 3
A20: C3 = -0,0427P + (167,158 / P) + 5,8882
A23: Formule 1 - EC1
A24: Valeur = ( C1 + (13,286vr -0,491 - 10,870vp -0,482)) x P
A25: Formule 1 - EC2
A26: Valeur = ( C2 + (13,286vr -0,491 - 10,870vp -0,482)) x P
A27: Formule 2
A28: Valeur = ( C1 + (19,139vr -0,237 - 13,555vp -0,237)) x P
A29: Formule 4
A30: Valeur = ( C1 + (17,315vr -0,453 - 11,138vp -0,471)) x P
A31: Formule 6
A32: Valeur = ( C1 + (15,519vr -0,361 - 12,118vp -0,415)) x P
A33: Formule 7
A34: Valeur = ( C2 + (8,003vr -0,643 - 6,745vp -0,564)) x P
A35: Intrants
A36: Intrants (Toutes sauf Sélection - F1-F2)
A37: Sélection des tiges à récolter | F37: =IFERROR(VLOOKUP($I$13,Menus!$A$339:$C$345,2,FALSE),"") -> 
A38: Volume à prélever, m3/ha net (P)
A39: Volume moyen des tiges du peuplement avant la récolte, m3/tige brut (vp)
A40: Volume moyen des tiges à récolter, m3/tige brut (vr)
A41: ="Majorations et/ou réductions admissibles pour la formule retenue « "&I13&" »"&" - Voir l'onglet « Étapes calcul majoration »" -> Majorations et/ou réductions admissibles pour la formule retenue « » - Voir l'onglet « Étapes calcul majoration »
A42: =IFERROR(VLOOKUP($I$13,Majorations,9,FALSE),"") -> 
A43: Réduction en fonction l'utilisation du Programme de remboursement des coûts pour des activités d’aménagement forestier sur des chemins multiusages (PRCCM)
A44: Réduction en fonction l'utilisation du Programme de remboursement des coûts pour des activités d’aménagement forestier sur des chemins multiusages (PRCCM) - Toutes
A45: Chemins limitrophes ou à l'intérieur du secteur d'intervention remboursés dans le cadre du PRCCM ? Voir le document de références pour plus de détails
A46: Formule utilisée pour calculer la réduction (PRCCM)
A47: ='Majorations applicables'!B25 -> PRCCM = (126,252 / P) - (0,779)
A48: Réduction pour le ratio des trouées récoltées sous forme de CPRS (RTR)
A49: Réduction pour le ratio des trouées récoltées sous forme de CPRS (RTR) - F4-F6-F7
A50: Ratio des trouées sous forme de CPRS (%)
A51: Réduction pour les bandes non traitées (BNT) - Voir l'onglet « Réductions zones-bandes »
A52: Formule utilisée pour calculer la proportion que la coupe partielle représente par rapport au secteur (Pr)
A53: =IFERROR('Majorations applicables'!$A$30,"") -> Pr (%) = LP x 2 / (LP x 2 + SE + ZNT) | D53: Selon les valeurs inscrites à G57-G58-G59 | G53: =IFERROR(IF(ISBLANK($G$57)=TRUE,"",IF(EXACT($G$57,0),0,IF($G$57>0,$G$57*2/($G$57*2+SUM($G$58:$G$59)),0))),0) -> 
A54: Formule utilisée pour calculer la réduction (BNT)
A55: BNT = (1,8 x Pr2) - (2,7 x Pr) + 1
A56: Réduction pour les bandes non traitées (BNT) - F4-F6-F7
A57: LP : Largeur de la coupe partielle, un côté seulement (m)
A58: SE : Largeur du sentier de débardage (m)
A59: ZNT : Largeur de la zone ou bande non traitée (m)
A60: Inscrire les renseignements dans la colonne associée au contexte d'utilisation | G60: Planification | H60: BGAD | I60: Ministère
A61: Majoration pour la pente (PE)
A62: Majoration pour la pente (PE) - Toutes
A63: Classe de pente numérique | C63: Taux calculé ($/ha) | E63: Écart ($/ha) | G63: Superficie (ha) | H63: Superficie (ha) | I63: Superficie (ha)
A64: =IFERROR('Majorations applicables'!$A$11,"Pente A") -> Pente A | C64: =IFERROR(VLOOKUP($I$13,Tableau_Calculs_CP,8,FALSE)*VLOOKUP($A$64,Majoration_PE,2,FALSE),0) -> 0 | E64: =IFERROR($C$64-(VLOOKUP($I$13,Tableau_Calculs_CP,8,FALSE)),0) -> 0
A65: =IFERROR('Majorations applicables'!$A$12,"Pente B") -> Pente B | C65: =IFERROR(VLOOKUP($I$13,Tableau_Calculs_CP,8,FALSE)*VLOOKUP($A$65,Majoration_PE,2,FALSE),0) -> 0 | E65: =IFERROR($C$65-(VLOOKUP($I$13,Tableau_Calculs_CP,8,FALSE)),0) -> 0
A66: =IFERROR('Majorations applicables'!$A$13,"Pente C") -> Pente C | C66: =IFERROR(VLOOKUP($I$13,Tableau_Calculs_CP,8,FALSE)*VLOOKUP($A$66,Majoration_PE,2,FALSE),0) -> 0 | E66: =IFERROR($C$66-(VLOOKUP($I$13,Tableau_Calculs_CP,8,FALSE)),0) -> 0
A67: =IFERROR('Majorations applicables'!$A$14,"Pente D") -> Pente D | C67: =IFERROR(VLOOKUP($I$13,Tableau_Calculs_CP,8,FALSE)*VLOOKUP($A$67,Majoration_PE,2,FALSE),0) -> 0 | E67: =IFERROR($C$67-(VLOOKUP($I$13,Tableau_Calculs_CP,8,FALSE)),0) -> 0
A68: =IFERROR('Majorations applicables'!$A$15,"Pente E et plus") -> Pente E et plus | C68: =IFERROR(VLOOKUP($I$13,Tableau_Calculs_CP,8,FALSE)*VLOOKUP($A$68,Majoration_PE,2,FALSE),0) -> 0 | E68: =IFERROR($C$68-(VLOOKUP($I$13,Tableau_Calculs_CP,8,FALSE)),0) -> 0
A69: Total | G69: =IFERROR(SUM($G$64:$G$68),0) -> 0 | H69: =IFERROR(SUM($H$64:$H$68),0) -> 0 | I69: =IFERROR(SUM($I$64:$I$68),0) -> 0
A70: Majorations pour les opérations manuelles (MAN)
A71: Majorations pour les opérations manuelles (MAN) - F1-EC1
A72: Type d'opérations | E72: =IF(ISBLANK($I$13)=TRUE,"",IF(EXACT(UPPER($I$13),UPPER('Majorations applicables'!$A$2)),Menus!$C$358,IF(EXACT(UPPER($I$13),UPPER('Majorations applicables'!$A$3)),Menus!$C$360,Menus!$C$360))) -> 
A73: Majoration pour la délimitation des sentiers de débardage (RUB)
A74: Majoration pour la délimitation des sentiers de débardage (RUB) - F1-F2-F4-F7
A75: Délimitation physique (ruban) des sentiers de débardage La majoration « RUB » est disponible, lorsqu'un technicien réalise le rubanage des sentiers qui est prescrit ou autorisé avant le début des travaux.
A76: Majoration pour l'hébergement (HCP)
A77: Majoration pour l'hébergement (HCP) - F1-F2-F4-F6-F7
A78: =IFERROR("Hébergement ("&TEXT(Menus!$B$348*100,"#,#")&"%)","Hébergement") -> Hébergement (3,2%)
A79: Formulaire d'autorisation pour l'hébergement
A82: Nom du bénéficiaire de garantie d'approvisionnenent désigné :
A83: Exercice financier :
G84: Section réservée au MRNF
A85: Secteur d'intervention | C85: Lieu d'hébergement | D85: Nom d'établissement | E85: Durée d'utilisation de l'hébergement (jours/personne) | F85: Distance entre le lieu d'hébergement et le SI | G85: Hébergement autorisé | I85: Initial personne qui autorise
A90: J'atteste que les renseignements fournis dans cette annexe sont à ma connaissance complets et conformes à la vérité.
A91: Nom et prénom de l'ingénieur forestier
A92: Signature de l'ingénieur forestier
A93: Autorisation par le MRNF
A94: Les secteurs pour lesquels j'ai apposé ma signature sont autorisés au paiement de la majoration liée à l'hébergement.
A95: Majoration pour le déplacement quotidien des travailleurs (DCP-COVID) | G95: =IFERROR(IF(EXACT(UPPER($G$78),UPPER(Menus!$A$349)),"Question",IF(EXACT(UPPER($G$78),UPPER(Menus!$A$348)),"Sans_objet")),"Question") -> FALSE
A96: Majoration pour le déplacement quotidien des travailleurs (DCP-COVID) — F1-F2-F4-F6-F7
A97: Le MFFP autorise les travailleurs à se déplacer quotidiennement au lieu d’être hébergés (3,2 %) ? Option ajoutée en fonction du contexte sanitaire COVID-19 — Inscrire une valeur à la ligne 78 | B97: Hébergement (6,4%) | C97: Hébergement (6,4%) | D97: Hébergement (6,4%) | E97: Hébergement (6,4%) | F97: Hébergement (6,4%)
A98: Totaux
A99: Totaux - F1-EC1 et F1-EC2
A100: Taux d'exécution de base ($/m³) | G100: =IFERROR(IF(OR(EXACT($I$13,'Majorations applicables'!$A$2),EXACT($I$13,'Majorations applicables'!$A$3)),VLOOKUP($I$13,Tableau_Calculs_CP,8,FALSE)/$G$38,0),0) -> 0 | H100: =IFERROR(IF(OR(EXACT($I$4,Menus!$A$663),EXACT($I$4,Menus!$A$664)),IF(OR(EXACT($I$13,'Majorations applicables'!$A$2),EXACT($I$13,'Majorations applicables'!$A$3)),VLOOKUP($I$13,Tableau_Calculs_CP,8,FALSE)/$G$38,0),0),0) -> 0 | I100: =IFERROR(IF(EXACT($I$4,Menus!$A$664),IF(OR(EXACT($I$13,'Majorations applicables'!A$2),EXACT($I$13,'Majorations applicables'!A$3)),VLOOKUP($I$13,Tableau_Calculs_CP,8,FALSE)/$G$38,0),0),0) -> 0
A101: Réduction PRCCM ($/m³) | G101: =IFERROR(IF(OR(EXACT($I$13,'Majorations applicables'!$A$2),EXACT($I$13,'Majorations applicables'!$A$3)),IF(OR(EXACT($G$45,Menus!$A$2),EXACT($G$45,Menus!$A$3)),VLOOKUP($I$13,Tableau_Calculs_CP,21,FALSE)/$G$38,"Valider "&Réduction_Programme_remboursement_chemins),0),0) -> 0 | H101: =IFERROR(IF(OR(EXACT($I$4,Menus!$A$663),EXACT($I$4,Menus!$A$664)),IF(OR(EXACT($I$13,'Majorations applicables'!$A$2),EXACT($I$13,'Majorations applicables'!$A$3)),IF(OR(EXACT($G$45,Menus!$A$2),EXACT($G$45,Menus!$A$3)),VLOOKUP($I$13,Tableau_Calculs_CP,21,FALSE)/$G$38,"Valider "&Réduction_Programme_remboursement_chemins),0),0),0) -> 0 | I101: =IFERROR(IF(EXACT($I$4,Menus!$A$664),IF(OR(EXACT($I$13,'Majorations applicables'!$A$2),EXACT($I$13,'Majorations applicables'!$A$3)),IF(OR(EXACT($G$45,Menus!$A$2),EXACT($G$45,Menus!$A$3)),VLOOKUP($I$13,Tableau_Calculs_CP,21,FALSE)/$G$38,"Valider "&Réduction_Programme_remboursement_chemins),0),0),0) -> 0
A102: Majoration PE ($/m³) | G102: =IFERROR(IF(OR(EXACT($I$13,'Majorations applicables'!$A$2),EXACT($I$13,'Majorations applicables'!$A$3)),VLOOKUP($I$13,Tableau_Calculs_CP,12,FALSE)/$G$38,0),0) -> 0 | H102: =IFERROR(IF(OR(EXACT($I$4,Menus!$A$663),EXACT($I$4,Menus!$A$664)),IF(OR(EXACT($I$13,'Majorations applicables'!$A$2),EXACT($I$13,'Majorations applicables'!$A$3)),VLOOKUP($I$13,Tableau_Calculs_CP,13,FALSE)/$G$38,0),0),0) -> 0 | I102: =IFERROR(IF(EXACT($I$4,Menus!$A$664),IF(OR(EXACT($I$13,'Majorations applicables'!$A$2),EXACT($I$13,'Majorations applicables'!$A$3)),VLOOKUP($I$13,Tableau_Calculs_CP,14,FALSE)/$G$38,0),0),0) -> 0
A103: Majoration PE ($/ha) | G103: =IFERROR(IF(OR(EXACT($I$13,'Majorations applicables'!$A$2),EXACT($I$13,'Majorations applicables'!$A$3)),VLOOKUP($I$13,Tableau_Calculs_CP,12,FALSE),0),0) -> 0 | H103: =IFERROR(IF(OR(EXACT($I$4,Menus!$A$663),EXACT($I$4,Menus!$A$664)),IF(OR(EXACT($I$13,'Majorations applicables'!$A$2),EXACT($I$13,'Majorations applicables'!$A$3)),VLOOKUP($I$13,Tableau_Calculs_CP,13,FALSE),0),0),0) -> 0 | I103: =IFERROR(IF(EXACT($I$4,Menus!$A$664),IF(OR(EXACT($I$13,'Majorations applicables'!$A$2),EXACT($I$13,'Majorations applicables'!$A$3)),VLOOKUP($I$13,Tableau_Calculs_CP,14,FALSE),0),0),0) -> 0
A104: Majoration MAN ($/m³) | G104: =IFERROR(VLOOKUP($I$13,Tableau_Calculs_CP,15,FALSE)/$G$38,0) -> 0 | H104: =IFERROR(IF(OR(EXACT($I$4,Menus!$A$663),EXACT($I$4,Menus!$A$664)),IF(EXACT($I$13,'Majorations applicables'!$A$2),VLOOKUP($I$13,Tableau_Calculs_CP,16,FALSE)/$G$38,0),0),0) -> 0 | I104: =IFERROR(IF(EXACT($I$4,Menus!$A$664),IF(EXACT($I$13,'Majorations applicables'!$A$2),VLOOKUP($I$13,Tableau_Calculs_CP,17,FALSE)/$G$38,0),0),0) -> 0
A105: Majoration RUB ($/ha) | G105: =IFERROR(IF(OR(EXACT($I$13,'Majorations applicables'!$A$2),EXACT($I$13,'Majorations applicables'!$A$3)),VLOOKUP($I$13,Tableau_Calculs_CP,22,FALSE),0),0) -> 0 | H105: =IFERROR(IF(OR(EXACT($I$4,Menus!$A$663),EXACT($I$4,Menus!$A$664)),IF(OR(EXACT($I$13,'Majorations applicables'!$A$2),EXACT($I$13,'Majorations applicables'!$A$3)),VLOOKUP($I$13,Tableau_Calculs_CP,23,FALSE),0),0),0) -> 0 | I105: =IFERROR(IF(EXACT($I$4,Menus!$A$664),IF(OR(EXACT($I$13,'Majorations applicables'!$A$2),EXACT($I$13,'Majorations applicables'!$A$3)),VLOOKUP($I$13,Tableau_Calculs_CP,24,FALSE),0),0),0) -> 0
A106: Majoration HCP ($/m³) | G106: =IFERROR(IF(OR(EXACT($I$13,'Majorations applicables'!$A$2),EXACT($I$13,'Majorations applicables'!$A$3)),VLOOKUP($I$13,Tableau_Calculs_CP,18,FALSE)/$G$38,0),0) -> 0 | H106: =IFERROR(IF(OR(EXACT($I$4,Menus!$A$663),EXACT($I$4,Menus!$A$664)),IF(OR(EXACT($I$13,'Majorations applicables'!$A$2),EXACT($I$13,'Majorations applicables'!$A$3)),VLOOKUP($I$13,Tableau_Calculs_CP,19,FALSE)/$G$38,0),0),0) -> 0 | I106: =IFERROR(IF(EXACT($I$4,Menus!$A$664),IF(OR(EXACT($I$13,'Majorations applicables'!$A$2),EXACT($I$13,'Majorations applicables'!$A$3)),VLOOKUP($I$13,Tableau_Calculs_CP,20,FALSE)/$G$38,0),0),0) -> 0
A107: Total des majorations et de la réduction à l'exécution ($/m³) | G107: =IFERROR(IF(G101<>"Valider "&Réduction_Programme_remboursement_chemins,SUM(G101:G102,(G105/G38),G106),0),0) -> 0 | H107: =IFERROR(IF(H101<>"Valider "&Réduction_Programme_remboursement_chemins,SUM(H101:H102,(H105/$G$38),H106),0),0) -> 0 | I107: =IFERROR(IF(I101<>"Valider "&Réduction_Programme_remboursement_chemins,SUM(I101:I102,(I105/$G$38),I106),0),0) -> 0
A108: Total des majorations et de la réduction à l'exécution ($/ha) | G108: =IFERROR($G$107*$G$38,0) -> 0 | H108: =IFERROR($H$107*$G$38,0) -> 0 | I108: =IFERROR($I$107*$G$38,0) -> 0
A109: Taux d'exécution ($/m³) | G109: =IFERROR(SUM(G$100,G$107),0) -> 0 | H109: =IFERROR(SUM(H$100,H$107),0) -> 0 | I109: =IFERROR(SUM(I$100,I$107),0) -> 0
A110: Taux d'exécution ($/ha) | G110: =IFERROR($G$109*$G$38,0) -> 0 | H110: =IFERROR($H$109*$G$38,0) -> 0 | I110: =IFERROR($I$109*$G$38,0) -> 0
A111: Tous les critères sont atteints1 (Oui ou Non) | G111: S/O
A112: Planchers d'investissement • Technique : 45,14 $/ha • Technique et RUB : 106,96 $/ha (+ majoration pour la pente applicable pour RUB) | F112: =IFERROR(IF(AND($I$115<='Majorations applicables'!$B$50,ISBLANK($I$111)=FALSE,$I$105=0),"Question_2_Sous_plancher_SANS_RUB",IF(AND($I$115<=SUM('Majorations applicables'!$B$50,$I$105),ISBLANK($I$111)=FALSE,$I$105>0,$I$115>'Majorations applicables'!$B$50),"Question_2_Sous_plancher_RUB",IF(AND($I$115<=SUM('Majorations applicables'!$B$50,$I$105),ISBLANK($I$111)=FALSE,$I$105>0),"Question_2_Sous_plancher",IF(AND($I$115>SUM('Majorations applicables'!$B$50,$I$105),ISBLANK($I$111)=FALSE),"Question_2_Plancher_et_plus","Question_2")))),"Question_2") -> Question_2 | G112: S/O | H112: S/O
A113: Pourcentage d'investissement | G113: =IFERROR('Majorations applicables'!$A$33,0.9) -> 0.9 | H113: =IFERROR('Majorations applicables'!$A$33,0.9) -> 0.9 | I113: =IFERROR('Majorations applicables'!$A$33,0.9) -> 0.9
A114: Résumé de l'investissement
A115: Taux brut ($/ha) | G115: =IFERROR(IF(OR(EXACT($I$13,'Majorations applicables'!$A$2),EXACT($I$13,'Majorations applicables'!$A$3)),IF($G$69<>0,IF(ROUND(($G$110*$G$113),2)<SUM('Majorations applicables'!$B$50,$G$105),SUM('Majorations applicables'!$B$50,$G$105),ROUND(($G$110*$G$113),2)),0),0),0) -> 0 | H115: =IFERROR(IF(OR(EXACT($I$13,'Majorations applicables'!$A$2),EXACT($I$13,'Majorations applicables'!$A$3)),IF($H$69<>0,IF($H$111<>"",IF(OR(EXACT($I$4,Menus!$A$663),EXACT($I$4,Menus!$A$664)),IF($H$69<>0,IF(ROUND(($H$110*$H$113),2)<SUM('Majorations applicables'!$B$50,$H$105),SUM('Majorations applicables'!$B$50,$H$105),ROUND(($H$110*$H$113),2)),0),0),0),0),0),0) -> 0 | I115: =IFERROR(IF(OR(EXACT($I$13,'Majorations applicables'!$A$2),EXACT($I$13,'Majorations applicables'!$A$3)),IF($I$69<>0,IF(EXACT($I$4,Menus!$A$664),IF($I$69<>0,IF(AND(ROUND(($I$110*(IF(ISBLANK($I$111)=FALSE,$I$111,0))*$I$113),2)<SUM('Majorations applicables'!$B$50,$I$105),EXACT($I$112,Menus!$A$669)),SUM('Majorations applicables'!$B$50,$I$105),IF(AND(ROUND(($I$110*(IF(ISBLANK($I$111)=FALSE,$I$111,0))*$I$113),2)<'Majorations applicables'!$B$50,EXACT($I$112,Menus!$A$668)),'Majorations applicables'!$B$50,IF(ROUND(($I$110*(IF(ISBLANK($I$111)=FALSE,$I$111,0))*$I$113),2)<0,0,ROUND(($I$110*(IF(ISBLANK($I$111)=FALSE,$I$111,0))*$I$113),2)))),0),0),0),0),0) -> 0
A116: Ajustement au taux brut lié à la hausse des prix ($/ha) • Majoration pour les opérations mécanisées : + 18,94% • Majoration pour les opérations manuelles : + 11,74% | G116: =IFERROR(ROUND(IF($G$115>0,IF(EXACT(UPPER($G$72),UPPER(Menus!$A$358))=FALSE,$G$115*'Majorations applicables'!$B$62,$G$115*'Majorations applicables'!$B$62),0),2),0) -> 0 | H116: =IFERROR(ROUND(IF($H$115>0,IF(EXACT(UPPER($H$72),UPPER(Menus!$A$358))=FALSE,$H$115*'Majorations applicables'!$B$62,$H$115*'Majorations applicables'!$B$64),0),2),0) -> 0 | I116: =IFERROR(ROUND(IF($I$115>0,IF(EXACT(UPPER($I$72),UPPER(Menus!$A$358))=FALSE,$I$115*'Majorations applicables'!$B$63,$I$115*'Majorations applicables'!$B$64),0),2),0) -> 0
A117: Ajustements liés au contexte sanitaire ($/ha) • Majoration de 0,45% pour l’acquisition d’équipements sanitaire et de protection individuelle | G117: =IFERROR(ROUND(SUM($G$115)*'Majorations applicables'!$B$62,2),0) -> 0
A119: Taux global à payer ($/ha) - taux à inscrire à l'état d'avancement et au RATF | G119: =IFERROR(ROUND($G$115,2),0) -> 0 | H119: =IFERROR(ROUND($H$115,2),0) -> 0 | I119: =IFERROR(ROUND($I$115,2),0) -> 0
A120: Superficie (ha) | G120: =IFERROR(IF(OR(EXACT($I$13,'Majorations applicables'!$A$2),EXACT($I$13,'Majorations applicables'!$A$3)),ROUND($G$69,2),0),0) -> 0 | H120: =IFERROR(IF(OR(EXACT($I$4,Menus!$A$663),EXACT($I$4,Menus!$A$664)),IF(OR(EXACT($I$13,'Majorations applicables'!$A$2),EXACT($I$13,'Majorations applicables'!$A$3)),ROUND($H$69,2),0),0),0) -> 0 | I120: =IFERROR(IF(EXACT($I$4,Menus!$A$664),IF(OR(EXACT($I$13,'Majorations applicables'!$A$2),EXACT($I$13,'Majorations applicables'!$A$3)),ROUND($I$69,2),0),0),0) -> 0
A121: Montant total à payer ($) | G121: =IFERROR(ROUND($G$119*$G$120,2),0) -> 0 | H121: =IFERROR(ROUND($H$119*$H$120,2),0) -> 0 | I121: =IFERROR(ROUND($I$119*$I$120,2),0) -> 0
A122: Totaux - F2
A123: Taux d'exécution de base ($/m³) | G123: =IFERROR(IF(EXACT($I$13,'Majorations applicables'!$A$4),VLOOKUP($I$13,Tableau_Calculs_CP,8,FALSE)/$G$38,0),0) -> 0 | H123: =IFERROR(IF(OR(EXACT($I$4,Menus!$A$663),EXACT($I$4,Menus!$A$664)),IF(EXACT($I$13,'Majorations applicables'!$A$4),VLOOKUP($I$13,Tableau_Calculs_CP,8,FALSE)/$G$38,0),0),0) -> 0 | I123: =IFERROR(IF(EXACT($I$4,Menus!$A$664),IF(EXACT($I$13,'Majorations applicables'!A$4),VLOOKUP($I$13,Tableau_Calculs_CP,8,FALSE)/$G$38,0),0),0) -> 0
A124: Réduction PRCCM ($/m³) | G124: =IFERROR(IF(EXACT($I$13,'Majorations applicables'!$A$4),IF(OR(EXACT($G$45,Menus!$A$2),EXACT($G$45,Menus!$A$3)),VLOOKUP($I$13,Tableau_Calculs_CP,21,FALSE)/$G$38,"Valider "&Réduction_Programme_remboursement_chemins),0),0) -> 0 | H124: =IFERROR(IF(OR(EXACT($I$4,Menus!$A$663),EXACT($I$4,Menus!$A$664)),IF(EXACT($I$13,'Majorations applicables'!$A$4),IF(OR(EXACT($G$45,Menus!$A$2),EXACT($G$45,Menus!$A$3)),VLOOKUP($I$13,Tableau_Calculs_CP,21,FALSE)/$G$38,"Valider "&Réduction_Programme_remboursement_chemins),0),0),0) -> 0 | I124: =IFERROR(IF(EXACT($I$4,Menus!$A$664),IF(EXACT($I$13,'Majorations applicables'!$A$4),IF(OR(EXACT($G$45,Menus!$A$2),EXACT($G$45,Menus!$A$3)),VLOOKUP($I$13,Tableau_Calculs_CP,21,FALSE)/$G$38,"Valider "&Réduction_Programme_remboursement_chemins),0),0),0) -> 0
A125: Majoration PE ($/m³) | G125: =IFERROR(IF(EXACT($I$13,'Majorations applicables'!$A$4),VLOOKUP($I$13,Tableau_Calculs_CP,12,FALSE)/$G$38,0),0) -> 0 | H125: =IFERROR(IF(OR(EXACT($I$4,Menus!$A$663),EXACT($I$4,Menus!$A$664)),IF(EXACT($I$13,'Majorations applicables'!$A$4),VLOOKUP($I$13,Tableau_Calculs_CP,13,FALSE)/$G$38,0),0),0) -> 0 | I125: =IFERROR(IF(EXACT($I$4,Menus!$A$664),IF(EXACT($I$13,'Majorations applicables'!$A$4),VLOOKUP($I$13,Tableau_Calculs_CP,14,FALSE)/$G$38,0),0),0) -> 0
A126: Majoration PE ($/ha) | G126: =IFERROR(IF(EXACT($I$13,'Majorations applicables'!$A$4),VLOOKUP($I$13,Tableau_Calculs_CP,12,FALSE),0),0) -> 0 | H126: =IFERROR(IF(OR(EXACT($I$4,Menus!$A$663),EXACT($I$4,Menus!$A$664)),IF(EXACT($I$13,'Majorations applicables'!$A$4),VLOOKUP($I$13,Tableau_Calculs_CP,13,FALSE),0),0),0) -> 0 | I126: =IFERROR(IF(EXACT($I$4,Menus!$A$664),IF(EXACT($I$13,'Majorations applicables'!$A$4),VLOOKUP($I$13,Tableau_Calculs_CP,14,FALSE),0),0),0) -> 0
A127: Majoration RUB ($/ha) | G127: =IFERROR(IF(EXACT($I$13,'Majorations applicables'!$A$4),VLOOKUP($I$13,Tableau_Calculs_CP,22,FALSE),0),0) -> 0 | H127: =IFERROR(IF(OR(EXACT($I$4,Menus!$A$663),EXACT($I$4,Menus!$A$664)),IF(EXACT($I$13,'Majorations applicables'!$A$4),VLOOKUP($I$13,Tableau_Calculs_CP,23,FALSE),0),0),0) -> 0 | I127: =IFERROR(IF(EXACT($I$4,Menus!$A$664),IF(EXACT($I$13,'Majorations applicables'!$A$4),VLOOKUP($I$13,Tableau_Calculs_CP,24,FALSE),0),0),0) -> 0
A128: Majoration HCP ($/m³) | G128: =IFERROR(IF(EXACT($I$13,'Majorations applicables'!$A$4),VLOOKUP($I$13,Tableau_Calculs_CP,18,FALSE)/$G$38,0),0) -> 0 | H128: =IFERROR(IF(OR(EXACT($I$4,Menus!$A$663),EXACT($I$4,Menus!$A$664)),IF(EXACT($I$13,'Majorations applicables'!$A$4),VLOOKUP($I$13,Tableau_Calculs_CP,19,FALSE)/$G$38,0),0),0) -> 0 | I128: =IFERROR(IF(EXACT($I$4,Menus!$A$664),IF(EXACT($I$13,'Majorations applicables'!$A$4),VLOOKUP($I$13,Tableau_Calculs_CP,20,FALSE)/$G$38,0),0),0) -> 0
A129: Total des majorations et de la réduction à l'exécution ($/m³) | G129: =IFERROR(IF(G124<>"Valider "&Réduction_Programme_remboursement_chemins,SUM(G124:G125,(G127/$G$38),G128),0),0) -> 0 | H129: =IFERROR(IF(H124<>"Valider "&Réduction_Programme_remboursement_chemins,SUM(H124:H125,(H127/$G$38),H128,),0),0) -> 0 | I129: =IFERROR(IF(I124<>"Valider "&Réduction_Programme_remboursement_chemins,SUM(I124:I125,(I127/$G$38),I128),0),0) -> 0
A130: Total des majorations et de la réduction à l'exécution ($/ha) | G130: =IFERROR($G$129*$G$38,0) -> 0 | H130: =IFERROR($H$129*$G$38,0) -> 0 | I130: =IFERROR($I$129*$G$38,0) -> 0
A131: Taux d'exécution ($/m³) | G131: =IFERROR(SUM($G$123,$G$129),0) -> 0 | H131: =IFERROR(SUM($H$123,$H$129),0) -> 0 | I131: =IFERROR(SUM($I$123,$I$129),0) -> 0
A132: Taux d'exécution ($/ha) | G132: =IFERROR($G$131*$G$38,0) -> 0 | H132: =IFERROR($H$131*$G$38,0) -> 0 | I132: =IFERROR($I$131*$G$38,0) -> 0
A133: Tous les critères sont atteints1 (Oui ou Non) | G133: S/O
A134: Planchers d'investissement • Technique : 45,14 $/ha • Technique et RUB : 106,96 $/ha (+ majoration pour la pente applicable pour RUB) | F134: =IFERROR(IF(AND($I$137<='Majorations applicables'!$B$50,ISBLANK($I$133)=FALSE,$I$127=0),"Question_2_Sous_plancher_SANS_RUB",IF(AND($I$137<=SUM('Majorations applicables'!$B$50,$I$127),ISBLANK($I$133)=FALSE,$I$127>0,$I$137>'Majorations applicables'!$B$50),"Question_2_Sous_plancher_RUB",IF(AND($I$137<=SUM('Majorations applicables'!$B$50,$I$127),ISBLANK($I$133)=FALSE,$I$127>0),"Question_2_Sous_plancher",IF(AND($I$137>SUM('Majorations applicables'!$B$50,$I$127),ISBLANK($I$133)=FALSE),"Question_2_Plancher_et_plus","Question_2")))),"Question_2") -> Question_2 | G134: S/O | H134: S/O
A135: Pourcentage d'investissement | G135: =IFERROR('Majorations applicables'!$A$33,0.9) -> 0.9 | H135: =IFERROR('Majorations applicables'!$A$33,0.9) -> 0.9 | I135: =IFERROR('Majorations applicables'!$A$33,0.9) -> 0.9
A136: Résumé de l'investissement
A137: Taux brut ($/ha) | G137: =IFERROR(IF(EXACT($I$13,'Majorations applicables'!$A$4),IF($G$69<>0,IF(ROUND(($G$132*$G$135),2)<SUM('Majorations applicables'!$B$50,$G$127),SUM('Majorations applicables'!$B$50,$G$127),ROUND(($G$132*$G$135),2)),0),0),0) -> 0 | H137: =IFERROR(IF(EXACT($I$13,'Majorations applicables'!$A$4),IF($H$69<>0,IF(ISBLANK($H$133)=FALSE,IF(OR(EXACT($I$4,Menus!$A$663),EXACT($I$4,Menus!$A$664)),IF($H$69<>0,IF(ROUND(($H$132*$H$135),2)<SUM('Majorations applicables'!$B$50,$H$127),SUM('Majorations applicables'!$B$50,$H$127),ROUND(($H$132*$H$135),2)),0),0),0),0),0),0) -> 0 | I137: =IFERROR(IF(EXACT($I$13,'Majorations applicables'!$A$4),IF($I$69<>0,IF(EXACT($I$4,Menus!$A$664),IF($I$69<>0,IF(AND(ROUND(($I$132*(IF(ISBLANK($I$133)=FALSE,$I$133,0))*$I$135),2)<SUM('Majorations applicables'!$B$50,$I$127),EXACT($I$134,Menus!$A$669)),SUM('Majorations applicables'!$B$50,$I$127),IF(AND(ROUND(($I$132*(IF(ISBLANK($I$133)=FALSE,$I$133,0))*$I$135),2)<'Majorations applicables'!$B$50,EXACT($I$134,Menus!$A$668)),'Majorations applicables'!$B$50,IF(ROUND(($I$132*(IF(ISBLANK($I$133)=FALSE,$I$133,0))*$I$135),2)<0,0,ROUND(($I$132*(IF(ISBLANK($I$133)=FALSE,$I$133,0))*$I$135),2)))),0),0),0),0),0) -> 0
A138: Ajustement au taux brut lié à la hausse des prix ($/ha) • Majoration pour les opérations mécanisées : + 18,94% | G138: =IFERROR(ROUND(IF($G$137>0,IF(EXACT(UPPER($G$72),UPPER(Menus!$A$358))=FALSE,$G$137*'Majorations applicables'!$B$63,$G$137*'Majorations applicables'!$B$64),0),2),0) -> 0 | H138: =IFERROR(ROUND(IF($H$137>0,IF(EXACT(UPPER($H$72),UPPER(Menus!$A$358))=FALSE,$H$137*'Majorations applicables'!$B$63,$H$137*'Majorations applicables'!$B$64),0),2),0) -> 0 | I138: =IFERROR(ROUND(IF($I$137>0,IF(EXACT(UPPER($I$72),UPPER(Menus!$A$358))=FALSE,$I$137*'Majorations applicables'!$B$63,$I$137*'Majorations applicables'!$B$64),0),2),0) -> 0
A139: Ajustements liés au contexte sanitaire ($/ha) • Majoration de 0,45% pour l’acquisition d’équipements sanitaire et de protection individuelle | G139: =IFERROR(ROUND(SUM($G$137)*'Majorations applicables'!$B$62,2),0) -> 0 | H139: =IFERROR(ROUND(SUM($H$137)*'Majorations applicables'!$B$62,2),0) -> 0 | I139: =IFERROR(ROUND(SUM($I$137)*'Majorations applicables'!$B$62,2),0) -> 0
A141: Taux global à payer ($/ha) - taux à inscrire à l'état d'avancement et au RATF | G141: =IFERROR(ROUND($G$137,2),0) -> 0 | H141: =IFERROR(ROUND($H$137,2),0) -> 0 | I141: =IFERROR(ROUND($I$137,2),0) -> 0
A142: Superficie (ha) | G142: =IFERROR(IF(EXACT($I$13,'Majorations applicables'!$A$4),ROUND($G$69,2),0),0) -> 0 | H142: =IFERROR(IF(OR(EXACT($I$4,Menus!$A$663),EXACT($I$4,Menus!$A$664)),IF(EXACT($I$13,'Majorations applicables'!$A$4),ROUND($H$69,2),0),0),0) -> 0 | I142: =IFERROR(IF(EXACT($I$4,Menus!$A$664),IF(EXACT($I$13,'Majorations applicables'!$A$4),ROUND($I$69,2),0),0),0) -> 0
A143: Montant total à payer ($) | G143: =IFERROR(ROUND($G$141*$G$142,2),0) -> 0 | H143: =IFERROR(ROUND($H$141*$H$142,2),0) -> 0 | I143: =IFERROR(ROUND($I$141*$I$142,2),0) -> 0
A144: Totaux - F4-F7
A145: Taux d'exécution de base ($/m³) | G145: =IFERROR(IF(OR(EXACT($I$13,'Majorations applicables'!$A$5),EXACT($I$13,'Majorations applicables'!$A$7)),VLOOKUP($I$13,Tableau_Calculs_CP,8,FALSE)/$G$38,0),0) -> 0 | H145: =IFERROR((IF(OR(EXACT($I$4,Menus!$A$663),EXACT($I$4,Menus!$A$664)),IF(OR(EXACT($I$13,'Majorations applicables'!$A$5),EXACT($I$13,'Majorations applicables'!$A$7)),VLOOKUP($I$13,Tableau_Calculs_CP,8,FALSE)/$G$38,0),0)),0) -> 0 | I145: =IFERROR(IF(EXACT($I$4,Menus!$A$664),IF(OR(EXACT($I$13,'Majorations applicables'!$A$5),EXACT($I$13,'Majorations applicables'!$A$7)),VLOOKUP($I$13,Tableau_Calculs_CP,8,FALSE)/$G$38,0),0),0) -> 0
A146: Réduction PRCCM ($/m³) | G146: =IFERROR(IF(OR(EXACT($I$13,'Majorations applicables'!$A$5),EXACT($I$13,'Majorations applicables'!$A$7)),IF(OR(EXACT($G$45,Menus!$A$2),EXACT($G$45,Menus!$A$3)),VLOOKUP($I$13,Tableau_Calculs_CP,21,FALSE)/$G$38,"Valider "&Réduction_Programme_remboursement_chemins),0),0) -> 0 | H146: =IFERROR(IF(OR(EXACT($I$4,Menus!$A$663),EXACT($I$4,Menus!$A$664)),IF(OR(EXACT($I$13,'Majorations applicables'!$A$5),EXACT($I$13,'Majorations applicables'!$A$7)),IF(OR(EXACT($G$45,Menus!$A$2),EXACT($G$45,Menus!$A$3)),VLOOKUP($I$13,Tableau_Calculs_CP,21,FALSE)/$G$38,"Valider "&Réduction_Programme_remboursement_chemins),0),0),0) -> 0 | I146: =IFERROR(IF(EXACT($I$4,Menus!$A$664),IF(OR(EXACT($I$13,'Majorations applicables'!$A$5),EXACT($I$13,'Majorations applicables'!$A$7)),IF(OR(EXACT($G$45,Menus!$A$2),EXACT($G$45,Menus!$A$3)),VLOOKUP($I$13,Tableau_Calculs_CP,21,FALSE)/$G$38,"Valider "&Réduction_Programme_remboursement_chemins),0),0),0) -> 0
A147: Réduction RTR ($/m³) | G147: =IFERROR(IF(OR(EXACT($I$13,'Majorations applicables'!$A$5),EXACT($I$13,'Majorations applicables'!$A$7)),VLOOKUP($I$13,Tableau_Calculs_CP,10,FALSE)/$G$38,0),0) -> 0 | H147: =IFERROR(IF(OR(EXACT($I$13,'Majorations applicables'!$A$5),EXACT($I$13,'Majorations applicables'!$A$7)),IF(OR(EXACT($I$4,Menus!$A$663),EXACT($I$4,Menus!$A$664)),VLOOKUP($I$13,Tableau_Calculs_CP,10,FALSE)/$G$38,0),0),0) -> 0 | I147: =IFERROR(IF(OR(EXACT($I$13,'Majorations applicables'!$A$5),EXACT($I$13,'Majorations applicables'!$A$7)),IF(EXACT($I$4,Menus!$A$664),VLOOKUP($I$13,Tableau_Calculs_CP,10,FALSE)/$G$38,0),0),0) -> 0
A148: Réduction BNT (%) | G148: =IFERROR(IF(OR(EXACT($I$13,'Majorations applicables'!$A$5),EXACT($I$13,'Majorations applicables'!$A$7)),IF(OR(EXACT($G$59,0),ISBLANK($G$59)=TRUE),0,IF($G$57>0,-(('Majorations applicables'!$B$19*POWER($G$53,'Majorations applicables'!$B$20))-('Majorations applicables'!$B$21*$G$53)+1),IF(AND(OR(EXACT($G$57,0),(ISBLANK($G$57)=TRUE)),OR($G$58>0,$G$59>0)),"Valider BNT",0))),0),0) -> 0 | H148: =IFERROR(IF(OR(EXACT($I$13,'Majorations applicables'!$A$5),EXACT($I$13,'Majorations applicables'!$A$7)),IF(OR(EXACT($I$4,Menus!$A$663),EXACT($I$4,Menus!$A$664)),IF(OR(EXACT($G$59,0),ISBLANK($G$59)=TRUE),0,IF($G$57>0,-(('Majorations applicables'!$B$19*POWER($G$53,'Majorations applicables'!$B$20))-('Majorations applicables'!$B$21*$G$53)+1),IF(AND(OR(EXACT($G$57,0),(ISBLANK($G$57)=TRUE)),OR($G$58>0,$G$59>0)),"Valider BNT",0))),0),0),0) -> 0 | I148: =IFERROR(IF(OR(EXACT($I$13,'Majorations applicables'!$A$5),EXACT($I$13,'Majorations applicables'!$A$7)),IF(EXACT($I$4,Menus!$A$664),IF(OR(EXACT($G$59,0),ISBLANK($G$59)=TRUE),0,IF($G$57>0,-(('Majorations applicables'!$B$19*POWER($G$53,'Majorations applicables'!$B$20))-('Majorations applicables'!$B$21*$G$53)+1),IF(AND(OR(EXACT($G$57,0),(ISBLANK($G$57)=TRUE)),OR($G$58>0,$G$59>0)),"Valider BNT",0))),0),0),0) -> 0
A149: Réduction BNT ($/m³) | G149: =IFERROR(IF(OR(EXACT($I$13,'Majorations applicables'!$A$5),EXACT($I$13,'Majorations applicables'!$A$7)),VLOOKUP($I$13,Tableau_Calculs_CP,11,FALSE)/$G$38,0),0) -> 0 | H149: =IFERROR(IF(OR(EXACT($I$13,'Majorations applicables'!$A$5),EXACT($I$13,'Majorations applicables'!$A$7)),IF(OR(EXACT($I$4,Menus!$A$663),EXACT($I$4,Menus!$A$664)),VLOOKUP($I$13,Tableau_Calculs_CP,11,FALSE)/$G$38,0),0),0) -> 0 | I149: =IFERROR(IF(OR(EXACT($I$13,'Majorations applicables'!$A$5),EXACT($I$13,'Majorations applicables'!$A$7)),IF(EXACT($I$4,Menus!$A$664),VLOOKUP($I$13,Tableau_Calculs_CP,11,FALSE)/$G$38,0),0),0) -> 0
A150: Majoration PE ($/m³) | G150: =IFERROR(IF(OR(EXACT($I$13,'Majorations applicables'!$A$5),EXACT($I$13,'Majorations applicables'!$A$7)),VLOOKUP($I$13,Tableau_Calculs_CP,12,FALSE)/$G$38,0),0) -> 0 | H150: =IFERROR(IF(OR(EXACT($I$4,Menus!$A$663),EXACT($I$4,Menus!$A$664)),IF(OR(EXACT($I$13,'Majorations applicables'!$A$5),EXACT($I$13,'Majorations applicables'!$A$7)),VLOOKUP($I$13,Tableau_Calculs_CP,13,FALSE)/$G$38,0),0),0) -> 0 | I150: =IFERROR(IF(EXACT($I$4,Menus!$A$664),IF(OR(EXACT($I$13,'Majorations applicables'!$A$5),EXACT($I$13,'Majorations applicables'!$A$7)),VLOOKUP($I$13,Tableau_Calculs_CP,14,FALSE)/$G$38,0),0),0) -> 0
A151: Majoration PE ($/ha) | G151: =IFERROR(IF(OR(EXACT($I$13,'Majorations applicables'!$A$5),EXACT($I$13,'Majorations applicables'!$A$7)),VLOOKUP($I$13,Tableau_Calculs_CP,12,FALSE),0),0) -> 0 | H151: =IFERROR(IF(OR(EXACT($I$4,Menus!$A$663),EXACT($I$4,Menus!$A$664)),IF(OR(EXACT($I$13,'Majorations applicables'!$A$5),EXACT($I$13,'Majorations applicables'!$A$7)),VLOOKUP($I$13,Tableau_Calculs_CP,13,FALSE),0),0),0) -> 0 | I151: =IFERROR(IF(EXACT($I$4,Menus!$A$664),IF(OR(EXACT($I$13,'Majorations applicables'!$A$5),EXACT($I$13,'Majorations applicables'!$A$7)),VLOOKUP($I$13,Tableau_Calculs_CP,14,FALSE),0),0),0) -> 0
A152: Majoration RUB ($/ha) | G152: =IFERROR(IF(OR(EXACT($I$13,'Majorations applicables'!$A$5),EXACT($I$13,'Majorations applicables'!$A$7)),VLOOKUP($I$13,Tableau_Calculs_CP,22,FALSE),0),0) -> 0 | H152: =IFERROR(IF(OR(EXACT($I$4,Menus!$A$663),EXACT($I$4,Menus!$A$664)),IF(OR(EXACT($I$13,'Majorations applicables'!$A$5),EXACT($I$13,'Majorations applicables'!$A$7)),VLOOKUP($I$13,Tableau_Calculs_CP,23,FALSE),0),0),0) -> 0 | I152: =IFERROR(IF(EXACT($I$4,Menus!$A$664),IF(OR(EXACT($I$13,'Majorations applicables'!$A$5),EXACT($I$13,'Majorations applicables'!$A$7)),VLOOKUP($I$13,Tableau_Calculs_CP,24,FALSE),0),0),0) -> 0
A153: Majoration HCP ($/m³) | G153: =IFERROR(IF(OR(EXACT($I$13,'Majorations applicables'!$A$5),EXACT($I$13,'Majorations applicables'!$A$7)),VLOOKUP($I$13,Tableau_Calculs_CP,18,FALSE)/$G$38,0),0) -> 0 | H153: =IFERROR(IF(OR(EXACT($I$4,Menus!$A$663),EXACT($I$4,Menus!$A$664)),IF(OR(EXACT($I$13,'Majorations applicables'!$A$5),EXACT($I$13,'Majorations applicables'!$A$7)),VLOOKUP($I$13,Tableau_Calculs_CP,19,FALSE)/$G$38,0),0),0) -> 0 | I153: =IFERROR(IF(EXACT($I$4,Menus!$A$664),IF(OR(EXACT($I$13,'Majorations applicables'!$A$5),EXACT($I$13,'Majorations applicables'!$A$7)),VLOOKUP($I$13,Tableau_Calculs_CP,20,FALSE)/$G$38,0),0),0) -> 0
A154: Total des majorations et des réductions à l'exécution ($/m³) | G154: =IFERROR(IF(AND(G148<>"Valider BNT",G146<>"Valider "&Réduction_Programme_remboursement_chemins),SUM(G146:G147,G149,G150,(G152/$G$38),G153),0),0) -> 0 | H154: =IFERROR(IF(AND(H148<>"Valider BNT",H146<>"Valider "&Réduction_Programme_remboursement_chemins),SUM(H146:H147,H149,H150,(H152/$G$38),H153),0),0) -> 0 | I154: =IFERROR(IF(AND(I148<>"Valider BNT",I146<>"Valider "&Réduction_Programme_remboursement_chemins),SUM(I146:I147,I149,I150,(I152/$G$38),I153),0),0) -> 0
A155: Total des majorations et des réductions à l'exécution ($/ha) | G155: =IFERROR($G$154*$G$38,0) -> 0 | H155: =IFERROR($H$154*$G$38,0) -> 0 | I155: =IFERROR($I$154*$G$38,0) -> 0
A156: Taux d'exécution ($/m³) | G156: =IFERROR(IF($G$53=0,0,SUM($G$145,$G$154)),0) -> 0 | H156: =IFERROR(IF($G$53=0,0,SUM($H$145,$H$154)),0) -> 0 | I156: =IFERROR(IF($G$53=0,0,SUM($I$145,$I$154)),0) -> 0
A157: Taux d'exécution ($/ha) | G157: =IFERROR(IF($G$53=0,0,$G$156*$G$38),0) -> 0 | H157: =IFERROR(IF($G$53=0,0,$H$156*$G$38),0) -> 0 | I157: =IFERROR(IF($G$53=0,0,$I$156*$G$38),0) -> 0
A158: Tous les critères sont atteints1 (Oui ou Non) | G158: S/O
A159: Planchers d'investissement • Technique : 45,14 $/ha • Technique et RUB : 106,96 $/ha (+ majoration pour la pente applicable pour RUB) | F159: =IFERROR(IF(AND($I$162<='Majorations applicables'!$B$50,ISBLANK($I$158)=FALSE,$I$152=0),"Question_2_Sous_plancher_SANS_RUB",IF(AND($I$162<=SUM('Majorations applicables'!$B$50,$I$152),ISBLANK($I$158)=FALSE,$I$152>0,$I$162>'Majorations applicables'!$B$50),"Question_2_Sous_plancher_RUB",IF(AND($I$162<=SUM('Majorations applicables'!$B$50,$I$152),ISBLANK($I$158)=FALSE,$I$152>0),"Question_2_Sous_plancher",IF(AND($I$162>SUM('Majorations applicables'!$B$50,$I$152),ISBLANK($I$158)=FALSE),"Question_2_Plancher_et_plus","Question_2")))),"Question_2") -> Question_2 | G159: S/O | H159: S/O
A160: Pourcentage d'investissement | G160: =IFERROR('Majorations applicables'!$A$33,0.9) -> 0.9 | H160: =IFERROR('Majorations applicables'!$A$33,0.9) -> 0.9 | I160: =IFERROR('Majorations applicables'!$A$33,0.9) -> 0.9
A161: Résumé de l'investissement
A162: Taux brut ($/ha) | G162: =IFERROR(IF(OR(EXACT($I$13,'Majorations applicables'!$A$5),EXACT($I$13,'Majorations applicables'!$A$7)),IF($G$69<>0,IF(ROUND(($G$157*$G$160),2)<SUM('Majorations applicables'!$B$50,$G$152),SUM('Majorations applicables'!$B$50,$G$152),ROUND(($G$157*$G$160),2)),0),0),0) -> 0 | H162: =IFERROR(IF(OR(EXACT($I$13,'Majorations applicables'!$A$5),EXACT($I$13,'Majorations applicables'!$A$7)),IF($H$69<>0,IF(ISBLANK($H$158)=FALSE,IF(OR(EXACT($I$4,Menus!$A$663),EXACT($I$4,Menus!$A$664)),IF($H$69<>0,IF(ROUND(($H$157*$H$160),2)<SUM('Majorations applicables'!$B$50,$H$152),SUM('Majorations applicables'!$B$50,$H$152),ROUND(($H$157*$H$160),2)),0),0),0),0),0),0) -> 0 | I162: =IFERROR(IF(OR(EXACT($I$13,'Majorations applicables'!$A$5),EXACT($I$13,'Majorations applicables'!$A$7)),IF($I$69<>0,IF(EXACT($I$4,Menus!$A$664),IF($I$69<>0,IF(AND(ROUND(($I$157*(IF(ISBLANK($I$158)=FALSE,$I$158,0))*$I$160),2)<SUM('Majorations applicables'!$B$50,$I$152),EXACT($I$159,Menus!$A$669)),SUM('Majorations applicables'!$B$50,$I$152),IF(AND(ROUND(($I$157*(IF(ISBLANK($I$158)=FALSE,$I$158,0))*$I$160),2)<'Majorations applicables'!$B$50,EXACT($I$159,Menus!$A$668)),'Majorations applicables'!$B$50,IF(ROUND(($I$157*(IF(ISBLANK($I$158)=FALSE,$I$158,0))*$I$160),2)<0,0,ROUND(($I$157*(IF(ISBLANK($I$158)=FALSE,$I$158,0))*$I$160),2)))),0),0),0),0),0) -> 0
A163: Ajustement au taux brut lié à la hausse des prix ($/ha) • Majoration pour les opérations mécanisées : + 18,94% | G163: =IFERROR(ROUND(IF($G$162>0,IF(EXACT(UPPER($G$72),UPPER(Menus!$A$358))=FALSE,$G$162*'Majorations applicables'!$B$63,$G$162*'Majorations applicables'!$B$64),0),2),0) -> 0 | H163: =IFERROR(ROUND(IF($H$162>0,IF(EXACT(UPPER($H$72),UPPER(Menus!$A$358))=FALSE,$H$162*'Majorations applicables'!$B$63,$H$162*'Majorations applicables'!$B$64),0),2),0) -> 0 | I163: =IFERROR(ROUND(IF($I$162>0,IF(EXACT(UPPER($I$72),UPPER(Menus!$A$358))=FALSE,$I$162*'Majorations applicables'!$B$63,$I$162*'Majorations applicables'!$B$64),0),2),0) -> 0
A164: Ajustements liés au contexte sanitaire ($/ha) • Majoration de 0,45% pour l’acquisition d’équipements sanitaire et de protection individuelle | G164: =IFERROR(ROUND(SUM($G$162)*'Majorations applicables'!$B$62,2),0) -> 0 | H164: =IFERROR(ROUND(SUM($H$162)*'Majorations applicables'!$B$62,2),0) -> 0 | I164: =IFERROR(ROUND(SUM($I$162)*'Majorations applicables'!$B$62,2),0) -> 0
A166: Taux global à payer ($/ha) - taux à inscrire à l'état d'avancement et au RATF | G166: =IFERROR(ROUND($G$162,2),0) -> 0 | H166: =IFERROR(ROUND($H$162,2),0) -> 0 | I166: =IFERROR(ROUND($I$162,2),0) -> 0
A167: Superficie (ha) | G167: =IFERROR(IF(OR(EXACT($I$13,'Majorations applicables'!$A$5),EXACT($I$13,'Majorations applicables'!$A$7)),ROUND($G$69,2),0),0) -> 0 | H167: =IFERROR(IF(OR(EXACT($I$4,Menus!$A$663),EXACT($I$4,Menus!$A$664)),IF(OR(EXACT($I$13,'Majorations applicables'!$A$5),EXACT($I$13,'Majorations applicables'!$A$7)),ROUND($H$69,2),0),0),0) -> 0 | I167: =IFERROR(IF(EXACT($I$4,Menus!$A$664),IF(OR(EXACT($I$13,'Majorations applicables'!$A$5),EXACT($I$13,'Majorations applicables'!$A$7)),ROUND($I$69,2),0),0),0) -> 0
A168: Montant total à payer ($) | G168: =IFERROR(ROUND(($G$166*$G$167),2),0) -> 0 | H168: =IFERROR(ROUND($H$166*$H$167,2),0) -> 0 | I168: =IFERROR(ROUND($I$166*$I$167,2),0) -> 0
A169: Totaux - F6
A170: Taux d'exécution de base ($/m³) | G170: =IFERROR(IF(EXACT($I$13,'Majorations applicables'!$A$6),VLOOKUP($I$13,Tableau_Calculs_CP,8,FALSE)/$G$38,0),0) -> 0 | H170: =IFERROR(IF(OR(EXACT($I$4,Menus!$A$663),EXACT($I$4,Menus!$A$664)),IF(EXACT($I$13,'Majorations applicables'!$A$6),VLOOKUP($I$13,Tableau_Calculs_CP,8,FALSE)/$G$38,0),0),0) -> 0 | I170: =IFERROR(IF(EXACT($I$4,Menus!$A$664),IF(EXACT($I$13,'Majorations applicables'!A$6),VLOOKUP($I$13,Tableau_Calculs_CP,8,FALSE)/$G$38,0),0),0) -> 0
A171: Réduction PRCCM ($/m³) | G171: =IFERROR(IF(EXACT($I$13,'Majorations applicables'!$A$6),IF(OR(EXACT($G$45,Menus!$A$2),EXACT($G$45,Menus!$A$3)),VLOOKUP($I$13,Tableau_Calculs_CP,21,FALSE)/$G$38,"Valider "&Réduction_Programme_remboursement_chemins),0),0) -> 0 | H171: =IFERROR(IF(OR(EXACT($I$4,Menus!$A$663),EXACT($I$4,Menus!$A$664)),IF(EXACT($I$13,'Majorations applicables'!$A$6),IF(OR(EXACT($G$45,Menus!$A$2),EXACT($G$45,Menus!$A$3)),VLOOKUP($I$13,Tableau_Calculs_CP,21,FALSE)/$G$38,"Valider "&Réduction_Programme_remboursement_chemins),0),0),0) -> 0 | I171: =IFERROR(IF(EXACT($I$4,Menus!$A$664),IF(EXACT($I$13,'Majorations applicables'!$A$6),IF(OR(EXACT($G$45,Menus!$A$2),EXACT($G$45,Menus!$A$3)),VLOOKUP($I$13,Tableau_Calculs_CP,21,FALSE)/$G$38,"Valider "&Réduction_Programme_remboursement_chemins),0),0),0) -> 0
A172: Réduction RTR ($/m³) | G172: =IFERROR(IF(EXACT($I$13,'Majorations applicables'!$A$6),VLOOKUP($I$13,Tableau_Calculs_CP,10,FALSE)/$G$38,0),0) -> 0 | H172: =IFERROR(IF(EXACT($I$13,'Majorations applicables'!$A$6),IF(OR(EXACT($I$4,Menus!$A$663),EXACT($I$4,Menus!$A$664)),VLOOKUP($I$13,Tableau_Calculs_CP,10,FALSE)/$G$38,0),0),0) -> 0 | I172: =IFERROR(IF(EXACT($I$13,'Majorations applicables'!$A$6),IF(EXACT($I$4,Menus!$A$664),VLOOKUP($I$13,Tableau_Calculs_CP,10,FALSE)/$G$38,0),0),0) -> 0
A173: Réduction BNT (%) | G173: =IFERROR(IF(EXACT($I$13,'Majorations applicables'!$A$6),IF(OR(EXACT($G$59,0),EXACT($G$59,"")),0,IF($G$57>0,-(('Majorations applicables'!$B$19*POWER($G$53,'Majorations applicables'!$B$20))-('Majorations applicables'!$B$21*$G$53)+1),IF(AND(OR(EXACT($G$57,0),(EXACT($G$57,""))),OR($G$58>0,$G$59>0)),"Valider BNT",0))),0),0) -> 0 | H173: =IFERROR(IF(EXACT($I$13,'Majorations applicables'!$A$6),IF(OR(EXACT($I$4,Menus!$A$663),EXACT($I$4,Menus!$A$664)),IF(OR(EXACT($G$59,0),EXACT($G$59,"")),0,IF($G$57>0,-(('Majorations applicables'!$B$19*POWER($G$53,'Majorations applicables'!$B$20))-('Majorations applicables'!$B$21*$G$53)+1),IF(AND(OR(EXACT($G$57,0),(EXACT($G$57,""))),OR($G$58>0,$G$59>0)),"Valider BNT",0))),0),0),0) -> 0 | I173: =IFERROR(IF(EXACT($I$13,'Majorations applicables'!$A$6),IF(EXACT($I$4,Menus!$A$664),IF(OR(EXACT($G$59,0),EXACT($G$59,"")),0,IF($G$57>0,-(('Majorations applicables'!$B$19*POWER($G$53,'Majorations applicables'!$B$20))-('Majorations applicables'!$B$21*$G$53)+1),IF(AND(OR(EXACT($G$57,0),(EXACT($G$57,""))),OR($G$58>0,$G$59>0)),"Valider BNT",0))),0),0),0) -> 0
A174: Réduction BNT ($/m³) | G174: =IFERROR(IF(EXACT($I$13,'Majorations applicables'!$A$6),VLOOKUP($I$13,Tableau_Calculs_CP,11,FALSE)/$G$38,0),0) -> 0 | H174: =IFERROR(IF(EXACT($I$13,'Majorations applicables'!$A$6),IF(OR(EXACT($I$4,Menus!$A$663),EXACT($I$4,Menus!$A$664)),VLOOKUP($I$13,Tableau_Calculs_CP,11,FALSE)/$G$38,0),0),0) -> 0 | I174: =IFERROR(IF(EXACT($I$13,'Majorations applicables'!$A$6),IF(EXACT($I$4,Menus!$A$664),VLOOKUP($I$13,Tableau_Calculs_CP,11,FALSE)/$G$38,0),0),0) -> 0
A175: Majoration PE ($/m³) | G175: =IFERROR(IF(EXACT($I$13,'Majorations applicables'!$A$6),VLOOKUP($I$13,Tableau_Calculs_CP,12,FALSE)/$G$38,0),0) -> 0 | H175: =IFERROR(IF(OR(EXACT($I$4,Menus!$A$663),EXACT($I$4,Menus!$A$664)),IF(EXACT($I$13,'Majorations applicables'!$A$6),VLOOKUP($I$13,Tableau_Calculs_CP,13,FALSE)/$G$38,0),0),0) -> 0 | I175: =IFERROR(IF(EXACT($I$4,Menus!$A$664),IF(EXACT($I$13,'Majorations applicables'!$A$6),VLOOKUP($I$13,Tableau_Calculs_CP,14,FALSE)/$G$38,0),0),0) -> 0
A176: Majoration PE ($/ha) | G176: =IFERROR(IF(EXACT($I$13,'Majorations applicables'!$A$6),VLOOKUP($I$13,Tableau_Calculs_CP,12,FALSE),0),0) -> 0 | H176: =IFERROR(IF(OR(EXACT($I$4,Menus!$A$663),EXACT($I$4,Menus!$A$664)),IF(EXACT($I$13,'Majorations applicables'!$A$6),VLOOKUP($I$13,Tableau_Calculs_CP,13,FALSE),0),0),0) -> 0 | I176: =IFERROR(IF($I$4=Menus!$A$664,IF($I$13='Majorations applicables'!$A$6,VLOOKUP($I$13,Tableau_Calculs_CP,14,FALSE),0),0),0) -> 0
A177: Majoration RUB ($/ha) | G177: =IFERROR(IF(EXACT($I$13,'Majorations applicables'!$A$6),VLOOKUP($I$13,Tableau_Calculs_CP,22,FALSE),0),0) -> 0 | H177: =IFERROR(IF(OR(EXACT($I$4,Menus!$A$663),EXACT($I$4,Menus!$A$664)),IF(EXACT($I$13,'Majorations applicables'!$A$6),VLOOKUP($I$13,Tableau_Calculs_CP,23,FALSE),0),0),0) -> 0 | I177: =IFERROR(IF($I$4=Menus!$A$664,IF($I$13='Majorations applicables'!$A$6,VLOOKUP($I$13,Tableau_Calculs_CP,24,FALSE),0),0),0) -> 0
A178: Majoration HCP ($/m³) | G178: =IFERROR(IF(EXACT($I$13,'Majorations applicables'!$A$6),VLOOKUP($I$13,Tableau_Calculs_CP,18,FALSE)/$G$38,0),0) -> 0 | H178: =IFERROR(IF(OR($I$4=Menus!$A$663,$I$4=Menus!$A$664),IF(EXACT($I$13,'Majorations applicables'!$A$6),VLOOKUP($I$13,Tableau_Calculs_CP,19,FALSE)/$G$38,0),0),0) -> 0 | I178: =IFERROR(IF(EXACT($I$4,Menus!$A$664),IF(EXACT($I$13,'Majorations applicables'!$A$6),VLOOKUP($I$13,Tableau_Calculs_CP,20,FALSE)/$G$38,0),0),0) -> 0
A179: Total des majorations et des réductions à l'exécution ($/m³) | G179: =IFERROR(IF(AND(G173<>"Valider BNT",G171<>"Valider "&Réduction_Programme_remboursement_chemins),SUM(G171:G172,G174:G175,(G177/$G$38),G178),0),0) -> 0 | H179: =IFERROR(IF(AND(H173<>"Valider BNT",H171<>"Valider "&Réduction_Programme_remboursement_chemins),SUM(H171:H172,H174:H175,(H177/$G$38),H178),0),0) -> 0 | I179: =IFERROR(IF(AND(I173<>"Valider BNT",I171<>"Valider "&Réduction_Programme_remboursement_chemins),SUM(I171:I172,I174,I175,(I177/$G$38),I178),0),0) -> 0
A180: Total des majorations et des réductions à l'exécution ($/ha) | G180: =IFERROR($G$179*$G$38,0) -> 0 | H180: =IFERROR($H$179*$G$38,0) -> 0 | I180: =IFERROR($I$179*$G$38,0) -> 0
A181: Taux d'exécution ($/m³) | G181: =IFERROR(IF(EXACT($G$53,0),0,SUM($G$170,$G$179)),0) -> 0 | H181: =IFERROR(IF(EXACT($G$53,0),0,SUM($H$170,$H$179)),0) -> 0 | I181: =IFERROR(IF(EXACT($G$53,0),0,SUM($I$170,$I$179)),0) -> 0
A182: Taux d'exécution ($/ha) | G182: =IFERROR(IF(EXACT($G$53,0),0,$G$181*$G$38),0) -> 0 | H182: =IFERROR(IF(EXACT($G$53,0),0,$H$181*$G$38),0) -> 0 | I182: =IFERROR(IF(EXACT($G$53,0),0,$I$181*$G$38),0) -> 0
A183: Tous les critères sont atteints1 (Oui ou Non) | G183: S/O
A184: Planchers d'investissement • Technique : 45,14 $/ha • Technique et RUB : 106,96 $/ha (+ majoration pour la pente applicable pour RUB) | F184: =IFERROR(IF(AND($I$187<='Majorations applicables'!$B$50,ISBLANK($I$183)=FALSE,$I$177=0),"Question_2_Sous_plancher_SANS_RUB",IF(AND($I$187<=SUM('Majorations applicables'!$B$50,$I$177),ISBLANK($I$183)=FALSE,$I$177>0,$I$187>'Majorations applicables'!$B$50),"Question_2_Sous_plancher_RUB",IF(AND($I$187<=SUM('Majorations applicables'!$B$50,$I$177),ISBLANK($I$183)=FALSE,$I$177>0),"Question_2_Sous_plancher",IF(AND($I$187>SUM('Majorations applicables'!$B$50,$I$177),ISBLANK($I$183)=FALSE),"Question_2_Plancher_et_plus","Question_2")))),"Question_2") -> Question_2 | G184: S/O | H184: S/O
A185: Pourcentage d'investissement | G185: =IFERROR('Majorations applicables'!$A$33,0.9) -> 0.9 | H185: =IFERROR('Majorations applicables'!$A$33,0.9) -> 0.9 | I185: =IFERROR('Majorations applicables'!$A$33,0.9) -> 0.9
A186: Résumé de l'investissement
A187: Taux brut ($/ha) | G187: =IFERROR(IF(EXACT($I$13,'Majorations applicables'!$A$6),IF($G$69<>0,IF(ROUND(($G$182*$G$185),2)<SUM('Majorations applicables'!$B$50,$G$177),SUM('Majorations applicables'!$B$50,$G$177),ROUND(($G$182*$G$185),2)),0),0),0) -> 0 | H187: =IFERROR(IF(EXACT($I$13,'Majorations applicables'!$A$6),IF($H$69<>0,IF(ISBLANK($H$183)=FALSE,IF(OR(EXACT($I$4,Menus!$A$663),EXACT($I$4,Menus!$A$664)),IF($H$69<>0,IF(ROUND(($H$182*$H$185),2)<SUM('Majorations applicables'!$B$50,$H$177),SUM('Majorations applicables'!$B$50,$H$177),ROUND(($H$182*$H$185),2)),0),0),0),0),0),0) -> 0 | I187: =IFERROR(IF(EXACT($I$13,'Majorations applicables'!$A$6),IF($I$69<>0,IF(EXACT($I$4,Menus!$A$664),IF($I$69<>0,IF(AND(ROUND(($I$182*(IF(ISBLANK($I$183)=FALSE,$I$183,0))*$I$185),2)<SUM('Majorations applicables'!$B$50,$I$177),EXACT($I$184,Menus!$A$669)),SUM('Majorations applicables'!$B$50,$I$177),IF(AND(ROUND(($I$182*(IF(ISBLANK($I$183)=FALSE,$I$183,0))*$I$185),2)<'Majorations applicables'!$B$50,EXACT($I$184,Menus!$A$668)),'Majorations applicables'!$B$50,IF(ROUND(($I$182*(IF(ISBLANK($I$183)=FALSE,$I$183,0))*$I$185),2)<0,0,ROUND(($I$182*(IF(ISBLANK($I$183)=FALSE,$I$183,0))*$I$185),2)))),0),0),0),0),0) -> 0
A188: Ajustement au taux brut lié à la hausse des prix ($/ha) • Majoration pour les opérations mécanisées : + 18,94% | G188: =IFERROR(ROUND(IF($G$187>0,IF(EXACT(UPPER($G$72),UPPER(Menus!$A$358))=FALSE,$G$187*'Majorations applicables'!$B$63,$G$187*'Majorations applicables'!$B$64),0),2),0) -> 0 | H188: =IFERROR(ROUND(IF($H$187>0,IF(EXACT(UPPER($H$72),UPPER(Menus!$A$358))=FALSE,$H$187*'Majorations applicables'!$B$63,$H$187*'Majorations applicables'!$B$64),0),2),0) -> 0 | I188: =IFERROR(ROUND(IF($I$187>0,IF(EXACT(UPPER($I$72),UPPER(Menus!$A$358))=FALSE,$I$187*'Majorations applicables'!$B$63,$I$187*'Majorations applicables'!$B$64),0),2),0) -> 0
A189: Ajustements liés au contexte sanitaire ($/ha) • Majoration de 0,45% pour l’acquisition d’équipements sanitaire et de protection individuelle | G189: =IFERROR(ROUND(SUM($G$187)*'Majorations applicables'!$B$62,2),0) -> 0 | H189: =IFERROR(ROUND(SUM($H$187)*'Majorations applicables'!$B$62,2),0) -> 0 | I189: =IFERROR(ROUND(SUM($I$187)*'Majorations applicables'!$B$62,2),0) -> 0
A191: Taux global à payer ($/ha) - taux à inscrire à l'état d'avancement et au RATF | G191: =IFERROR(ROUND($G$187,2),0) -> 0 | H191: =IFERROR(ROUND($H$187,2),0) -> 0 | I191: =IFERROR(ROUND($I$187,2),0) -> 0
A192: Superficie (ha) | G192: =IFERROR(IF(EXACT($I$13,'Majorations applicables'!$A$6),ROUND($G$69,2),0),0) -> 0 | H192: =IFERROR(IF(OR(EXACT($I$4,Menus!$A$663),EXACT($I$4,Menus!$A$664)),IF(EXACT($I$13,'Majorations applicables'!$A$6),ROUND($H$69,2),0),0),0) -> 0 | I192: =IFERROR(IF(EXACT($I$4,Menus!$A$664),IF(EXACT($I$13,'Majorations applicables'!$A$6),ROUND($I$69,2),0),0),0) -> 0
A193: Montant total à payer ($) | G193: =IFERROR(ROUND($G$191*$G$192,2),0) -> 0 | H193: =IFERROR(ROUND($H$191*$H$192,2),0) -> 0 | I193: =IFERROR(ROUND($I$191*$I$192,2),0) -> 0
A195: Section réservée à l'usage de la Planification
A196: Remarques
A198: J'atteste que les renseignements fournis dans ce document afin de calculer les taux d'investissement sont complets et conformes à la vérité, au meilleur de mes connaissances.
G199: =TODAY() -> 2024-07-19
A202: Nom et prénom de l'ingénieur forestier
A205: Signature de l'ingénieur forestier | G205: Date (AAAA-MM-JJ)
A206: Section réservée à l'usage du BGAD
A207: Remarques
A209: J'atteste que les renseignements fournis dans ce document afin de calculer les taux d'investissement sont complets et conformes à la vérité, au meilleur de mes connaissances.
G210: =TODAY() -> 2024-07-19
A213: Nom et prénom de l'ingénieur forestier
A216: Signature de l'ingénieur forestier | G216: Date (AAAA-MM-JJ)
A217: Section réservée à l'usage du Ministère
A218: Remarques
A220: J'atteste que les renseignements fournis dans ce document afin de calculer les taux d'investissement sont complets et conformes à la vérité, au meilleur de mes connaissances.
G221: =TODAY() -> 2024-07-19
A224: Nom et prénom de l'ingénieur forestier
A227: Signature de l'ingénieur forestier | G227: Date (AAAA-MM-JJ)
A229: 1 Si un ou plusieurs des critères établis à la prescription ne sont pas atteints, veuillez inscrire « Non ». À la suite du dépôt de votre rapport, le responsable du dossier à l'Unité de gestion communiquera avec vous dans les meilleurs délais pour vous indiquer, le cas échéant, le montant de l'aide qui pourrait vous être accordé pour l'exécution des travaux.
... 13 more rows

Sheet Traitements admissibles (hidden)
A1: Traitements admissibles 2024-2025
A2: Catégorie | B2: Composition | C2: Sélection des tiges à récolter | D2: Patron d'intervention | E2: Structure cible | F2: Traitement | G2: Code DICA | H2: Code RATF | I2: Description code RATF | J2: Formule à utiliser | K2: Remarque (masqué)
A3: Éclaircies commerciales | B3: SEPM, feuillus intolérants, mixteF (intolérants) et mixteR (SEPM) | C3: - | D3: Uniforme | E3: Régulière | F3: Éclaircie commerciale | G3: EC_MIXTE-BAS | H3: ECMIXBASSF | I3: Éclaircie commerciale mixte par le bas, peuplement SEPM, feuillus intolérants et mixte à tendance résineuse | J3: 1 - EC1
A4: Éclaircies commerciales | B4: SEPM, feuillus intolérants, mixteF (intolérants) et mixteR (SEPM) | C4: - | D4: Uniforme | E4: Régulière | F4: Éclaircie commerciale | G4: EC_MIXTE-BAS | H4: ECMIXBASF2 | I4: Deuxième éclaircie commerciale mixte par le bas, peuplement SEPM, feuillus intolérants et mixte à tendance résineuse | J4: 1 - EC2 | K4: Ajout code RATF 2021-2022
A5: Éclaircies commerciales | B5: SEPM, feuillus intolérants, mixteF (intolérants) et mixteR (SEPM) | C5: - | D5: Uniforme | E5: Régulière | F5: Éclaircie commerciale | G5: EC_MIXTE-HAUT | H5: ECMIXHAUSF | I5: Éclaircie commerciale mixte par le haut, peuplement SEPM, feuillus intolérants et mixte à tendance résineuse | J5: 1 - EC1
A6: Éclaircies commerciales | B6: SEPM, feuillus intolérants, mixteF (intolérants) et mixteR (SEPM) | C6: - | D6: Uniforme | E6: Régulière | F6: Éclaircie commerciale | G6: EC_MIXTE-HAUT | H6: ECMIXHASF2 | I6: Deuxième éclaircie commerciale mixte par le haut, peuplement SEPM, feuillus intolérants et mixte à tendance résineuse | J6: 1 - EC2 | K6: Ajout code RATF 2021-2022
A7: Éclaircies commerciales | B7: SEPM, feuillus intolérants, mixteF (intolérants) et mixteR (SEPM) | C7: - | D7: Uniforme | E7: Régulière | F7: Éclaircie commerciale | G7: EC_MIXTE-NEUTRE | H7: ECMIXNEUSF | I7: Éclaircie commerciale mixte neutre, peuplement SEPM, feuillus intolérants et mixte à tendance résineuse | J7: 1 - EC1
A8: Éclaircies commerciales | B8: SEPM, feuillus intolérants, mixteF (intolérants) et mixteR (SEPM) | C8: - | D8: Uniforme | E8: Régulière | F8: Éclaircie commerciale | G8: EC_MIXTE-NEUTRE | H8: ECMIXNESF2 | I8: Deuxième éclaircie commerciale mixte neutre, peuplement SEPM, feuillus intolérants et mixte à tendance résineuse | J8: 1 - EC2 | K8: Ajout code RATF 2021-2022
A9: Éclaircies commerciales | B9: SEPM, feuillus intolérants, mixteF (intolérants) et mixteR (SEPM) | C9: - | D9: Uniforme | E9: Régulière | F9: Éclaircie commerciale | G9: EC_SEL-BAS | H9: ECSELBASSF | I9: Éclaircie commerciale sélective par le bas, peuplement SEPM et mixte à tendance résineuse et feuillus intolérants | J9: 1 - EC1
A10: Éclaircies commerciales | B10: SEPM, feuillus intolérants, mixteF (intolérants) et mixteR (SEPM) | C10: - | D10: Uniforme | E10: Régulière | F10: Éclaircie commerciale | G10: EC_SEL-BAS | H10: ECSELBASF2 | I10: Deuxième éclaircie commerciale sélective par le bas, peuplement SEPM et mixte à tendance résineuse et feuillus intolérants | J10: 1 - EC2 | K10: Ajout code RATF 2021-2022
A11: Éclaircies commerciales | B11: SEPM, feuillus intolérants, mixteF (intolérants) et mixteR (SEPM) | C11: - | D11: Uniforme | E11: Régulière | F11: Éclaircie commerciale | G11: EC_SEL-HAUT | H11: ECSELHAUSF | I11: Éclaircie commerciale sélective par le haut, peuplement SEPM et mixte à tendance résineuse et feuillus intolérants | J11: 1 - EC1
A12: Éclaircies commerciales | B12: SEPM, feuillus intolérants, mixteF (intolérants) et mixteR (SEPM) | C12: - | D12: Uniforme | E12: Régulière | F12: Éclaircie commerciale | G12: EC_SEL-HAUT | H12: ECSELHASF2 | I12: Deuxième éclaircie commerciale sélective par le haut, peuplement SEPM et mixte à tendance résineuse et feuillus intolérants | J12: 1 - EC2 | K12: Ajout code RATF 2021-2022
A13: Éclaircies commerciales | B13: SEPM, feuillus intolérants, mixteF (intolérants) et mixteR (SEPM) | C13: - | D13: Uniforme | E13: Régulière | F13: Éclaircie commerciale | G13: EC_SEL-NEUTRE | H13: ECSELNEUSF | I13: Éclaircie commerciale sélective neutre, peuplement SEPM et mixte à tendance résineuse et feuillus intolérants | J13: 1 - EC1
A14: Éclaircies commerciales | B14: SEPM, feuillus intolérants, mixteF (intolérants) et mixteR (SEPM) | C14: - | D14: Uniforme | E14: Régulière | F14: Éclaircie commerciale | G14: EC_SEL-NEUTRE | H14: ECSELNESF2 | I14: Deuxième éclaircie commerciale sélective neutre, peuplement SEPM et mixte à tendance résineuse et feuillus intolérants | J14: 1 - EC2 | K14: Ajout code RATF 2021-2022
A15: Éclaircies commerciales | B15: Feuillus tolérants, autres résineux et mixteF (tolérants) | C15: - | D15: Uniforme | E15: Régulière | F15: Éclaircie commerciale | G15: EC_MIXTE-BAS | H15: ECMIXBASFM | I15: Éclaircie commerciale mixte par le bas, peuplement feuillus tolérants, autres résineux et mixte feuillus | J15: 2
A16: Éclaircies commerciales | B16: Feuillus tolérants, autres résineux et mixteF (tolérants) | C16: - | D16: Uniforme | E16: Régulière | F16: Éclaircie commerciale | G16: EC_MIXTE-HAUT | H16: ECMIXHAUFM | I16: Éclaircie commerciale mixte par le haut, peuplement feuillus tolérants, autres résineux et mixte feuillus | J16: 2
A17: Éclaircies commerciales | B17: Feuillus tolérants, autres résineux et mixteF (tolérants) | C17: - | D17: Uniforme | E17: Régulière | F17: Éclaircie commerciale | G17: EC_MIXTE-NEUTRE | H17: ECMIXNEUFM | I17: Éclaircie commerciale patron d'intervention mixte neutre, peuplement feuillus tolérants, autres résineux et mixte feuillus | J17: 2
A18: Éclaircies commerciales | B18: Feuillus tolérants, autres résineux et mixteF (tolérants) | C18: - | D18: Uniforme | E18: Régulière | F18: Éclaircie commerciale | G18: EC_SEL-BAS | H18: ECSELBASFM | I18: Éclaircie commerciale sélective par le bas, peuplement feuillus tolérants, autres résineux et mixte feuillus | J18: 2
A19: Éclaircies commerciales | B19: Feuillus tolérants, autres résineux et mixteF (tolérants) | C19: - | D19: Uniforme | E19: Régulière | F19: Éclaircie commerciale | G19: EC_SEL-HAUT | H19: ECSELHAUFM | I19: Éclaircie commerciale sélective par le haut, peuplement feuillus tolérants, autres résineux et mixte feuillus | J19: 2
A20: Éclaircies commerciales | B20: Feuillus tolérants, autres résineux et mixteF (tolérants) | C20: - | D20: Uniforme | E20: Régulière | F20: Éclaircie commerciale | G20: EC_SEL-NEUTRE | H20: ECSELNEUFM | I20: Éclaircie commerciale sélective neutre, peuplement feuillus tolérants, autres résineux et mixte feuillus | J20: 2
A21: Autres coupes partielles | B21: Feuillus tolérants, mixteF (tolérants), autres résineux et mixte autres résineux | C21: Martelage | D21: Par bandes ou par trouées | E21: Jardinée / gestion avec cohortes juxtaposées | F21: Coupe de jardinage par bande avec éclaircie dans la matrice résiduelle | G21: CJB-EMR | H21: CJBM | I21: Coupe de jardinage par bandes avec éclaircie dans la matrice résiduelle, Martelage | J21: 4
A22: Autres coupes partielles | B22: Feuillus tolérants, mixteF (tolérants), autres résineux et mixte autres résineux | C22: Opérateur | D22: Par bandes ou par trouées | E22: Jardinée / gestion avec cohortes juxtaposées | F22: Coupe de jardinage par bande avec éclaircie dans la matrice résiduelle | G22: CJB-EMR | H22: CJBMO | I22: Coupe de jardinage par bandes avec éclaircie dans la matrice résiduelle, Opérateur | J22: 4
A23: Autres coupes partielles | B23: Feuillus tolérants, mixteF (tolérants), autres résineux et mixte autres résineux | C23: Martelage | D23: Uniforme | E23: Jardinée / gestion par arbres | F23: Coupe de jardinage par pieds d'arbres ou pieds d'arbres et groupes d'arbres | G23: CJP | H23: CJPM | I23: Coupe de jardinage par pieds d'arbre, Martelage | J23: 4 | K23: Modif code RATF 2021-2022
A24: Autres coupes partielles | B24: Feuillus tolérants, mixteF (tolérants), autres résineux et mixte autres résineux | C24: Opérateur | D24: Uniforme | E24: Jardinée / gestion par arbres | F24: Coupe de jardinage par pieds d'arbres ou pieds d'arbres et groupes d'arbres | G24: CJP | H24: CJPO | I24: Coupe de jardinage par pieds d'arbre, Opérateur | J24: 4 | K24: Ajout code RATF 2021-2022
A25: Autres coupes partielles | B25: Feuillus tolérants, mixteF (tolérants), autres résineux et mixte autres résineux | C25: Martelage | D25: Uniforme | E25: Jardinée / gestion par arbres | F25: Coupe de jardinage par pieds d'arbres ou pieds d'arbres et groupes d'arbres | G25: CJP-AM | H25: CJPAMM | I25: Coupe de jardinage par pieds d'arbre, amélioration de la qualité, Martelage | J25: 4 | K25: Modif code RATF 2021-2022
A26: Autres coupes partielles | B26: Feuillus tolérants, mixteF (tolérants), autres résineux et mixte autres résineux | C26: Opérateur | D26: Uniforme | E26: Jardinée / gestion par arbres | F26: Coupe de jardinage par pieds d'arbres ou pieds d'arbres et groupes d'arbres | G26: CJP-AM | H26: CJPAMO | I26: Coupe de jardinage par pieds d'arbre, amélioration de la qualité, Opérateur | J26: 4 | K26: Ajout code RATF 2021-2022
A27: Autres coupes partielles | B27: Feuillus tolérants, mixteF (tolérants), autres résineux et mixte autres résineux | C27: Martelage | D27: Uniforme | E27: Jardinée / gestion par arbres | F27: Coupe de jardinage par pieds d'arbres ou pieds d'arbres et groupes d'arbres | G27: CJPG | H27: CJPGM | I27: Coupe de jardinage par pieds d'arbre et groupes d'arbres, Martelage | J27: 4 | K27: Modif code RATF 2021-2022
A28: Autres coupes partielles | B28: Feuillus tolérants, mixteF (tolérants), autres résineux et mixte autres résineux | C28: Opérateur | D28: Uniforme | E28: Jardinée / gestion par arbres | F28: Coupe de jardinage par pieds d'arbres ou pieds d'arbres et groupes d'arbres | G28: CJPG | H28: CJPGO | I28: Coupe de jardinage par pieds d'arbre et groupes d'arbres, Opérateur | J28: 4 | K28: Ajout code RATF 2021-2022
A29: Autres coupes partielles | B29: Feuillus tolérants, mixteF (tolérants), autres résineux et mixte autres résineux | C29: Martelage | D29: Uniforme | E29: Jardinée / gestion par arbres | F29: Coupe de jardinage par pieds d'arbres ou pieds d'arbres et groupes d'arbres | G29: CJPG-AM | H29: CJPGAMM | I29: Coupe de jardinage par pieds d'arbre et groupes d'arbres, amélioration de la qualité, Martelage | J29: 4 | K29: Modif code RATF 2021-2022
A30: Autres coupes partielles | B30: Feuillus tolérants, mixteF (tolérants), autres résineux et mixte autres résineux | C30: Opérateur | D30: Uniforme | E30: Jardinée / gestion par arbres | F30: Coupe de jardinage par pieds d'arbres ou pieds d'arbres et groupes d'arbres | G30: CJPG-AM | H30: CJPGAMO | I30: Coupe de jardinage par pieds d'arbre et groupes d'arbres, amélioration de la qualité, Opérateur | J30: 4 | K30: Ajout code RATF 2021-2022
A31: Autres coupes partielles | B31: Feuillus tolérants, mixteF (tolérants), autres résineux et mixte autres résineux | C31: Opérateur | D31: Par bandes ou par trouées | E31: Jardinée / gestion avec cohortes juxtaposées | F31: Coupe de jardinage par troués avec éclaircie dans la matrice résiduelle | G31: CJT-EMR | H31: CJTMO | I31: Coupe de jardinage par trouées avec éclaircie dans la matrice résiduelle, Opérateur | J31: 4
A32: Autres coupes partielles | B32: Feuillus tolérants, mixteF (tolérants), autres résineux et mixte autres résineux | C32: Martelage | D32: Par bandes ou par trouées | E32: Jardinée / gestion avec cohortes juxtaposées | F32: Coupe de jardinage par troués avec éclaircie dans la matrice résiduelle | G32: CJT-EMR | H32: CJTM | I32: Coupe de jardinage par trouées avec éclaircie dans la matrice résiduelle, Martelage | J32: 4
A33: Autres coupes partielles | B33: Feuillus tolérants, mixteF (tolérants), autres résineux et mixte autres résineux | C33: Opérateur | D33: Uniforme | E33: Irrégulière | F33: Coupe progressive irrégulière à couvert permanent | G33: CPI_CP-ENS_U | H33: CPIUENSOFM | I33: Coupe progressive irrégulière à couvert permanent, coupe d'ensemencement, patron d'intervention uniforme, Opérateur, type de peuplement feuillus tolérants, autres résineux et mixte feuillus | J33: 4
A34: Autres coupes partielles | B34: Feuillus tolérants, mixteF (tolérants), autres résineux et mixte autres résineux | C34: Martelage | D34: Uniforme | E34: Irrégulière | F34: Coupe progressive irrégulière à couvert permanent | G34: CPI_CP-ENS_U | H34: CPIUENSFM | I34: Coupe progressive irrégulière à couvert permanent, coupe d'ensemencement, patron d'intervention uniforme, Martelage, type de peuplement feuillus tolérants, autres résineux et mixte feuillus | J34: 4
A35: Autres coupes partielles | B35: Feuillus tolérants, mixteF (tolérants), autres résineux et mixte autres résineux | C35: Opérateur | D35: Uniforme | E35: Irrégulière | F35: Coupe progressive irrégulière à couvert permanent | G35: CPI_CP-SEC_U | H35: CPIUSECOFM | I35: Coupe progressive irrégulière à couvert permanent, coupe secondaire, patron d'intervention uniforme, Opérateur, type de peuplement feuillus tolérants, autres résineux et mixte feuillus | J35: 4
A36: Autres coupes partielles | B36: Feuillus tolérants, mixteF (tolérants), autres résineux et mixte autres résineux | C36: Martelage | D36: Uniforme | E36: Irrégulière | F36: Coupe progressive irrégulière à couvert permanent | G36: CPI_CP-SEC_U | H36: CPIUSECFM | I36: Coupe progressive irrégulière à couvert permanent, coupe secondaire, patron d'intervention uniforme, Martelage, type de peuplement feuillus tolérants, autres résineux et mixte feuillus | J36: 4
A37: Autres coupes partielles | B37: Feuillus tolérants, mixteF (tolérants), autres résineux et mixte autres résineux | C37: Opérateur | D37: Uniforme | E37: Irrégulière | F37: Coupe progressive irrégulière à régénération lente en 1 intervention et abandon du volume résiduel phase d'ensemencement | G37: CPI_RL-1INR_ENS | H37: 1INRENSOFM | I37: Coupe progressive irrégulière à régénération lente en 1 intervention et abandon du volume résiduel, phase d'ensemencement, Opérateur, type de peuplement feuillus tolérants, autres résineux et mixte feuillus | J37: 4
A38: Autres coupes partielles | B38: Feuillus tolérants, mixteF (tolérants), autres résineux et mixte autres résineux | C38: Martelage | D38: Uniforme | E38: Irrégulière | F38: Coupe progressive irrégulière à régénération lente en 1 intervention et abandon du volume résiduel phase d'ensemencement | G38: CPI_RL-1INR_ENS | H38: 1INRENSMFM | I38: Coupe progressive irrégulière à régénération lente en 1 intervention et abandon du volume résiduel, phase d'ensemencement, Martelage, type de peuplement feuillus tolérants, autres résineux et mixte feuillus | J38: 4
A39: Autres coupes partielles | B39: Feuillus tolérants, mixteF (tolérants), autres résineux et mixte autres résineux | C39: Opérateur | D39: Uniforme | E39: Irrégulière | F39: Coupe progressive irrégulière à régénération lente en 1 intervention et abandon du volume résiduel multiples phases | G39: CPI_RL-1INR_MUL | H39: 1INRMULOFM | I39: Coupe progressive irrégulière à régénération lente en 1 intervention et abandon du volume résiduel, Multiples phases, Opérateur, type de peuplement feuillus tolérants, autres résineux et mixte feuillus | J39: 4
A40: Autres coupes partielles | B40: Feuillus tolérants, mixteF (tolérants), autres résineux et mixte autres résineux | C40: Martelage | D40: Uniforme | E40: Irrégulière | F40: Coupe progressive irrégulière à régénération lente en 1 intervention et abandon du volume résiduel multiples phases | G40: CPI_RL-1INR_MUL | H40: 1INRMULMFM | I40: Coupe progressive irrégulière à régénération lente en 1 intervention et abandon du volume résiduel, Multiples phases, Martelage, type de peuplement feuillus tolérants, autres résineux et mixte feuillus | J40: 4
A41: Autres coupes partielles | B41: Feuillus tolérants, mixteF (tolérants), autres résineux et mixte autres résineux | C41: Opérateur | D41: Uniforme | E41: Irrégulière | F41: Coupe progressive irrégulière à régénération lente en 1 intervention et abandon du volume résiduel phase secondaire ou d'abri | G41: CPI_RL-1INR_SEC | H41: 1INRSECOFM | I41: Coupe progressive irrégulière à régénération lente en 1 intervention et abandon du volume résiduel, phase secondaire, Opérateur, type de peuplement feuillus tolérants, autres résineux et mixte feuillus | J41: 4
A42: Autres coupes partielles | B42: Feuillus tolérants, mixteF (tolérants), autres résineux et mixte autres résineux | C42: Martelage | D42: Uniforme | E42: Irrégulière | F42: Coupe progressive irrégulière à régénération lente en 1 intervention et abandon du volume résiduel phase secondaire ou d'abri | G42: CPI_RL-1INR_SEC | H42: 1INRSECMFM | I42: Coupe progressive irrégulière à régénération lente en 1 intervention et abandon du volume résiduel, phase secondaire, Martelage, type de peuplement feuillus tolérants, autres résineux et mixte feuillus | J42: 4
A43: Autres coupes partielles | B43: Feuillus tolérants, mixteF (tolérants), autres résineux et mixte autres résineux | C43: Opérateur | D43: Uniforme, par bandes ou par trouées | E43: Irrégulière | F43: Coupe progressive irrégulière à régénération lente | G43: CPI_RL-2I_ENS | H43: CPIL2ENOFM | I43: Coupe progressive irrégulière à régénération lente, 2 interventions, coupe d'ensemencement, Opérateur, type de peuplement feuillus tolérants, autres résineux et mixte feuillus | J43: 4
A44: Autres coupes partielles | B44: Feuillus tolérants, mixteF (tolérants), autres résineux et mixte autres résineux | C44: Martelage | D44: Uniforme, par bandes ou par trouées | E44: Irrégulière | F44: Coupe progressive irrégulière à régénération lente | G44: CPI_RL-2I_ENS | H44: CPIRL2ENFM | I44: Coupe progressive irrégulière à régénération lente, 2 interventions, coupe d'ensemencement, Martelage, type de peuplement feuillus tolérants, autres résineux et mixte feuillus | J44: 4
A45: Autres coupes partielles | B45: Feuillus tolérants, mixteF (tolérants), autres résineux et mixte autres résineux | C45: Opérateur | D45: Uniforme | E45: Irrégulière | F45: Coupe progressive irrégulière à régénération lente en 2 interventions multiples phases | G45: CPI_RL-2I_MUL | H45: 2IMULOFM | I45: Coupe progressive irrégulière à régénération lente en 2 interventions et abandon du volume résiduel, Multiples phases, Opérateur, type de peuplement feuillus tolérants, autres résineux et mixte feuillus | J45: 4
A46: Autres coupes partielles | B46: Feuillus tolérants, mixteF (tolérants), autres résineux et mixte autres résineux | C46: Martelage | D46: Uniforme | E46: Irrégulière | F46: Coupe progressive irrégulière à régénération lente en 2 interventions multiples phases | G46: CPI_RL-2I_MUL | H46: 2IMULMFM | I46: Coupe progressive irrégulière à régénération lente en 2 interventions et abandon du volume résiduel, Multiples phases, Martelage, type de peuplement feuillus tolérants, autres résineux et mixte feuillus | J46: 4
A47: Autres coupes partielles | B47: Feuillus tolérants, mixteF (tolérants), autres résineux et mixte autres résineux | C47: Opérateur | D47: Uniforme, par bandes ou par trouées | E47: Irrégulière | F47: Coupe progressive irrégulière à régénération lente | G47: CPI_RL-2I_SEC | H47: CPIL2SEOFM | I47: Coupe progressive irrégulière à régénération lente, 2 interventions, coupe secondaire, Opérateur, type de peuplement feuillus tolérants, autres résineux, mixte feuillus | J47: 4
A48: Autres coupes partielles | B48: Feuillus tolérants, mixteF (tolérants), autres résineux et mixte autres résineux | C48: Martelage | D48: Uniforme, par bandes ou par trouées | E48: Irrégulière | F48: Coupe progressive irrégulière à régénération lente | G48: CPI_RL-2I_SEC | H48: CPIRL2SEFM | I48: Coupe progressive irrégulière à régénération lente, 2 interventions, coupe secondaire, Martelage, type de peuplement feuillus tolérants, autres résineux, mixte feuillus | J48: 4
A49: Autres coupes partielles | B49: Feuillus tolérants, mixteF (tolérants), autres résineux et mixte autres résineux | C49: Opérateur | D49: Uniforme, par bandes ou par trouées | E49: Irrégulière | F49: Coupe progressive irrégulière à régénération lente | G49: CPI_RL-3I_ENS | H49: CPIL3ENOFM | I49: Coupe progressive irrégulière à régénération lente, 3 interventions, coupe d'ensemencement, Opérateur, type de peuplement feuillus tolérants, autres résineux et mixte feuillus | J49: 4
A50: Autres coupes partielles | B50: Feuillus tolérants, mixteF (tolérants), autres résineux et mixte autres résineux | C50: Martelage | D50: Uniforme, par bandes ou par trouées | E50: Irrégulière | F50: Coupe progressive irrégulière à régénération lente | G50: CPI_RL-3I_ENS | H50: CPIRL3ENFM | I50: Coupe progressive irrégulière à régénération lente, 3 interventions, coupe d'ensemencement, Martelage, type de peuplement feuillus tolérants, autres résineux et mixte feuillus | J50: 4
A51: Autres coupes partielles | B51: Feuillus tolérants, mixteF (tolérants), autres résineux et mixte autres résineux | C51: Opérateur | D51: Uniforme | E51: Irrégulière | F51: Coupe progressive irrégulière à régénération lente en 3 interventions multiples phases | G51: CPI_RL-3I_MUL | H51: 3IMULOFM | I51: Coupe progressive irrégulière à régénération lente en 3 interventions et abandon du volume résiduel, Multiples phases, Opérateur, type de peuplement feuillus tolérants, autres résineux et mixte feuillus | J51: 4
A52: Autres coupes partielles | B52: Feuillus tolérants, mixteF (tolérants), autres résineux et mixte autres résineux | C52: Martelage | D52: Uniforme | E52: Irrégulière | F52: Coupe progressive irrégulière à régénération lente en 3 interventions multiples phases | G52: CPI_RL-3I_MUL | H52: 3IMULMFM | I52: Coupe progressive irrégulière à régénération lente en 3 interventions et abandon du volume résiduel, Multiples phases, Martelage, type de peuplement feuillus tolérants, autres résineux et mixte feuillus | J52: 4
A53: Autres coupes partielles | B53: Feuillus tolérants, mixteF (tolérants), autres résineux et mixte autres résineux | C53: Opérateur | D53: Uniforme, par bandes ou par trouées | E53: Irrégulière | F53: Coupe progressive irrégulière à régénération lente | G53: CPI_RL-3I_SEC | H53: CPIL3SEOFM | I53: Coupe progressive irrégulière à régénération lente, 3 interventions, coupe secondaire, Opérateur, type de peuplement feuillus tolérants, autres résineux, mixte feuillus | J53: 4
A54: Autres coupes partielles | B54: Feuillus tolérants, mixteF (tolérants), autres résineux et mixte autres résineux | C54: Martelage | D54: Uniforme, par bandes ou par trouées | E54: Irrégulière | F54: Coupe progressive irrégulière à régénération lente | G54: CPI_RL-3I_SEC | H54: CPIRL3SEFM | I54: Coupe progressive irrégulière à régénération lente, 3 interventions, coupe secondaire, Martelage, type de peuplement feuillus tolérants, autres résineux, mixte feuillus | J54: 4
A55: Autres coupes partielles | B55: Feuillus tolérants, mixteF (tolérants), autres résineux et mixte autres résineux | C55: Opérateur | D55: Uniforme, par bandes ou par trouées | E55: Irrégulière | F55: Coupe progressive irrégulière à régénération lente | G55: CPI_RL-MUL | H55: CPILMULOFM | I55: Coupe progressive irrégulière à régénération lente, coupe multiples phases, Opérateur, type de peuplement feuillus tolérants, autres résineux et mixte feuillus | J55: 4
A56: Autres coupes partielles | B56: Feuillus tolérants, mixteF (tolérants), autres résineux et mixte autres résineux | C56: Martelage | D56: Uniforme, par bandes ou par trouées | E56: Irrégulière | F56: Coupe progressive irrégulière à régénération lente | G56: CPI_RL-MUL | H56: CPIRLMULFM | I56: Coupe progressive irrégulière à régénération lente, coupe multiples phases, Martelage, type de peuplement feuillus tolérants, autres résineux et mixte feuillus | J56: 4
A57: Autres coupes partielles | B57: Feuillus tolérants, mixteF (tolérants), autres résineux et mixte autres résineux | C57: Opérateur | D57: Uniforme, par bandes ou par trouées | E57: Irrégulière | F57: Coupe progressive irrégulière à régénération lente | G57: CPI_RL-PR | H57: CPIRLPROFM | I57: Coupe progressive irrégulière à régénération lente, coupe préparatoire, Opérateur, type de peuplement feuillus tolérants, autres résineux et mixte feuillus | J57: 4
A58: Autres coupes partielles | B58: Feuillus tolérants, mixteF (tolérants), autres résineux et mixte autres résineux | C58: Martelage | D58: Uniforme, par bandes ou par trouées | E58: Irrégulière | F58: Coupe progressive irrégulière à régénération lente | G58: CPI_RL-PR | H58: CPIRLPRFM | I58: Coupe progressive irrégulière à régénération lente, coupe préparatoire, Martelage, type de peuplement feuillus tolérants, autres résineux et mixte feuillus | J58: 4
A59: Autres coupes partielles | B59: Feuillus tolérants, mixteF (tolérants), autres résineux et mixte autres résineux | C59: Opérateur | D59: Par bandes ou par trouées | E59: Régulière | F59: Coupe progressive régulière par bandes ou trouées 1 Pour être admissible, il doit y avoir une coupe partielle à l'extérieur des bandes récoltées totalement. | G59: CPR_BA 1 | H59: CPRBAOFM | I59: Coupe progressive régulière par bande, Opérateur, type de peuplement feuillus tolérants, autres résineux et mixte feuillus | J59: 4
A60: Autres coupes partielles | B60: Feuillus tolérants, mixteF (tolérants), autres résineux et mixte autres résineux | C60: Martelage | D60: Par bandes ou par trouées | E60: Régulière | F60: Coupe progressive régulière par bandes ou trouées 1 Pour être admissible, il doit y avoir une coupe partielle à l'extérieur des bandes récoltées totalement. | G60: CPR_BA 1 | H60: CPRBAMFM | I60: Coupe progressive régulière par bande, Martelage, type de peuplement feuillus tolérants, autres résineux et mixte feuillus | J60: 4
A61: Autres coupes partielles | B61: Feuillus tolérants, mixteF (tolérants), autres résineux et mixte autres résineux | C61: Opérateur | D61: Par bandes ou par trouées | E61: Régulière | F61: Coupe progressive régulière par bandes ou trouées 2 Pour être admissible, il doit y avoir une coupe partielle à l'extérieur des trouées récoltées totalement. | G61: CPR_T 2 | H61: CPRTOFM | I61: Coupe progressive régulière par trouées, Opérateur, type de peuplement feuillus tolérants, autres résineux et mixte feuillus | J61: 4
A62: Autres coupes partielles | B62: Feuillus tolérants, mixteF (tolérants), autres résineux et mixte autres résineux | C62: Martelage | D62: Par bandes ou par trouées | E62: Régulière | F62: Coupe progressive régulière par bandes ou trouées 2 Pour être admissible, il doit y avoir une coupe partielle à l'extérieur des trouées récoltées totalement. | G62: CPR_T 2 | H62: CPRTMFM | I62: Coupe progressive régulière par troués, Martelage, type de peuplement feuillus tolérants, autres résineux et mixte feuillus | J62: 4
A63: Autres coupes partielles | B63: Feuillus tolérants, mixteF (tolérants), autres résineux et mixte autres résineux | C63: Martelage | D63: Uniforme | E63: Régulière | F63: Coupe progressive régulière | G63: CPR_U-ENS | H63: CPRUENSFM | I63: Coupe progressive régulière uniforme, coupe d'ensemencement, Martelage, type de peuplement feuillus tolérants, autres résineux et mixte feuillus | J63: 4
A64: Autres coupes partielles | B64: Feuillus tolérants, mixteF (tolérants), autres résineux et mixte autres résineux | C64: Opérateur | D64: Uniforme | E64: Régulière | F64: Coupe progressive régulière | G64: CPR_U-ENS | H64: CPRUENSOFM | I64: Coupe progressive régulière uniforme, coupe d'ensemencement, Opérateur, type de peuplement feuillus tolérants, autres résineux et mixte feuillus | J64: 4
A65: Autres coupes partielles | B65: Feuillus tolérants, mixteF (tolérants), autres résineux et mixte autres résineux | C65: Opérateur | D65: Uniforme | E65: Régulière | F65: Coupe progressive régulière | G65: CPR_U-PR | H65: CPRUPROFM | I65: Coupe progressive régulière uniforme, coupe préparatoire, Opérateur, peuplement feuillus tolérants, autres résineux et mixte feuillus | J65: 4
A66: Autres coupes partielles | B66: Feuillus tolérants, mixteF (tolérants), autres résineux et mixte autres résineux | C66: Martelage | D66: Uniforme | E66: Régulière | F66: Coupe progressive régulière | G66: CPR_U-PR | H66: CPRUPRFM | I66: Coupe progressive régulière uniforme, coupe préparatoire, Martelage, type de peuplement feuillus tolérants, autres résineux et mixte feuillus | J66: 4
A67: Autres coupes partielles | B67: Feuillus tolérants, mixteF (tolérants), autres résineux et mixte autres résineux | C67: Opérateur | D67: Uniforme | E67: Régulière | F67: Coupe progressive régulière | G67: CPR_U-SEC | H67: CPRUSECOFM | I67: Coupe progressive régulière uniforme, coupe secondaire, Opérateur, type de peuplement feuillus tolérants, autres résineux et mixte feuillus | J67: 4
A68: Autres coupes partielles | B68: Feuillus tolérants, mixteF (tolérants), autres résineux et mixte autres résineux | C68: Martelage | D68: Uniforme | E68: Régulière | F68: Coupe progressive régulière | G68: CPR_U-SEC | H68: CPRUSECFM | I68: Coupe progressive régulière uniforme, coupe secondaire, Martelage, type de peuplement feuillus tolérants, autres résineux et mixte feuillus | J68: 4
A69: Autres coupes partielles | B69: Feuillus tolérants, mixteF (tolérants), autres résineux et mixte autres résineux | C69: Martelage | D69: Uniforme | E69: Jardinée / gestion par arbres | F69: Éclaircie jardinatoire par pieds d'arbres ou pieds d'arbres et groupes d'arbres | G69: EJ_P-CLAS | H69: EJPCLASM | I69: Éclaircie jardinatoire par pied d'arbre classique ou finale, Martelage | J69: 4 | K69: Modif code RATF 2021-2022
A70: Autres coupes partielles | B70: Feuillus tolérants, mixteF (tolérants), autres résineux et mixte autres résineux | C70: Opérateur | D70: Uniforme | E70: Jardinée / gestion par arbres | F70: Éclaircie jardinatoire par pieds d'arbres ou pieds d'arbres et groupes d'arbres | G70: EJ_P-CLAS | H70: EJPCLASO | I70: Éclaircie jardinatoire par pied d'arbre classique ou finale, Opérateur | J70: 4 | K70: Ajout code RATF 2021-2022
A71: Autres coupes partielles | B71: Feuillus tolérants, mixteF (tolérants), autres résineux et mixte autres résineux | C71: Martelage | D71: Uniforme | E71: Jardinée / gestion par arbres | F71: Éclaircie jardinatoire par pieds d'arbres ou pieds d'arbres et groupes d'arbres | G71: EJ_PG-CLAS | H71: EJPGCLASM | I71: Éclaircie jardinatoire par pied d'arbre et groupes d'arbres, classique ou finale, Martelage | J71: 4 | K71: Modif code RATF 2021-2022
A72: Autres coupes partielles | B72: Feuillus tolérants, mixteF (tolérants), autres résineux et mixte autres résineux | C72: Opérateur | D72: Uniforme | E72: Jardinée / gestion par arbres | F72: Éclaircie jardinatoire par pieds d'arbres ou pieds d'arbres et groupes d'arbres | G72: EJ_PG-CLAS | H72: EJPGCLASO | I72: Éclaircie jardinatoire par pied d'arbre et groupes d'arbres, classique ou finale, Opérateur | J72: 4 | K72: Ajout code RATF 2021-2022
A73: Autres coupes partielles | B73: Feuillus tolérants, mixteF (tolérants), autres résineux et mixte autres résineux | C73: Martelage | D73: Uniforme | E73: Jardinée / gestion par arbres | F73: Éclaircie jardinatoire par pieds d'arbres ou pieds d'arbres et groupes d'arbres | G73: EJ_PG-INI | H73: EJPGINIM | I73: Éclaircie jardinatoire par pied d'arbre et groupes d'arbres initiale, Martelage | J73: 4 | K73: Modif code RATF 2021-2022
A74: Autres coupes partielles | B74: Feuillus tolérants, mixteF (tolérants), autres résineux et mixte autres résineux | C74: Opérateur | D74: Uniforme | E74: Jardinée / gestion par arbres | F74: Éclaircie jardinatoire par pieds d'arbres ou pieds d'arbres et groupes d'arbres | G74: EJ_PG-INI | H74: EJPGINIO | I74: Éclaircie jardinatoire par pied d'arbre et groupes d'arbres initiale, Opérateur | J74: 4 | K74: Ajout code RATF 2021-2022
A75: Autres coupes partielles | B75: Feuillus tolérants, mixteF (tolérants), autres résineux et mixte autres résineux | C75: Martelage | D75: Uniforme | E75: Jardinée / gestion par arbres | F75: Éclaircie jardinatoire par pieds d'arbres ou pieds d'arbres et groupes d'arbres | G75: EJ_P-INI | H75: EJPINIM | I75: Éclaircie jardinatoire par pied d'arbre initiale, Martelage | J75: 4 | K75: Modif code RATF 2021-2022
A76: Autres coupes partielles | B76: Feuillus tolérants, mixteF (tolérants), autres résineux et mixte autres résineux | C76: Opérateur | D76: Uniforme | E76: Jardinée / gestion par arbres | F76: Éclaircie jardinatoire par pieds d'arbres ou pieds d'arbres et groupes d'arbres | G76: EJ_P-INI | H76: EJPINIO | I76: Éclaircie jardinatoire par pied d'arbre initiale, Opérateur | J76: 4 | K76: Ajout code RATF 2021-2022
A77: Autres coupes partielles | B77: SEPM, feuillus intolérants, mixteF (intolérants) et mixteR (SEPM) | C77: Opérateur | D77: Par bandes ou par trouées | E77: Irrégulière | F77: Coupe progressive irrégulière à couvert permanent par bandes | G77: CPI_CP-ENS_B | H77: CPIENSBOSF | I77: Coupe progressive irrégulière à couvert permanent par bandes, coupe d'ensemencement, Opérateur, type de peuplement SEPM, feuillus intolérants et mixte résineux | J77: 6
A78: Autres coupes partielles | B78: SEPM, feuillus intolérants, mixteF (intolérants) et mixteR (SEPM) | C78: Opérateur | D78: Uniforme | E78: Irrégulière | F78: Coupe progressive irrégulière à couvert permanent | G78: CPI_CP-ENS_U | H78: CPIUENSOSF | I78: Coupe progressive irrégulière à couvert permanent, coupe d'ensemencement, patron d'intervention uniforme, Opérateur, type de peuplement SEPM, feuillus intolérants et mixte résineux | J78: 6
A79: Autres coupes partielles | B79: SEPM, feuillus intolérants, mixteF (intolérants) et mixteR (SEPM) | C79: Opérateur | D79: Par bandes ou par trouées | E79: Irrégulière | F79: Coupe progressive irrégulière à couvert permanent par bandes | G79: CPI_CP-SEC_B | H79: CPISECBOSF | I79: Coupe progressive irrégulière à couvert permanent par bandes, coupe secondaire, Opérateur, type de peuplement SEPM, feuillus intolérants et mixte résineux | J79: 6
A80: Autres coupes partielles | B80: SEPM, feuillus intolérants, mixteF (intolérants) et mixteR (SEPM) | C80: Opérateur | D80: Uniforme | E80: Irrégulière | F80: Coupe progressive irrégulière à couvert permanent | G80: CPI_CP-SEC_U | H80: CPIUSECOSF | I80: Coupe progressive irrégulière à couvert permanent, coupe secondaire, patron d'intervention uniforme, Opérateur, type de peuplement SEPM, feuillus intolérants et mixte résineux | J80: 6
A81: Autres coupes partielles | B81: SEPM, feuillus intolérants, mixteF (intolérants) et mixteR (SEPM) | C81: Opérateur | D81: Par bandes ou par trouées | E81: Irrégulière | F81: Coupe progressive irrégulière à régénération lente en 1 intervention et abandon du volume résiduel phase d'ensemencement | G81: CPI_RL-1INR_ENS | H81: 1INRENSOSF | I81: Coupe progressive irrégulière à régénération lente en 1 intervention et abandon du volume résiduel, phase d'ensemencement, Opérateur, type de peuplement SEPM, feuillus intolérants et mixte résineux | J81: 6
A82: Autres coupes partielles | B82: SEPM, feuillus intolérants, mixteF (intolérants) et mixteR (SEPM) | C82: Opérateur | D82: Par bandes ou par trouées | E82: Irrégulière | F82: Coupe progressive irrégulière à régénération lente en 1 intervention et abandon du volume résiduel multiples phases | G82: CPI_RL-1INR_MUL | H82: 1INRMULOSF | I82: Coupe progressive irrégulière à régénération lente en 1 intervention et abandon du volume résiduel, Multiples phases, Opérateur, type de peuplement SEPM, feuillus intolérants et mixte résineux | J82: 6
A83: Autres coupes partielles | B83: SEPM, feuillus intolérants, mixteF (intolérants) et mixteR (SEPM) | C83: Opérateur | D83: Par bandes ou par trouées | E83: Irrégulière | F83: Coupe progressive irrégulière à régénération lente en 1 intervention et abandon du volume résiduel phase secondaire ou d'abri | G83: CPI_RL-1INR_SEC | H83: 1INRSECOSF | I83: Coupe progressive irrégulière à régénération lente en 1 intervention et abandon du volume résiduel, phase secondaire, Opérateur, type de peuplement SEPM, feuillus intolérants et mixte résineux | J83: 6
A84: Autres coupes partielles | B84: SEPM, feuillus intolérants, mixteF (intolérants) et mixteR (SEPM) | C84: Opérateur | D84: Uniforme, par bandes ou par trouées | E84: Irrégulière | F84: Coupe progressive irrégulière à régénération lente | G84: CPI_RL-2I_ENS | H84: CPIL2ENOSF | I84: Coupe progressive irrégulière à régénération lente, 2 interventions, coupe d'ensemencement, Opérateur, type de peuplement SEPM, feuillus intolérants et mixte résineux | J84: 6
A85: Autres coupes partielles | B85: SEPM, feuillus intolérants, mixteF (intolérants) et mixteR (SEPM) | C85: Opérateur | D85: Par bandes ou par trouées | E85: Irrégulière | F85: Coupe progressive irrégulière à régénération lente en 2 interventions multiples phases | G85: CPI_RL-2I_MUL | H85: 2IMULOSF | I85: Coupe progressive irrégulière à régénération lente en 2 interventions et abandon du volume résiduel, Multiples phases, Opérateur, type de peuplement SEPM, feuillus intolérants et mixte résineux | J85: 6
A86: Autres coupes partielles | B86: SEPM, feuillus intolérants, mixteF (intolérants) et mixteR (SEPM) | C86: Opérateur | D86: Uniforme, par bandes ou par trouées | E86: Irrégulière | F86: Coupe progressive irrégulière à régénération lente | G86: CPI_RL-2I_SEC | H86: CPIL2SEOSF | I86: Coupe progressive irrégulière à régénération lente, 2 interventions, coupe secondaire, Opérateur, type de peuplement SEPM, feuillus intolérants, mixte résineux | J86: 6
A87: Autres coupes partielles | B87: SEPM, feuillus intolérants, mixteF (intolérants) et mixteR (SEPM) | C87: Opérateur | D87: Uniforme, par bandes ou par trouées | E87: Irrégulière | F87: Coupe progressive irrégulière à régénération lente | G87: CPI_RL-3I_ENS | H87: CPIL3ENOSF | I87: Coupe progressive irrégulière à régénération lente, 3 interventions, coupe d'ensemencement, Opérateur, type de peuplement SEPM, feuillus intolérants et mixte résineux | J87: 6
A88: Autres coupes partielles | B88: SEPM, feuillus intolérants, mixteF (intolérants) et mixteR (SEPM) | C88: Opérateur | D88: Par bandes ou par trouées | E88: Irrégulière | F88: Coupe progressive irrégulière à régénération lente en 3 interventions multiples phases | G88: CPI_RL-3I_MUL | H88: 3IMULOSF | I88: Coupe progressive irrégulière à régénération lente en 3 interventions et abandon du volume résiduel, Multiples phases, Opérateur, type de peuplement SEPM, feuillus intolérants et mixte résineux | J88: 6
A89: Autres coupes partielles | B89: SEPM, feuillus intolérants, mixteF (intolérants) et mixteR (SEPM) | C89: Opérateur | D89: Uniforme, par bandes ou par trouées | E89: Irrégulière | F89: Coupe progressive irrégulière à régénération lente | G89: CPI_RL-3I_SEC | H89: CPIL3SEOSF | I89: Coupe progressive irrégulière à régénération lente, 3 interventions, coupe secondaire, Opérateur, type de peuplement SEPM, feuillus intolérants, mixte résineux | J89: 6
A90: Autres coupes partielles | B90: SEPM, feuillus intolérants, mixteF (intolérants) et mixteR (SEPM) | C90: Opérateur | D90: Uniforme, par bandes ou par trouées | E90: Irrégulière | F90: Coupe progressive irrégulière à régénération lente | G90: CPI_RL-MUL | H90: CPILMULOSF | I90: Coupe progressive irrégulière à régénération lente, coupe multiples phases, Opérateur, type de peuplement SEPM, feuillus intolérants, mixte feuillus | J90: 6
A91: Autres coupes partielles | B91: SEPM, feuillus intolérants, mixteF (intolérants) et mixteR (SEPM) | C91: Opérateur | D91: Uniforme, par bandes ou par trouées | E91: Irrégulière | F91: Coupe progressive irrégulière à régénération lente | G91: CPI_RL-PR | H91: CPIRLPROSF | I91: Coupe progressive irrégulière à régénération lente, coupe préparatoire, Opérateur, type de peuplement SEPM, feuillus intolérants et mixte résineux | J91: 6
A92: Autres coupes partielles | B92: SEPM, feuillus intolérants, mixteF (intolérants) et mixteR (SEPM) | C92: Opérateur | D92: Par bandes ou par trouées | E92: Régulière | F92: Coupe progressive régulière par bandes ou trouées 1 Pour être admissible, il doit y avoir une coupe partielle à l'extérieur des bandes récoltées totalement. | G92: CPR_BA 1 | H92: CPRBAOSF | I92: Coupe progressive régulière par bande, Opérateur, type de peuplement SEPM, feuillus intolérants et mixte résineux | J92: 6
A93: Autres coupes partielles | B93: SEPM, feuillus intolérants, mixteF (intolérants) et mixteR (SEPM) | C93: Opérateur | D93: Par bandes ou par trouées | E93: Régulière | F93: Coupe progressive régulière par bandes ou trouées 2 Pour être admissible, il doit y avoir une coupe partielle à l'extérieur des trouées récoltées totalement. | G93: CPR_T 2 | H93: CPRTOSF | I93: Coupe progressive régulière par trouées, Opérateur, type de peuplement SEPM, feuillus intolérants et mixte résineux | J93: 6
A94: Autres coupes partielles | B94: SEPM, feuillus intolérants, mixteF (intolérants) et mixteR (SEPM) | C94: Opérateur | D94: Uniforme | E94: Régulière | F94: Coupe progressive régulière | G94: CPR_U-ENS | H94: CPRUENSOSF | I94: Coupe progressive régulière uniforme, coupe d'ensemencement, Opérateur, type de peuplement SEPM, feuillus intolérants et mixte résineux | J94: 6
A95: Autres coupes partielles | B95: SEPM, feuillus intolérants, mixteF (intolérants) et mixteR (SEPM) | C95: Opérateur | D95: Uniforme | E95: Régulière | F95: Coupe progressive régulière | G95: CPR_U-PR | H95: CPRUPROSF | I95: Coupe progressive régulière uniforme, Coupe préparatoire, Opérateur, peuplement SEPM, feuillus intolérants et mixte résineux | J95: 6
A96: Autres coupes partielles | B96: SEPM, feuillus intolérants, mixteF (intolérants) et mixteR (SEPM) | C96: Opérateur | D96: Uniforme | E96: Régulière | F96: Coupe progressive régulière | G96: CPR_U-SEC | H96: CPRUSECOSF | I96: Coupe progressive régulière uniforme, coupe secondaire, Opérateur, type de peuplement SEPM, feuillus intolérants et mixte résineux | J96: 6
A97: Autres coupes partielles | B97: SEPM, feuillus intolérants, mixteF (intolérants) et mixteR (SEPM) | C97: Martelage | D97: Par bandes ou par trouées | E97: Irrégulière | F97: Coupe progressive irrégulière à couvert permanent par bandes | G97: CPI_CP-ENS_B | H97: CPIENSBMSF | I97: Coupe progressive irrégulière à couvert permanent par bandes, coupe d'ensemencement, Martelage, type de peuplement SEPM, feuillus intolérants et mixte résineux | J97: 6
A98: Autres coupes partielles | B98: SEPM, feuillus intolérants, mixteF (intolérants) et mixteR (SEPM) | C98: Martelage | D98: Uniforme | E98: Irrégulière | F98: Coupe progressive irrégulière à couvert permanent | G98: CPI_CP-ENS_U | H98: CPIUENSSF | I98: Coupe progressive irrégulière à couvert permanent, coupe d'ensemencement, patron d'intervention uniforme, Martelage, type de peuplement SEPM, feuillus intolérants et mixte résineux | J98: 6
A99: Autres coupes partielles | B99: SEPM, feuillus intolérants, mixteF (intolérants) et mixteR (SEPM) | C99: Martelage | D99: Par bandes ou par trouées | E99: Irrégulière | F99: Coupe progressive irrégulière à couvert permanent par bandes | G99: CPI_CP-SEC_B | H99: CPISECBMSF | I99: Coupe progressive irrégulière à couvert permanent par bandes, coupe secondaire, Martelage, type de peuplement SEPM, feuillus intolérants et mixte résineux | J99: 6
A100: Autres coupes partielles | B100: SEPM, feuillus intolérants, mixteF (intolérants) et mixteR (SEPM) | C100: Martelage | D100: Uniforme | E100: Irrégulière | F100: Coupe progressive irrégulière à couvert permanent | G100: CPI_CP-SEC_U | H100: CPIUSECSF | I100: Coupe progressive irrégulière à couvert permanent, coupe secondaire, patron d'intervention uniforme, Martelage, type de peuplement SEPM, feuillus intolérants et mixte résineux | J100: 6
A101: Autres coupes partielles | B101: SEPM, feuillus intolérants, mixteF (intolérants) et mixteR (SEPM) | C101: Martelage | D101: Par bandes ou par trouées | E101: Irrégulière | F101: Coupe progressive irrégulière à régénération lente en 1 intervention et abandon du volume résiduel phase d'ensemencement | G101: CPI_RL-1INR_ENS | H101: 1INRENSMSF | I101: Coupe progressive irrégulière à régénération lente en 1 intervention et abandon du volume résiduel, phase d'ensemencement, Martelage, type de peuplement SEPM, feuillus intolérants et mixte résineux | J101: 6
A102: Autres coupes partielles | B102: SEPM, feuillus intolérants, mixteF (intolérants) et mixteR (SEPM) | C102: Martelage | D102: Par bandes ou par trouées | E102: Irrégulière | F102: Coupe progressive irrégulière à régénération lente en 1 intervention et abandon du volume résiduel multiples phases | G102: CPI_RL-1INR_MUL | H102: 1INRMULMSF | I102: Coupe progressive irrégulière à régénération lente en 1 intervention et abandon du volume résiduel, Multiples phases, Martelage, type de peuplement SEPM, feuillus intolérants et mixte résineux | J102: 6
A103: Autres coupes partielles | B103: SEPM, feuillus intolérants, mixteF (intolérants) et mixteR (SEPM) | C103: Martelage | D103: Par bandes ou par trouées | E103: Irrégulière | F103: Coupe progressive irrégulière à régénération lente en 1 intervention et abandon du volume résiduel phase secondaire ou d'abri | G103: CPI_RL-1INR_SEC | H103: 1INRSECMSF | I103: Coupe progressive irrégulière à régénération lente en 1 intervention et abandon du volume résiduel, phase secondaire, Martelage, type de peuplement SEPM, feuillus intolérants et mixte résineux | J103: 6
A104: Autres coupes partielles | B104: SEPM, feuillus intolérants, mixteF (intolérants) et mixteR (SEPM) | C104: Martelage | D104: Uniforme, par bandes ou par trouées | E104: Irrégulière | F104: Coupe progressive irrégulière à régénération lente | G104: CPI_RL-2I_ENS | H104: CPIRL2ENSF | I104: Coupe progressive irrégulière à régénération lente, 2 interventions, coupe d'ensemencement, Martelage, type de peuplement SEPM, feuillus intolérants et mixte résineux | J104: 6
A105: Autres coupes partielles | B105: SEPM, feuillus intolérants, mixteF (intolérants) et mixteR (SEPM) | C105: Martelage | D105: Par bandes ou par trouées | E105: Irrégulière | F105: Coupe progressive irrégulière à régénération lente en 2 interventions multiples phases | G105: CPI_RL-2I_MUL | H105: 2IMULMSF | I105: Coupe progressive irrégulière à régénération lente en 2 interventions et abandon du volume résiduel, Multiples phases, Martelage, type de peuplement SEPM, feuillus intolérants et mixte résineux | J105: 6
A106: Autres coupes partielles | B106: SEPM, feuillus intolérants, mixteF (intolérants) et mixteR (SEPM) | C106: Martelage | D106: Uniforme, par bandes ou par trouées | E106: Irrégulière | F106: Coupe progressive irrégulière à régénération lente | G106: CPI_RL-2I_SEC | H106: CPIRL2SESF | I106: Coupe progressive irrégulière à régénération lente, 2 interventions, coupe secondaire, Martelage, type de peuplement SEPM, feuillus intolérants, mixte résineux | J106: 6
A107: Autres coupes partielles | B107: SEPM, feuillus intolérants, mixteF (intolérants) et mixteR (SEPM) | C107: Martelage | D107: Uniforme, par bandes ou par trouées | E107: Irrégulière | F107: Coupe progressive irrégulière à régénération lente | G107: CPI_RL-3I_ENS | H107: CPIRL3ENSF | I107: Coupe progressive irrégulière à régénération lente, 3 interventions, coupe d'ensemencement, Martelage, type de peuplement SEPM, feuillus intolérants et mixte résineux | J107: 6
A108: Autres coupes partielles | B108: SEPM, feuillus intolérants, mixteF (intolérants) et mixteR (SEPM) | C108: Martelage | D108: Par bandes ou par trouées | E108: Irrégulière | F108: Coupe progressive irrégulière à régénération lente en 3 interventions multiples phases | G108: CPI_RL-3I_MUL | H108: 3IMULMSF | I108: Coupe progressive irrégulière à régénération lente en 3 interventions et abandon du volume résiduel, Multiples phases, Martelage, type de peuplement SEPM, feuillus intolérants et mixte résineux | J108: 6
A109: Autres coupes partielles | B109: SEPM, feuillus intolérants, mixteF (intolérants) et mixteR (SEPM) | C109: Martelage | D109: Uniforme, par bandes ou par trouées | E109: Irrégulière | F109: Coupe progressive irrégulière à régénération lente | G109: CPI_RL-3I_SEC | H109: CPIRL3SESF | I109: Coupe progressive irrégulière à régénération lente, 3 interventions, coupe secondaire, Martelage, type de peuplement SEPM, feuillus intolérants, mixte résineux | J109: 6
A110: Autres coupes partielles | B110: SEPM, feuillus intolérants, mixteF (intolérants) et mixteR (SEPM) | C110: Martelage | D110: Uniforme, par bandes ou par trouées | E110: Irrégulière | F110: Coupe progressive irrégulière à régénération lente | G110: CPI_RL-MUL | H110: CPIRLMULSF | I110: Coupe progressive irrégulière à régénération lente, coupe multiples phases, Martelage, type de peuplement SEPM, feuillus intolérants, mixte feuillus | J110: 6
A111: Autres coupes partielles | B111: SEPM, feuillus intolérants, mixteF (intolérants) et mixteR (SEPM) | C111: Martelage | D111: Uniforme, par bandes ou par trouées | E111: Irrégulière | F111: Coupe progressive irrégulière à régénération lente | G111: CPI_RL-PR | H111: CPIRLPRSF | I111: Coupe progressive irrégulière à régénération lente, coupe préparatoire, Martelage, type de peuplement SEPM, feuillus intolérants et mixte résineux | J111: 6
A112: Autres coupes partielles | B112: SEPM, feuillus intolérants, mixteF (intolérants) et mixteR (SEPM) | C112: Martelage | D112: Par bandes ou par trouées | E112: Régulière | F112: Coupe progressive régulière par bandes ou trouées 1 Pour être admissible, il doit y avoir une coupe partielle à l'extérieur des bandes récoltées totalement. | G112: CPR_BA 1 | H112: CPRBAMSF | I112: Coupe progressive régulière par bande, Martelage, type de peuplement SEPM, feuillus intolérants et mixte résineux | J112: 6
A113: Autres coupes partielles | B113: SEPM, feuillus intolérants, mixteF (intolérants) et mixteR (SEPM) | C113: Martelage | D113: Par bandes ou par trouées | E113: Régulière | F113: Coupe progressive régulière par bandes ou trouées 2 Pour être admissible, il doit y avoir une coupe partielle à l'extérieur des trouées récoltées totalement. | G113: CPR_T 2 | H113: CPRTMSF | I113: Coupe progressive régulière par trouées, Martelage, type de peuplement SEPM, feuillus intolérants et mixte résineux | J113: 6
A114: Autres coupes partielles | B114: SEPM, feuillus intolérants, mixteF (intolérants) et mixteR (SEPM) | C114: Martelage | D114: Uniforme | E114: Régulière | F114: Coupe progressive régulière | G114: CPR_U-ENS | H114: CPRUENSSF | I114: Coupe progressive régulière uniforme, coupe d'ensemencement, Martelage, type de peuplement SEPM, feuillus intolérants et mixte résineux | J114: 6
A115: Autres coupes partielles | B115: SEPM, feuillus intolérants, mixteF (intolérants) et mixteR (SEPM) | C115: Martelage | D115: Uniforme | E115: Régulière | F115: Coupe progressive régulière | G115: CPR_U-PR | H115: CPRUPRSF | I115: Coupe progressive régulière uniforme, coupe préparatoire, Martelage, type de peuplement SEPM, feuillus intolérants et mixte résineux | J115: 6
A116: Autres coupes partielles | B116: SEPM, feuillus intolérants, mixteF (intolérants) et mixteR (SEPM) | C116: Martelage | D116: Uniforme | E116: Régulière | F116: Coupe progressive régulière | G116: CPR_U-SEC | H116: CPRUSECSF | I116: Coupe progressive régulière uniforme, coupe secondaire, Martelage, type de peuplement SEPM, feuillus intolérants et mixte résineux | J116: 6

Sheet Martelage (hidden)
A2: Annexe au calcul des taux des traitements non commerciaux 2024-2025 Martelage Inventaire de conformité et délimitation de secteur Forêt publique
A3: *** Veuillez saisir les informations dans les cellules blanches seulement *** | G3: Version 2 : 2024-07-19
A4: Identification
A5: Unité d'aménagement (UA)
A6: Secteur d'intervention
A7: Unité de compilation
A8: Numéro de la prescription
A9: Traitement de martelage à taux fixe ou variable
A10: Traitement
A11: Taux de base | G11: =IFERROR(VLOOKUP($G$10,Menus!A3543:C3546,2,FALSE),"") -> 
A12: Unité de mesure | G12: =IFERROR(VLOOKUP($G$10,Menus!A3543:C3546,3,FALSE),"") -> 
A13: Taux d'exécution à déterminer selon la formule suivante
A14: =IFERROR(_xlfn.XLOOKUP($G$10,'Majorations applicables'!A54,'Majorations applicables'!C54,,0),"") -> 
A15: Superficie
A16: Superficie du traitement
A17: ="Valeurs spécifiques à remplir selon le traitement - "&G10&" - Voir l'onglet « Étapes calcul majoration »" -> Valeurs spécifiques à remplir selon le traitement - - Voir l'onglet « Étapes calcul majoration »
A18: Valeurs spécifiques à remplir selon le traitement - Martelage
A19: PF | B19: Proportion de feuillus Surface terrière des feuillus commerciaux par rapport à la surface terrière totale du peuplement
A20: NbMSCROP | B20: Nombre de priorité de récolte combinant MSCR et OP * Valeur de 0 à 8 : MO-MP-SO-SP-CO-CP-RO-RP Combinaisons des critères de classification de vigueur (M­mourir, S­survie, C­conserver et R­réserve) ainsi que de qualité (O­œuvre et P­pâte) indiquées dans la directive de martelage Pour les directives de martelage faisant référence à une classification MSCR­SciagePâte et MSCR­ABCD, la correspondance est la suivante : MSCR-SciagePâte * • MO-SO-CO-RO : MSciage-SSciage-CSciage-RSciage • MP-SP-CP-RP : MPâte-SPâte-CPâte-RPâte MSCR-ABCD * • MO-SO-CO-RO : MABC-SABC-CABC-RABC • MP-SP-CP-RP : MD-SD-CD-RD * Notez que chaque combinaison doit être comptabilisée une seule fois, et ce, peu importe le nombre de répétitions en fonction des essences et des dhp
A21: TC | B21: Type de coupe | E21: Valeur | F21: =IFERROR(VLOOKUP($G$21,Menus!A3552:B3556,2,FALSE),"") -> 
A22: Taux par hectare calculé à partir de l'équation et des variables reliées à l'activité | G22: =IFERROR(IF(OR($G$19>1,$G$19<0,ROUND($G$19,2)<>$G$19),"PF non valide",IF($G$20>Mart_Max_MSCROP,"NbMSCROP non valide",IF(OR(ISBLANK($G$19),ISBLANK($G$20),ISBLANK($G$21)),0,(('Calculs grille'!Q6-('Calculs grille'!Q7*$G$19)+('Calculs grille'!Q8*$G$20))*$F$21)))),0) -> 0
A23: ="Majorations applicables à l'exécution - "&$G$10 -> Majorations applicables à l'exécution -
A24: =IFERROR(_xlfn.XLOOKUP($G$10,'Majorations applicables'!C57:C59,'Majorations applicables'!A57:A59,,0),"") -> 
A25: Majoration pour l'hébergement et la distance ou la durée du déplacement (HPVTM et DTPVTM)
A26: Hébergement (HPVTM) | F26: =IFERROR(IF(ISBLANK($G$26)=TRUE,"",IFERROR(VLOOKUP($G$26,Menus!A3559:B3561,2,FALSE),(IF($G$26<=Menus!B3560,ROUND($G$26,4),"Max "&TEXT(Menus!B3560,"0,0%"))))),0) -> 
A27: Distance ou durée du déplacement (DTPVTM) | F27: =IFERROR(VLOOKUP($G$27,Menus!A3564:B3566,2,FALSE),"") -> 
A28: Inventaire de conformité
A29: Inventaire de conformité - Tous
A30: Délimitation des secteurs (taux par kilomètre délimité)
A31: Nombre de kilomètres délimités
A32: Inventaire de conformité (taux par placette inventoriée)
A33: Nombre de placettes inventoriées
A34: Majoration pour l'hébergement et la distance ou la durée du déplacement (HPVTM et DTPVTM)
A35: Inventaire de conformité - Majoration pour l'hébergement et la distance ou la durée du déplacement (HPVTM et DTPVTM) - Tous
A36: Hébergement (HPVTM) | F36: =IFERROR(IF(ISBLANK($G$36)=TRUE,"",IFERROR(VLOOKUP($G$36,Menus!$A$3559:$B$3561,2,FALSE),IF($G$36<=Menus!$B$3560,ROUND($G$36,4),"Max "&TEXT(Menus!$B$3560,"0,0%")))),0) -> 
A37: Distance ou durée du déplacement (DTPVTM) | F37: =IFERROR(VLOOKUP($G$37,Menus!A3564:B3566,2,FALSE),"") -> 
A38: Majoration pour la certification (CEAF4 ou ISO4)
A39: Majoration pour la certification (CEAF4 ou ISO4) - Tous
A40: Certification (CEAF4 ou ISO4) | F40: =IFERROR(VLOOKUP($G$40,Menus!A3582:B3584,2,FALSE),"") -> 
A41: Totaux
A42: Calculs - Martelage
A43: Taux d'exécution de base | G43: =IFERROR($G$22,0) -> 0
A44: Taux HPVTM | G44: =IFERROR(($G$43*$F$26),0) -> 0
A45: Taux DTPVTM | G45: =IFERROR(($G$43*$F$27),0) -> 0
A46: Taux exécution total et majoration(s) admissible(s) | G46: =IFERROR((ROUND(SUM($G$43:$G$45),2)),0) -> 0
A47: Taux VERIF | G47: =IFERROR(((($G$30*$G$31)+($G$32*$G$33))/$G$16),0) -> 0
A48: Taux HPVTM et DTPVTM | G48: =IFERROR((SUM($G$43,$G$47)*SUM($F$26:$F$27)),0) -> 0
A49: Taux CEAF4 ou ISO4 | G49: =IFERROR($F$40*SUM(G47:G48,G43),0) -> 0
A50: Taux exécution total, majorations, réductions admissibles et inventaire conformité total | G50: =IFERROR((ROUND(SUM($G$43,G47:G49),2)),0) -> 0
A51: Superficie | G51: =IFERROR($G$16,0) -> 0
A52: Total exécution | G52: =IFERROR(ROUND($G$46*$G$51,2),0) -> 0
A53: Total inventaire de conformité | G53: =IFERROR(ROUND(SUM($G$47:$G$48)*$G$51,2),0) -> 0
A54: Grand total admissible | G54: =IFERROR(G50*G51,0) -> 0
A55: Calculs - Martelage positif et négatif - EC (résineux ou mixte résineux)
A56: Taux d'exécution de base | G56: =IFERROR($G$11,0) -> 
A57: Taux HPVTM | G57: =IFERROR(($G$56*$F$26),0) -> 0
A58: Taux DTPVTM | G58: =IFERROR(($G$56*$F$27),0) -> 0
A59: Taux exécution total et majoration(s) admissible(s) | G59: =IFERROR((ROUND(SUM($G$56:$G$58),2)),0) -> 0
A60: Taux VERIF | G60: =IFERROR(((($G$30*$G$31)+($G$32*$G$33))/$G$16),0) -> 0
A61: Taux HPVTM et DTPVTM | G61: =IFERROR((SUM($G$56,$G$60)*SUM($F$36:$F$37)),0) -> 0
A62: Taux CEAF4 ou ISO4 | G62: =IFERROR($F$40*SUM(G56,G60:G61),0) -> 0
A63: Taux exécution total, majorations, réductions admissibles et inventaire conformité total | G63: =IFERROR((ROUND(SUM($G$56,G60:G62),2)),0) -> 0
A64: Superficie | G64: =IFERROR($G$16,0) -> 0
A65: Total exécution | G65: =IFERROR(ROUND($G$59*$G$64,2),0) -> 0
A66: Total inventaire de conformité | G66: =IFERROR(ROUND(SUM($G$60:$G$61)*$G$64,2),0) -> 0
A67: Grand total admissible | G67: =IFERROR(G63*G64,0) -> 0
A69: Remarques
A71: J'atteste que les renseignements fournis dans ce document afin de calculer le taux du traitement sont complets et conformes à la vérité, au meilleur de mes connaissances.
A75: Nom et prénom de l'ingénieur forestier | G75: Numéro de permis
G76: =TODAY() -> 2024-07-19
A78: Signature de l'ingénieur forestier | G78: Date (AAAA-MM-JJ)
A81: Section réservée au suivi du contrat
B83: Numéro de la prescription : | C83: =IF($G$8<>"",$G$8,"") -> 
B85: Numéro du contrat :
B86: Numéro du projet :
B87: U.G. :
B88: MRC :
B89: Code de traitement DICA :
B90: Code de traitement RATF :
B91: Type d'attribution :
B92: Taux AO : | D92: Inscrire une valeur
B93: Taux Grille (avec vérif.) : | C93: 0
B94: Ratio AO/Grille : | C94: =IFERROR(IF(AND(ISBLANK($C$92)=FALSE,$C$93>0),ROUND($C$92/$C$93,4),"S/O"),"") -> S/O
B95: Grand total AO : | C95: S/O
B96: Nom de l'entrepreneur :
B97: Numéro de fournisseur :
B98: Date de début :
B99: Date de fin :
B100: Commentaires :

Sheet → Réductions zones-bandes ← (hidden)
A1: Coupes partielles : exemples de calculs de réductions pour bandes ou zones non traitées
A3: Définition des termes utilisés dans la feuille de calcul :
A4: Bandes* : | C4: Forme étroite et allongée donnée par une coupe qui traverse toute la largeur ou la longueur d'un peuplement ou d'un secteur d'intervention
C5: Note 1 : Une bande peut être coupée totalement, coupée partiellement ou résiduelle (non coupée)
C6: Note 2 : La largeur d'une bande équivaut minimalement à la demi-hauteur d'un arbre mature (généralement, 10 mètres et plus)
C7: *Inspiré du glossaire du Guide sylvicole du Québec
A8: Zones : | C8: Même définition que le terme bande à l'exception du non-respect de la largeur minimale (moins de 10 mètres)
A10: 1er cas : Coupe progressive uniforme (avec zones non traitées de moins de 10 mètres de largeur) | V10: 2e cas : Coupe progressive par bandes (plus de 10 mètres de largeur)
L16: LP | N16: Largeur de la coupe partielle, un côté seulement (5 m) | AM16: LP | AN16: Largeur de la coupe partielle, un côté seulement (5 m)
L17: SE | N17: Sentier de débardage (5 m) | AM17: SE | AN17: Sentier de débardage (5 m)
L18: ZNT | N18: Zone non traitée (5 m) | AM18: ZNT | AN18: Bande non traitée (15 m)
D19: 5m 5m | F19: 5m 5m | H19: 5m 5m | N19: Zone ou bande entièrement récoltée (0 m, si > 0 m, ajouter à la largeur du sentier) | Z19: 5m | AA19: 5m | AD19: 5m | AF19: 5m | AN19: Zone ou bande entièrement récoltée (0 m, si > 0 m, ajouter à la largeur du sentier)
L22: LP : Largeur de la coupe partielle, un côté seulement (m) : 5 m | AM22: LP : Largeur de la coupe partielle, un côté seulement (m) : 5 m
L23: SE : Largeur du sentier de débardage (m) : 5 m | AM23: SE : Largeur du sentier de débardage (m) : 5 m
L24: ZNT : Largeur de la zone ou bande non traitée (m) : 5 m | AM24: ZNT : Largeur de la zone ou bande non traitée (m) : 15 m
L25: Résultat : réduction du taux de 10% | AM25: Résultat : réduction du taux de 30%
C30: 5 m | D30: I--15 m--I | E30: 5 m | F30: I--15 m--I | G30: 5 m | H30: I--15 m--I | I30: 5 m | X30: 15 m | Z30: I-----15 m-----I | AB30: 15 m | AD30: I-----15 m-----I | AH30: 15 m
AA34: Calcul de la réduction
AA35: À inscrire dans la feuille de calcul : cellules G57, G58 et G59

Sheet → Coupes sans investissement ← (hidden)
A1: Coupes partielles : exemples de calculs de réductions pour bandes ou zones non traitées
A3: Définition des termes utilisés dans la feuille de calcul :
A4: Bandes* : | C4: Forme étroite et allongée donnée par une coupe qui traverse toute la largeur ou la longueur d'un peuplement ou d'un secteur d'intervention
C5: Note 1 : Une bande peut être coupée totalement, coupée partiellement ou résiduelle (non coupée)
C6: Note 2 : La largeur d'une bande équivaut minimalement à la demi-hauteur d'un arbre mature (généralement, 10 mètres et plus)
C7: *Inspiré du glossaire du Guide sylvicole du Québec
A8: Zones : | C8: Même définition que le terme bande à l'exception du non-respect de la largeur minimale (moins de 10 mètres)
V11: Coupe totale par bandes alternes (plus de 10 mètres de largeur)
E16: Aucun investissement, aucune coupe partielle | AN16: Bande entièrement récoltée (15m)
AN17: Bande non traitée (15m)
AN18: Sentier de débardage
Z21: 5m | AA21: 5m | AD21: 5m | AF21: 5m | AM21: LP : Largeur de la coupe partielle, un côté seulement (m) : 0 m
AM22: SE : Largeur du sentier de débardage (m) : 5 m
AM23: ZNT : Largeur de la zone ou bande non traitée (m) : 15 m
AM24: Résultat : non financé
X30: 15 m | Z30: I-----15 m-----I | AB30: 15 m | AD30: I-----15 m-----I | AH30: 15 m
V32: Coupe totale par trouées
E37: Non financé, aucune coupe partielle | AN37: Trouée entièrement récoltée
AN38: Non traité
AN39: Sentier de débardage
AM40: Résultat : non financé
X51: I-------------------------------------------------75 m-----------------------------------------------I

Sheet Étapes calcul majorations (hidden)
A1: Formule ou activité | B1: Étapes pour appliquer les majorations/réductions à l'exécution | C1: Étapes pour appliquer les majorations à la vérification
A2: Formule 1 - EC1 | B2: Taux = (EXE * (1 + PE) + RUB * (1 + PE) + PRCCM) * (1 + HCP) | C2: N/A
A3: Formule 1 - EC2 | B3: Taux = (EXE * (1 + PE) + RUB * (1 + PE) + PRCCM) * (1 + HCP) | C3: N/A
A4: Formule 2 | B4: Taux = (EXE * (1 + PE) + RUB * (1 + PE) + PRCCM) * (1 + HCP) | C4: N/A
A5: Formule 4 | B5: Taux = (EXE * (1 + PE) + RUB * (1 + PE) + PRCCM + RTR + BNT) * (1 + HCP) | C5: N/A
A6: Formule 6 | B6: Taux = (EXE * (1 + PE) + RUB * (1 + PE) + PRCCM + RTR + BNT) * (1 + HCP) | C6: N/A
A7: Formule 7 | B7: Taux = (EXE * (1 + PE) + RUB * (1 + PE) + PRCCM + RTR + BNT) * (1 + HCP) | C7: N/A
A8: Martelage | B8: Taux = EXE * (1 + HPVTM + DTPVTM) | C8: Taux = VERIF * (1 + HPVTM + DTPVTM)
A9: Martelage négatif - EC (résineux ou mixte résineux) | B9: Taux = EXE * (1 + HPVTM + DTPVTM) | C9: Taux = VERIF * (1 + HPVTM + DTPVTM)
A10: Martelage positif - EC (résineux ou mixte résineux) | B10: Taux = EXE * (1 + HPVTM + DTPVTM) | C10: Taux = VERIF * (1 + HPVTM + DTPVTM)

Sheet Calcul de l'aide - ATBFCR (CR) (hidden)
A2: Programme d’investissement en aménagement forestier (PIAF) - Volet II Forêt publique Annexe au rapport et au calcul de l'aide pour le transport des bois feuillus issus de coupes de régénération 2024-2025
A3: *** Veuillez saisir les informations dans les cellules blanches (Planification et BGAD) et jaunes (Ministère) *** | H3: Version 1 - Consultation : 2024-05-16
A4: Contexte d'utilisation | CV4: UAF | CW4: Zone | CX4: Taux | CY4: OUI
A5: Identification
A6: Unité d'aménagement (UA) | CY6: NON
A7: Secteur d'intervention | CV7: 01151 | CW7: 151 | CX7: 0
A8: Unité de compilation | CV8: 01152 | CW8: 152 | CX8: 0
A9: Numéro de la prescription | CV9: 01251 | CW9: 153 | CX9: 0
A10: Zone de tarification Valeur requise pour établir le montant de l'aide en fonction de l'usine réceptrice des bois | CV10: 02651 | CW10: 184 | CX10: 200
A11: Inscrire les renseignements dans la colonne associée au contexte d'utilisation | G11: Planification | H11: BGAD | I11: Ministère
A12: Admissibilité | CV12: 01253 | CW12: 155 | CX12: 0
A13: Est-ce que les strates récoltées sont feuillues ou mixtes à dominance feuillue ? | CV13: 02251 | CW13: 157 | CX13: 0
A14: Est-ce que les bois de trituration ont été récoltés et transportés ?
A15: Pourcentage de récupération des bois de trituration | CV15: 02352 | CW15: 180 | CX15: 0
A16: Superficie admissible (ha) | CV16: 02451 | CW16: 181 | CX16: 80
A17: Volume net récolté | CV17: 02452 | CW17: 182 | CX17: 0
A18: Volume net récolté par hectare pour tous les feuillus durs de trituration (m³/ha) Le minimum admissible est de 30 m³/ha
A19: Calcul de l'aide en fonction de l'usine réceptrice des bois et de la zone de tarification | CV19: 02452 | CW19: 182 | CX19: 0
A20: Usine réceptrice des bois de trituration #1
A21: Proportion des bois assignés à cette usine (%) | CV21: 02661 | CW21: 185 | CX21: 80
A22: Sous-total pour l'usine #1 - taux brut ($/m³) | G22: =IFERROR(IF($G$18<Transport_Minimum_FD_trituration,0,IF(SUM($G$21,$G$25,$G$30,$G$35)>1,0,IF(AND(EXACT(UPPER($G$13),UPPER(Menus!$A$2)),EXACT(UPPER($G$14),UPPER(Menus!$A$2))),VLOOKUP(CONCATENATE($I$10,"-",VLOOKUP($G$20,Transport_Usines_Long,2,FALSE)),Transport_Tableau_CP_CR,7,FALSE),0))),0) -> 0 | H22: =IFERROR(IF($H$18<Transport_Minimum_FD_trituration,0,IF(AND(OR(EXACT(UPPER($G$4),UPPER(Menus!$A$663)),EXACT(UPPER($G$4),UPPER(Menus!$A$664))),$H$18>=Menus!$B$674),IF(SUM($H$21,$H$25,$H$30,$H$35)>1,0,IF(AND(EXACT(UPPER($H$13),UPPER(Menus!$A$2)),EXACT(UPPER($H$14),UPPER(Menus!$A$2))),VLOOKUP(CONCATENATE($I$10,"-",VLOOKUP($H$20,Transport_Usines_Long,2,FALSE)),Transport_Tableau_CP_CR,7,FALSE),0)),0)),0) -> 0 | I22: =IFERROR(IF($I$18<Transport_Minimum_FD_trituration,0,IF(EXACT(UPPER($G$4),UPPER(Menus!$A$664)),IF(SUM($I$21,$I$25,$I$30,$I$35)>1,0,IF(AND(EXACT(UPPER($I$13),UPPER(Menus!$A$2)),EXACT(UPPER($I$14),UPPER(Menus!$A$2))),VLOOKUP(CONCATENATE($I$10,"-",VLOOKUP($I$20,Transport_Usines_Long,2,FALSE)),Transport_Tableau_CP_CR,7,FALSE),0)),0)),0) -> 0 | CV22: 02662 | CW22: 186 | CX22: 80
A23: Sous-total pour l'usine #1 - taux brut ($/ha) | G23: =IFERROR(IF($G$22>0,IF($G$18*$G$21*$G$22>VLOOKUP(CONCATENATE($I$10,"-",VLOOKUP($G$20,Transport_Usines_Long,2,FALSE)),Transport_Tableau_CP_CR,8,FALSE)*$G$21,VLOOKUP(CONCATENATE($I$10,"-",VLOOKUP($G$20,Transport_Usines_Long,2,FALSE)),Transport_Tableau_CP_CR,8,FALSE)*$G$21,VLOOKUP(CONCATENATE($I$10,"-",VLOOKUP($G$20,Transport_Usines_Long,2,FALSE)),Transport_Tableau_CP_CR,7,FALSE)*$G$18*$G$21),0),0) -> 0 | H23: =IFERROR(IF($H$22>0,IF($H$18*$H$21*$H$22>VLOOKUP(CONCATENATE($I$10,"-",VLOOKUP($H$20,Transport_Usines_Long,2,FALSE)),Transport_Tableau_CP_CR,8,FALSE)*$H$21,VLOOKUP(CONCATENATE($I$10,"-",VLOOKUP($H$20,Transport_Usines_Long,2,FALSE)),Transport_Tableau_CP_CR,8,FALSE)*$H$21,VLOOKUP(CONCATENATE($I$10,"-",VLOOKUP($H$20,Transport_Usines_Long,2,FALSE)),Transport_Tableau_CP_CR,7,FALSE)*$H$18*$H$21),0),0) -> 0 | I23: =IFERROR(IF($I$22>0,IF($I$18*$I$21*$I$22>VLOOKUP(CONCATENATE($I$10,"-",VLOOKUP($I$20,Transport_Usines_Long,2,FALSE)),Transport_Tableau_CP_CR,8,FALSE)*$I$21,VLOOKUP(CONCATENATE($I$10,"-",VLOOKUP($I$20,Transport_Usines_Long,2,FALSE)),Transport_Tableau_CP_CR,8,FALSE)*$I$21,VLOOKUP(CONCATENATE($I$10,"-",VLOOKUP($I$20,Transport_Usines_Long,2,FALSE)),Transport_Tableau_CP_CR,7,FALSE)*$I$18*$I$21),0),0) -> 0
A24: Usine réceptrice des bois de trituration #2
A25: Proportion des bois assignés à cette usine (%) | CV25: 02661 | CW25: 185 | CX25: 80
A26: Sous-total pour l'usine #2 ($/m³) | G26: =IFERROR(IF($G$18<Transport_Minimum_FD_trituration,0,IF(SUM($G$21,$G$25,$G$30,$G$35)>1,0,IF(AND(EXACT(UPPER($G$13),UPPER(Menus!$A$2)),EXACT(UPPER($G$14),UPPER(Menus!$A$2))),VLOOKUP(CONCATENATE($I$10,"-",VLOOKUP($G$24,Transport_Usines_Long,2,FALSE)),Transport_Tableau_CP_CR,7,FALSE),0))),0) -> 0 | H26: =IFERROR(IF($H$18<Transport_Minimum_FD_trituration,0,IF(AND(OR(EXACT(UPPER($G$4),UPPER(Menus!$A$663)),EXACT(UPPER($G$4),UPPER(Menus!$A$664)))),IF(SUM($H$21,$H$25,$H$30,$H$35)>1,0,IF(AND(EXACT(UPPER($H$13),UPPER(Menus!$A$2)),EXACT(UPPER($H$14),UPPER(Menus!$A$2))),VLOOKUP(CONCATENATE($I$10,"-",VLOOKUP($H$24,Transport_Usines_Long,2,FALSE)),Transport_Tableau_CP_CR,7,FALSE),0)),0)),0) -> 0 | I26: =IFERROR(IF($I$18<Transport_Minimum_FD_trituration,0,IF(EXACT(UPPER($G$4),UPPER(Menus!$A$664)),IF(SUM($I$21,$I$25,$I$30,$I$35)>1,0,IF(AND(EXACT(UPPER($I$13),UPPER(Menus!$A$2)),EXACT(UPPER($I$14),UPPER(Menus!$A$2))),VLOOKUP(CONCATENATE($I$10,"-",VLOOKUP($I$24,Transport_Usines_Long,2,FALSE)),Transport_Tableau_CP_CR,7,FALSE),0)),0)),0) -> 0 | CV26: 02662 | CW26: 186 | CX26: 80
A27: Sous-total pour l'usine #2 ($/ha) | G27: =IFERROR(IF($G$26>0,IF($G$18*$G$25*$G$26>VLOOKUP(CONCATENATE($I$10,"-",VLOOKUP($G$24,Transport_Usines_Long,2,FALSE)),Transport_Tableau_CP_CR,8,FALSE)*$G$25,VLOOKUP(CONCATENATE($I$10,"-",VLOOKUP($G$24,Transport_Usines_Long,2,FALSE)),Transport_Tableau_CP_CR,8,FALSE)*$G$25,VLOOKUP(CONCATENATE($I$10,"-",VLOOKUP($G$24,Transport_Usines_Long,2,FALSE)),Transport_Tableau_CP_CR,7,FALSE)*$G$18*$G$25),0),0) -> 0 | H27: =IFERROR(IF($H$26>0,IF($H$18*$H$25*$H$26>VLOOKUP(CONCATENATE($I$10,"-",VLOOKUP($H$24,Transport_Usines_Long,2,FALSE)),Transport_Tableau_CP_CR,8,FALSE)*$H$25,VLOOKUP(CONCATENATE($I$10,"-",VLOOKUP($H$24,Transport_Usines_Long,2,FALSE)),Transport_Tableau_CP_CR,8,FALSE)*$H$25,VLOOKUP(CONCATENATE($I$10,"-",VLOOKUP($H$24,Transport_Usines_Long,2,FALSE)),Transport_Tableau_CP_CR,7,FALSE)*$H$18*$H$25),0),0) -> 0 | I27: =IFERROR(IF($I$26>0,IF($I$18*$I$25*$I$26>VLOOKUP(CONCATENATE($I$10,"-",VLOOKUP($I$24,Transport_Usines_Long,2,FALSE)),Transport_Tableau_CP_CR,8,FALSE)*$I$25,VLOOKUP(CONCATENATE($I$10,"-",VLOOKUP($I$24,Transport_Usines_Long,2,FALSE)),Transport_Tableau_CP_CR,8,FALSE)*$I$25,VLOOKUP(CONCATENATE($I$10,"-",VLOOKUP($I$24,Transport_Usines_Long,2,FALSE)),Transport_Tableau_CP_CR,7,FALSE)*$I$18*$I$25),0),0) -> 0
A28: =IFERROR("Calcul de l'aide en fonction d'une autre destination avec la formule ("&Transport_Formule_CT&")","Calcul de l'aide en fonction d'une autre destination avec la formule") -> Calcul de l'aide en fonction d'une autre destination avec la formule (0,038 * Distance aller - 5,5) | CV28: 02452 | CW28: 182 | CX28: 0
A29: Autre usine réceptrice des bois de trituration #1
A30: Proportion des bois assignés à ce calcul (%) | CV30: 02664 | CW30: 190 | CX30: 220
A31: Distance « Aller simple » (km) | CV31: 02665 | CW31: 191 | CX31: 220
A32: Sous-total pour une autre destination #1 - taux brut ($/m³) | G32: =IFERROR(IF(ISBLANK($I$10)=FALSE,IF(ISBLANK($G$29)=TRUE,0,IF($G$18<Transport_Minimum_FD_trituration,0,IF(SUM($G$21,$G$25,$G$30,$G$35)>1,0,IF(AND(EXACT(UPPER($G$13),UPPER(Menus!$A$2)),EXACT(UPPER($G$14),UPPER(Menus!$A$2))),IF(('Majorations applicables'!$B$42*$G$31-'Majorations applicables'!$B$43)<0,0,IF(('Majorations applicables'!$B$42*$G$31-'Majorations applicables'!$B$43)<Transport_Plafond_M3,ROUNDUP(('Majorations applicables'!$B$42*$G$31-'Majorations applicables'!$B$43),0),Transport_Plafond_M3)),0)))),0),0) -> 0 | H32: =IFERROR(IF(ISBLANK($I$10)=FALSE,IF(ISBLANK($H$29)=TRUE,0,IF($H$18<Transport_Minimum_FD_trituration,0,IF(SUM($H$21,$H$25,$H$30,$H$35)>1,0,IF(OR($G$4=Menus!$A$663,$G$4=Menus!$A$664),IF(AND(EXACT(UPPER($H$13),UPPER(Menus!$A$2)),EXACT(UPPER($H$14),UPPER(Menus!$A$2))),IF(('Majorations applicables'!$B$42*$H$31-'Majorations applicables'!$B$43)<0,0,IF(('Majorations applicables'!$B$42*$H$31-'Majorations applicables'!$B$43)<Transport_Plafond_M3,ROUNDUP(('Majorations applicables'!$B$42*$H$31-'Majorations applicables'!$B$43),0),Transport_Plafond_M3)),0),0)))),0),0) -> 0 | I32: =IFERROR(IF(ISBLANK($I$10)=FALSE,IF(ISBLANK($I$29)=TRUE,0,IF($I$18<Transport_Minimum_FD_trituration,0,IF(SUM($I$21,$I$25,$I$30,$I$35)>1,0,IF($G$4=Menus!$A$664,IF(AND(EXACT(UPPER($I$13),UPPER(Menus!$A$2)),EXACT(UPPER($I$14),UPPER(Menus!$A$2))),IF(('Majorations applicables'!$B$42*$I$31-'Majorations applicables'!$B$43)<0,0,IF(('Majorations applicables'!$B$42*$I$31-'Majorations applicables'!$B$43)<Transport_Plafond_M3,ROUNDUP(('Majorations applicables'!$B$42*$I$31-'Majorations applicables'!$B$43),0),Transport_Plafond_M3)),0),0)))),0),0) -> 0 | CV32: 03152 | CW32: 195 | CX32: 0
A33: Sous-total pour une autre destination #1 - taux brut ($/ha) | G33: =IFERROR(IF($G$32>0,IF($G$18*$G$30*$G$32>Transport_Plafond_HA*$G$30,Transport_Plafond_HA*$G$30,$G$18*$G$30*$G$32),0),0) -> 0 | H33: =IFERROR(IF($H$32>0,IF($H$18*$H$30*$H$32>Transport_Plafond_HA*$H$30,Transport_Plafond_HA*$H$30,$H$18*$H$30*$H$32),0),0) -> 0 | I33: =IFERROR(IF($I$32>0,IF($I$18*$I$30*$I$32>Transport_Plafond_HA*$I$30,Transport_Plafond_HA*$I$30,$I$18*$I$30*$I$32),0),0) -> 0 | CV33: 03152 | CW33: 195 | CX33: 0
A34: Autre usine réceptrice des bois de trituration #2
A35: Proportion des bois assignés à ce calcul (%) | CV35: 02664 | CW35: 190 | CX35: 220
A36: Distance « Aller simple » (km) | CV36: 02665 | CW36: 191 | CX36: 220
A37: Sous-total pour une autre destination #2 - taux brut ($/m³) | G37: =IFERROR(IF(ISBLANK($I$10)=FALSE,IF(ISBLANK($G$34)=TRUE,0,IF($G$18<Transport_Minimum_FD_trituration,0,IF(SUM($G$21,$G$25,$G$30,$G$35)>1,0,IF(AND(EXACT(UPPER($G$13),UPPER(Menus!$A$2)),EXACT(UPPER($G$14),UPPER(Menus!$A$2))),IF(('Majorations applicables'!$B$42*$G$36-'Majorations applicables'!$B$43)<0,0,IF(('Majorations applicables'!$B$42*$G$36-'Majorations applicables'!$B$43)<Transport_Plafond_M3,ROUNDUP(('Majorations applicables'!$B$42*$G$36-'Majorations applicables'!$B$43),0),Transport_Plafond_M3)),0)))),0),0) -> 0 | H37: =IFERROR(IF(ISBLANK($I$10)=FALSE,IF(ISBLANK($H$34)=TRUE,0,IF($H$18<Transport_Minimum_FD_trituration,0,IF(SUM($H$21,$H$25,$H$30,$H$35)>1,0,IF(OR($G$4=Menus!$A$663,$G$4=Menus!$A$664),IF(AND(EXACT(UPPER($H$13),UPPER(Menus!$A$2)),EXACT(UPPER($H$14),UPPER(Menus!$A$2))),IF(('Majorations applicables'!$B$42*$H$36-'Majorations applicables'!$B$43)<0,0,IF(('Majorations applicables'!$B$42*$H$36-'Majorations applicables'!$B$43)<Transport_Plafond_M3,ROUNDUP(('Majorations applicables'!$B$42*$H$36-'Majorations applicables'!$B$43),0),Transport_Plafond_M3)),0),0)))),0),0) -> 0 | I37: =IFERROR(IF(ISBLANK($I$10)=FALSE,IF(ISBLANK($I$34)=TRUE,0,IF($I$18<Transport_Minimum_FD_trituration,0,IF(SUM($I$21,$I$25,$I$30,$I$35)>1,0,IF($G$4=Menus!$A$664,IF(AND(EXACT(UPPER($I$13),UPPER(Menus!$A$2)),EXACT(UPPER($I$14),UPPER(Menus!$A$2))),IF(('Majorations applicables'!$B$42*$I$36-'Majorations applicables'!$B$43)<0,0,IF(('Majorations applicables'!$B$42*$I$36-'Majorations applicables'!$B$43)<Transport_Plafond_M3,ROUNDUP(('Majorations applicables'!$B$42*$I$36-'Majorations applicables'!$B$43),0),Transport_Plafond_M3)),0),0)))),0),0) -> 0 | CV37: 03152 | CW37: 195 | CX37: 0
A38: Sous-total pour une autre destination #2 - taux brut ($/ha) | G38: =IFERROR(IF($G$37>0,IF($G$18*$G$35*$G$37>Transport_Plafond_HA*$G$35,Transport_Plafond_HA*$G$35,$G$18*$G$35*$G$37),0),0) -> 0 | H38: =IFERROR(IF($H$37>0,IF($H$18*$H$35*$H$37>Transport_Plafond_HA*$H$35,Transport_Plafond_HA*$H$35,$H$18*$H$35*$H$37),0),0) -> 0 | I38: =IFERROR(IF($I$37>0,IF($I$18*$I$35*$I$37>Transport_Plafond_HA*$I$35,Transport_Plafond_HA*$I$35,$I$18*$I$35*$I$37),0),0) -> 0 | CV38: 03152 | CW38: 195 | CX38: 0
A39: Taux global pour la mesure d'accès au marché ($/ha) - taux à inscrire à l'état d'avancement et au RATF L'aide globale $/ha est limitée à un plafond variable en fonction de la zone de tarification, de l'usine réceptrice et, lorsqu'applicable, de la distance « Aller simple » utilisée dans le cadre du calcul de l'aide avec la formule. | G39: =IFERROR(IF(SUM($G$21,$G$25,$G$30,$G$35)>1,0,IF(AND(EXACT(UPPER($G$13),UPPER(Menus!$A$2)),EXACT(UPPER($G$14),UPPER(Menus!$A$2))),IF($G$15>1,0,IF(ROUND(SUM($G$23,$G$27,$G$33,$G$38)*$G$15,2)>Menus!$B$677,Menus!$B$677,ROUND(SUM($G$23,$G$27,$G$33,$G$38)*$G$15,2))),0)),0) -> 0 | H39: =IFERROR(IF(SUM($H$21,$H$25,$H$30,$H$35)>1,0,IF(OR(EXACT(UPPER($G$4),UPPER(Menus!$A$663)),EXACT(UPPER($G$4),UPPER(Menus!$A$664))),IF(AND(EXACT(UPPER($H$13),UPPER(Menus!$A$2)),EXACT(UPPER($H$14),UPPER(Menus!$A$2))),IF($H$15>1,0,IF(ROUND(SUM($H$23,$H$27,$H$33,$H$38)*$H$15,2)>Menus!$B$677,Menus!$B$677,ROUND(SUM($H$23,$H$27,$H$33,$H$38)*$H$15,2))),0),0)),0) -> 0 | I39: =IFERROR(IF(SUM($I$21,$I$25,$I$30,$I$35)>1,0,IF(EXACT(UPPER($G$4),UPPER(Menus!$A$664)),IF(AND(EXACT(UPPER($I$13),UPPER(Menus!$A$2)),EXACT(UPPER($I$14),UPPER(Menus!$A$2))),IF($I$15>1,0,IF(ROUND(SUM($I$23,$I$27,$I$33,$I$38)*$I$15,2)>Menus!$B$677,Menus!$B$677,ROUND(SUM($I$23,$I$27,$I$33,$I$38)*$I$15,2))),0),0)),0) -> 0 | CV39: 03153 | CW39: 240 | CX39: 0
A40: Résumé de l'aide | CV40: 06452 | CW40: 257 | CX40: 280
A41: Grand total admissible ($) | G41: =IFERROR(ROUND($G$39*$G$16,2),0) -> 0 | H41: =IFERROR(ROUND($H$39*$H$16,2),0) -> 0 | I41: =IFERROR(ROUND($I$39*$I$16,2),0) -> 0 | CV41: 07151 | CW41: 258 | CX41: 280
CV42: 07351 | CW42: 261 | CX42: 280
A43: Section réservée à l'usage de la Planification | CV43: 07352 | CW43: 262 | CX43: 280
A44: Remarques | CV44: 07451 | CW44: 263 | CX44: 280
CV45: 08251 | CW45: 266 | CX45: 200
A46: J'atteste que les renseignements fournis dans ce document afin de calculer l'aide supplémentaire sont complets et conformes à la vérité, au meilleur de mes connaissances. | CV46: 08665 | CW46: 276 | CX46: 280
G47: =TODAY() -> 2024-07-19 | CV47: 08666 | CW47: 277 | CX47: 280
CV48: 08751 | CW48: 278 | CX48: 280
CV49: 08762 | CW49: 279 | CX49: 280
A50: Nom et prénom de l'ingénieur forestier | CV50: 08763 | CW50: 280 | CX50: 280
CV51: 08764 | CW51: 281 | CX51: 280
CV52: 09351 | CW52: 282 | CX52: 280
A53: Signature de l'ingénieur forestier | G53: Date (AAAA-MM-JJ) | CV53: 09352 | CW53: 283 | CX53: 280
A54: Section réservée à l'usage du BGAD | CV54: 09451 | CW54: 284 | CX54: 280
A55: Remarques | CV55: 09452 | CW55: 285 | CX55: 280
CV56: 09551 | CW56: 286 | CX56: 280
A57: J'atteste que les renseignements fournis dans ce document afin de calculer l'aide supplémentaire sont complets et conformes à la vérité, au meilleur de mes connaissances. | CV57: 09751 | CW57: 287 | CX57: 280
G58: =TODAY() -> 2024-07-19 | CV58: 11161 | CW58: 288 | CX58: 280
CV59: 11262 | CW59: 289 | CX59: 280
CV60: 11263 | CW60: 290 | CX60: 280
A61: Nom et prénom de l'ingénieur forestier | CW61: 291 | CX61: 280
CW62: 292 | CX62: 280
CW63: 350 | CX63: 0
A64: Signature de l'ingénieur forestier | G64: Date (AAAA-MM-JJ) | CW64: 351 | CX64: 0
A65: Section réservée à l'usage du Ministère | CW65: 352 | CX65: 40
A66: Remarques | CW66: 353 | CX66: 40
CW67: 354 | CX67: 120
A68: J'atteste que les renseignements fournis dans ce document afin de calculer l'aide supplémentaire sont complets et conformes à la vérité, au meilleur de mes connaissances. | CW68: 355 | CX68: 180
G69: =TODAY() -> 2024-07-19 | CW69: 356 | CX69: 240
CW70: 357 | CX70: 240
CW71: 450 | CX71: 60
A72: Nom et prénom de l'ingénieur forestier | CW72: 451 | CX72: 0
CW73: 452 | CX73: 0
CW74: 453 | CX74: 0
A75: Signature de l'ingénieur forestier | G75: Date (AAAA-MM-JJ) | CW75: 454 | CX75: 0
CW76: 455 | CX76: 0
CW77: 456 | CX77: 0
CW78: 457 | CX78: 0
CW79: 458 | CX79: 60
CW80: 459 | CX80: 60
CW81: 460 | CX81: 200
CW82: 461 | CX82: 240
CW83: 551 | CX83: 0
CW84: 650 | CX84: 0
CW85: 651 | CX85: 40
CW86: 652 | CX86: 200
CW87: 653 | CX87: 140
CW88: 654 | CX88: 200
CW89: 655 | CX89: 40
CW90: 656 | CX90: 140
CW91: 657 | CX91: 140
CW92: 658 | CX92: 220
CW93: 659 | CX93: 280
CW94: 660 | CX94: 160
CW95: 661 | CX95: 40
CW96: 662 | CX96: 0
CW97: 750 | CX97: 0
CW98: 751 | CX98: 40
CW99: 752 | CX99: 220
CW100: 753 | CX100: 280
CW101: 754 | CX101: 80
CW102: 755 | CX102: 60
CW103: 756 | CX103: 260
CW104: 757 | CX104: 260
CW105: 758 | CX105: 280
CW106: 850 | CX106: 0
CW107: 851 | CX107: 0
CW108: 852 | CX108: 0
CW109: 853 | CX109: 0
CW110: 854 | CX110: 0
CW111: 855 | CX111: 0
CW112: 856 | CX112: 60
CW113: 857 | CX113: 80
CW114: 858 | CX114: 100
CW115: 859 | CX115: 180
CW116: 860 | CX116: 260
CW117: 861 | CX117: 240
CW118: 862 | CX118: 280
CW119: 863 | CX119: 280
CW120: 864 | CX120: 280
CW121: 865 | CX121: 280
CW122: 866 | CX122: 280
CW123: 867 | CX123: 280
CW124: 868 | CX124: 280
CW125: 869 | CX125: 280
CW126: 870 | CX126: 280
CW127: 871 | CX127: 280
CW128: 872 | CX128: 280
CW129: 873 | CX129: 280
CW130: 874 | CX130: 280
CW131: 875 | CX131: 280
CW132: 876 | CX132: 280
CW133: 877 | CX133: 280
CW134: 878 | CX134: 280
CW135: 879 | CX135: 280
CW136: 880 | CX136: 280
CW137: 881 | CX137: 280
CW138: 882 | CX138: 280
CW139: 883 | CX139: 280
CW140: 884 | CX140: 280
CW141: 885 | CX141: 280
CW142: 886 | CX142: 280
CW143: 887 | CX143: 280
CW144: 888 | CX144: 280
CW145: 889 | CX145: 240
CW146: 890 | CX146: 280
CW147: 891 | CX147: 280
CW148: 892 | CX148: 280
CW149: 950 | CX149: 280
CW150: 951 | CX150: 280
CW151: 952 | CX151: 280
CW152: 953 | CX152: 280
CW153: 954 | CX153: 280
CW154: 955 | CX154: 280
CW155: 956 | CX155: 280
CW156: 957 | CX156: 280
CW157: 960 | CX157: 280
CW158: 961 | CX158: 280
CW159: 962 | CX159: 280
CW160: 963 | CX160: 280
CW161: 964 | CX161: 280
CW162: 965 | CX162: 280
CW163: 966 | CX163: 280
CW164: 967 | CX164: 280
CW165: 970 | CX165: 280
CW166: 980 | CX166: 280
CW167: 981 | CX167: 280
CW168: 982 | CX168: 280
CW169: 983 | CX169: 280
CW170: 984 | CX170: 280
CW171: 985 | CX171: 280
CW172: 986 | CX172: 280
CW173: 987 | CX173: 280
CW174: 990 | CX174: 280
CW175: 995 | CX175: 0

Sheet Calcul de l'aide - ATOBFCP (CP) (hidden)
A2: Programme d’investissement en aménagement forestier (PIAF) - Volet II Forêt publique Annexe au rapport et au calcul de l'aide pour le transport et l'optimisation des bois feuillus issus de coupes partielles 2024-2025
A3: *** Veuillez saisir les informations dans les cellules blanches (Planification et BGAD) et jaunes (Ministère) *** | H3: Version 1 - Consultation : 2024-05-16
A4: Contexte d'utilisation | CV4: UAF | CW4: Zone | CX4: Taux | CY4: OUI
A5: Identification
A6: Unité d'aménagement (UA) | CY6: NON
A7: Secteur d'intervention | CV7: 01151 | CW7: 151 | CX7: 0
A8: Unité de compilation | CV8: 01152 | CW8: 152 | CX8: 0
A9: Numéro de la prescription | CV9: 01251 | CW9: 153 | CX9: 0
A10: Zone de tarification Valeur requise pour établir le montant de l'aide en fonction de l'usine réceptrice des bois | CV10: 02651 | CW10: 184 | CX10: 200
A11: Traitement (code DICA) | CV11: 01252 | CW11: 154 | CX11: 0
A12: Traitement (Code RATF) | E12: =IFERROR(VLOOKUP($I$11,Codes_DICA_RATF_RechercheV,3,FALSE),Menus!$C$336) -> RATF_Utilisateur
A13: Inscrire les renseignements dans la colonne associée au contexte d'utilisation | G13: Planification | H13: BGAD | I13: Ministère
A14: Admissibilité | CV14: 01253 | CW14: 155 | CX14: 0
A15: Secteur d'intervention dont la composition est feuillue ou mixte à dominance feuillue | CV15: 02251 | CW15: 157 | CX15: 0
A16: Admissible à l'aide financière pour les coupes partielles | CV16: 02351 | CW16: 158 | CX16: 0
A17: Est-ce que les bois de trituration ont été récoltés et transportés ?
A18: Pourcentage de récupération des bois de trituration | CV18: 02352 | CW18: 180 | CX18: 0
A19: Superficie admissible (hectares) | CV19: 02451 | CW19: 181 | CX19: 80
A20: Calcul de l'aide en fonction de l'usine réceptrice des bois et de la zone de tarification | CV20: 02452 | CW20: 182 | CX20: 0
A21: Usine réceptrice des bois de trituration #1
A22: Proportion des bois assignés à cette usine (%) | CV22: 02661 | CW22: 185 | CX22: 80
A23: Sous-total pour l'usine #1 - taux brut ($/ha) | G23: =IFERROR(IF($G$22>1,0,IF(SUM($G$22,$G$25,$G$29,$G$33)>1,0,IF(AND(EXACT(UPPER($G$15),UPPER(Menus!$A$2)),EXACT(UPPER($G$16),UPPER(Menus!$A$2)),EXACT(UPPER($G$17),UPPER(Menus!$A$2))),VLOOKUP(CONCATENATE($I$10,"-",VLOOKUP($G$21,Transport_Usines_Long,2,FALSE)),Transport_Tableau_CP_CR,6,FALSE)*$G$22,0))),0) -> 0 | H23: =IFERROR(IF(OR(EXACT(UPPER($G$4),UPPER(Menus!$A$663)),EXACT(UPPER($G$4),UPPER(Menus!$A$664))),IF($H$22>1,0,IF(SUM($H$22,$H$25,$H$29,$H$33)>1,0,IF(AND(EXACT(UPPER($H$15),UPPER(Menus!$A$2)),EXACT(UPPER($H$16),UPPER(Menus!$A$2)),EXACT(UPPER($H$17),UPPER(Menus!$A$2))),VLOOKUP(CONCATENATE($I$10,"-",VLOOKUP($H$21,Transport_Usines_Long,2,FALSE)),Transport_Tableau_CP_CR,6,FALSE)*$H$22,0))),0),0) -> 0 | I23: =IFERROR(IF(EXACT(UPPER($G$4),UPPER(Menus!$A$664)),IF($I$22>1,0,IF(SUM($I$22,$I$25,$I$29,$I$33)>1,0,IF(AND(EXACT(UPPER($I$15),UPPER(Menus!$A$2)),EXACT(UPPER($I$16),UPPER(Menus!$A$2)),EXACT(UPPER($I$17),UPPER(Menus!$A$2))),VLOOKUP(CONCATENATE($I$10,"-",VLOOKUP($I$21,Transport_Usines_Long,2,FALSE)),Transport_Tableau_CP_CR,6,FALSE)*$I$22,0))),0),0) -> 0 | CV23: 02662 | CW23: 186 | CX23: 80
A24: Usine réceptrice des bois de trituration #2
A25: Proportion des bois assignés à cette usine (%) | CV25: 02661 | CW25: 185 | CX25: 80
A26: Sous-total pour l'usine #2 - taux brut ($/ha) | G26: =IFERROR(IF($G$25>1,0,IF(SUM($G$22,$G$25,$G$29,$G$33)>1,0,IF(AND(EXACT(UPPER($G$15),UPPER(Menus!$A$2)),EXACT(UPPER($G$16),UPPER(Menus!$A$2)),EXACT(UPPER($G$17),UPPER(Menus!$A$2))),VLOOKUP(CONCATENATE($I$10,"-",VLOOKUP($G$24,Transport_Usines_Long,2,FALSE)),Transport_Tableau_CP_CR,6,FALSE)*$G$25,0))),0) -> 0 | H26: =IFERROR(IF(OR(EXACT(UPPER($G$4),UPPER(Menus!$A$663)),EXACT(UPPER($G$4),UPPER(Menus!$A$664))),IF($H$25>1,0,IF(SUM($H$22,$H$25,$H$29,$H$33)>1,0,IF(AND(EXACT(UPPER($H$15),UPPER(Menus!$A$2)),EXACT(UPPER($H$16),UPPER(Menus!$A$2)),EXACT(UPPER($H$17),UPPER(Menus!$A$2))),VLOOKUP(CONCATENATE($I$10,"-",VLOOKUP($H$24,Transport_Usines_Long,2,FALSE)),Transport_Tableau_CP_CR,6,FALSE)*$H$25,0))),0),0) -> 0 | I26: =IFERROR(IF(EXACT(UPPER($G$4),UPPER(Menus!$A$664)),IF($I$25>1,0,IF(SUM($I$22,$I$25,$I$29,$I$33)>1,0,IF(AND(EXACT(UPPER($I$15),UPPER(Menus!$A$2)),EXACT(UPPER($I$16),UPPER(Menus!$A$2)),EXACT(UPPER($I$17),UPPER(Menus!$A$2))),VLOOKUP(CONCATENATE($I$10,"-",VLOOKUP($I$24,Transport_Usines_Long,2,FALSE)),Transport_Tableau_CP_CR,6,FALSE)*$I$25,0))),0),0) -> 0 | CV26: 02662 | CW26: 186 | CX26: 80
A27: =IFERROR("Calcul de l'aide en fonction d'une autre destination avec la formule ("&Transport_Formule_CP&")","Calcul de l'aide en fonction d'une autre destination avec la formule") -> Calcul de l'aide en fonction d'une autre destination avec la formule (2,29 * Distance aller - 330) | CV27: 02452 | CW27: 182 | CX27: 0
A28: Autre usine réceptrice des bois de trituration #1
A29: Proportion des bois assignés à ce calcul (%) | CV29: 02664 | CW29: 190 | CX29: 220
A30: Distance « Aller simple » (km) | CV30: 02665 | CW30: 191 | CX30: 220
A31: Sous-total pour une autre destination #1 - taux brut ($/ha) | G31: =IFERROR(IF(ISBLANK($I$10)=FALSE,IF(ISBLANK($G$28)=TRUE,0,IF(SUM($G$22,$G$25,$G$29,$G$33)>1,0,IF(AND(EXACT(UPPER($G$15),UPPER(Menus!$A$2)),EXACT(UPPER($G$16),UPPER(Menus!$A$2)),EXACT(UPPER($G$17),UPPER(Menus!$A$2))),IF(('Majorations applicables'!$B$37*$G$30-'Majorations applicables'!$B$38)<0,0,IF(('Majorations applicables'!$B$37*$G$30-'Majorations applicables'!$B$38)<Transport_Plafond_HA,('Majorations applicables'!$B$37*$G$30-'Majorations applicables'!$B$38)*$G$29,Transport_Plafond_HA*$G$29)),0))),0),0) -> 0 | H31: =IFERROR(IF(ISBLANK($I$10)=FALSE,IF(ISBLANK($H$28)=TRUE,0,IF(SUM($H$22,$H$25,$H$29,$H$33)>1,0,IF(OR($G$4=Menus!$A$663,$G$4=Menus!$A$664),IF(AND(EXACT(UPPER($H$15),UPPER(Menus!$A$2)),EXACT(UPPER($H$16),UPPER(Menus!$A$2)),EXACT(UPPER($H$17),UPPER(Menus!$A$2))),IF(('Majorations applicables'!$B$37*$H$30-'Majorations applicables'!$B$38)<0,0,IF(('Majorations applicables'!$B$37*$H$30-'Majorations applicables'!$B$38)<Transport_Plafond_HA,('Majorations applicables'!$B$37*$H$30-'Majorations applicables'!$B$38)*$H$29,Transport_Plafond_HA*$H$29)),0),0))),0),0) -> 0 | I31: =IFERROR(IF(ISBLANK($I$10)=FALSE,IF(ISBLANK($I$28)=TRUE,0,IF(SUM($I$22,$I$25,$I$29,$I$33)>1,0,IF($G$4=Menus!$A$664,IF(AND(EXACT(UPPER($I$15),UPPER(Menus!$A$2)),EXACT(UPPER($I$16),UPPER(Menus!$A$2)),EXACT(UPPER($I$17),UPPER(Menus!$A$2))),IF(('Majorations applicables'!$B$37*$I$30-'Majorations applicables'!$B$38)<0,0,IF(('Majorations applicables'!$B$37*$I$30-'Majorations applicables'!$B$38)<Transport_Plafond_HA,('Majorations applicables'!$B$37*$I$30-'Majorations applicables'!$B$38)*$I$29,Transport_Plafond_HA*$I$29)),0),0))),0),0) -> 0 | CV31: 03152 | CW31: 195 | CX31: 0
A32: Autre usine réceptrice des bois de trituration #2
A33: Proportion des bois assignés à ce calcul (%) | CV33: 02664 | CW33: 190 | CX33: 220
A34: Distance « Aller simple » (km) | CV34: 02665 | CW34: 191 | CX34: 220
A35: Sous-total pour une autre destination #2 - taux brut ($/ha) | G35: =IFERROR(IF(ISBLANK($I$10)=FALSE,IF(ISBLANK($G$32)=TRUE,0,IF(SUM($G$22,$G$25,$G$29,$G$33)>1,0,IF(AND(EXACT(UPPER($G$15),UPPER(Menus!$A$2)),EXACT(UPPER($G$16),UPPER(Menus!$A$2)),EXACT(UPPER($G$17),UPPER(Menus!$A$2))),IF(('Majorations applicables'!$B$37*$G$34-'Majorations applicables'!$B$38)<0,0,IF(('Majorations applicables'!$B$37*$G$34-'Majorations applicables'!$B$38)<Transport_Plafond_HA,('Majorations applicables'!$B$37*$G$34-'Majorations applicables'!$B$38)*$G$33,Transport_Plafond_HA*$G$33)),0))),0),0) -> 0 | H35: =IFERROR(IF(ISBLANK($I$10)=FALSE,IF(ISBLANK($H$32)=TRUE,0,IF(SUM($H$22,$H$25,$H$29,$H$33)>1,0,IF(OR($G$4=Menus!$A$663,$G$4=Menus!$A$664),IF(AND(EXACT(UPPER($H$15),UPPER(Menus!$A$2)),EXACT(UPPER($H$16),UPPER(Menus!$A$2)),EXACT(UPPER($H$17),UPPER(Menus!$A$2))),IF(('Majorations applicables'!$B$37*$H$34-'Majorations applicables'!$B$38)<0,0,IF(('Majorations applicables'!$B$37*$H$34-'Majorations applicables'!$B$38)<Transport_Plafond_HA,('Majorations applicables'!$B$37*$H$34-'Majorations applicables'!$B$38)*$H$33,Transport_Plafond_HA*$H$33)),0),0))),0),0) -> 0 | I35: =IFERROR(IF(ISBLANK($I$10)=FALSE,IF(ISBLANK($I$33)=TRUE,0,IF(SUM($I$22,$I$25,$I$29,$I$33)>1,0,IF($G$4=Menus!$A$664,IF(AND(EXACT(UPPER($I$15),UPPER(Menus!$A$2)),EXACT(UPPER($I$16),UPPER(Menus!$A$2)),EXACT(UPPER($I$17),UPPER(Menus!$A$2))),IF(('Majorations applicables'!$B$37*$I$34-'Majorations applicables'!$B$38)<0,0,IF(('Majorations applicables'!$B$37*$I$34-'Majorations applicables'!$B$38)<Transport_Plafond_HA,('Majorations applicables'!$B$37*$I$34-'Majorations applicables'!$B$38)*$I$33,Transport_Plafond_HA*$I$33)),0),0))),0),0) -> 0 | CV35: 03152 | CW35: 195 | CX35: 0
A36: Taux global pour la mesure d'accès au marché ($/ha) - taux à inscrire à l'état d'avancement et au RATF L'aide globale $/ha est limitée à un plafond variable en fonction de la zone de tarification, de l'usine réceptrice et, lorsqu'applicable, de la distance « Aller simple » utilisée dans le cadre du calcul de l'aide avec la formule. | G36: =IFERROR(IF(OR($G$18>1,SUM($G$22,$G$25,$G$29,$G$33)>1),0,IF(AND(EXACT(UPPER($G$15),UPPER(Menus!$A$2)),EXACT(UPPER($G$16),UPPER(Menus!$A$2)),EXACT(UPPER($G$17),UPPER(Menus!$A$2))),ROUND(SUM($G$23,$G$26,$G$31,$G$35)*$G$18,2),0)),0) -> 0 | H36: =IFERROR(IF(OR($H$18>1,SUM($H$22,$H$25,$H$29,$H$33)>1),0,IF(OR(EXACT(UPPER($G$4),UPPER(Menus!$A$663)),EXACT(UPPER($G$4),UPPER(Menus!$A$664))),IF(AND(EXACT(UPPER($H$15),UPPER(Menus!$A$2)),EXACT(UPPER($H$16),UPPER(Menus!$A$2)),EXACT(UPPER($H$17),UPPER(Menus!$A$2))),ROUND(SUM($H$23,$H$26,$H$31,$H$35)*$H$18,2),0),0)),0) -> 0 | I36: =IFERROR(IF(OR($I$18>1,SUM($I$22,$I$25,$I$29,$I$33)>1),0,IF(EXACT(UPPER($G$4),UPPER(Menus!$A$664)),IF(AND(EXACT(UPPER($I$15),UPPER(Menus!$A$2)),EXACT(UPPER($I$16),UPPER(Menus!$A$2)),EXACT(UPPER($I$17),UPPER(Menus!$A$2))),ROUND(SUM($I$23,$I$26,$I$31,$I$35)*$I$18,2),0),0)),0) -> 0 | CV36: 03153 | CW36: 240 | CX36: 0
A37: Transport et mesurage optimisés des bois feuillus en longueur | CV37: 03351 | CW37: 241 | CX37: 60
A38: Transport des bois feuillus en longueur | CV38: 03451 | CW38: 242 | CX38: 140
A39: Proportion des bois feuillus transportés en longueur (%) | CV39: 03453 | CW39: 243 | CX39: 140
A40: Sous-total pour l'aide au transport en longueur ($/ha) - taux à inscrire à l'état d'avancement et au RATF | G40: =IFERROR(IF(AND(EXACT(UPPER($G$15),UPPER(Menus!$A$2)),EXACT(UPPER($G$16),UPPER(Menus!$A$2)),EXACT(UPPER($G$17),UPPER(Menus!$A$2)),EXACT(UPPER($G$38),UPPER(Menus!$A$2)),$G$39>0,$G$39<=1),ROUND('Majorations applicables'!$B$46*$G$39,2),0),0) -> 0 | H40: =IFERROR(IF(OR(EXACT(UPPER($G$4),UPPER(Menus!$A$663)),EXACT(UPPER($G$4),UPPER(Menus!$A$664))),IF(AND(EXACT(UPPER($H$15),UPPER(Menus!$A$2)),EXACT(UPPER($H$16),UPPER(Menus!$A$2)),EXACT(UPPER($H$17),UPPER(Menus!$A$2)),EXACT(UPPER($H$38),UPPER(Menus!$A$2)),$H$39>0,$H$39<=1),ROUND('Majorations applicables'!$B$46*$H$39,2),0),0),0) -> 0 | I40: =IFERROR(IF(EXACT(UPPER($G$4),UPPER(Menus!$A$664)),IF(AND(EXACT(UPPER($I$15),UPPER(Menus!$A$2)),EXACT(UPPER($I$16),UPPER(Menus!$A$2)),EXACT(UPPER($I$17),UPPER(Menus!$A$2)),EXACT(UPPER($I$38),UPPER(Menus!$A$2)),$I$39>0,$I$39<=1),ROUND('Majorations applicables'!$B$46*$I$39,2),0),0),0) -> 0 | CV40: 04351 | CW40: 247 | CX40: 280
A41: Mesurage optimisé des bois feuillus | D41: =IF(EXACT(UPPER($G$38),UPPER(Menus!$A$2)),"Question","Sans_objet") -> Sans_objet | E41: =IF(EXACT(UPPER($H$38),UPPER(Menus!$A$2)),"Question","Sans_objet") -> Sans_objet | F41: =IF(EXACT(UPPER($I$38),UPPER(Menus!$A$2)),"Question","Sans_objet") -> Sans_objet | CV41: 04352 | CW41: 250 | CX41: 260
A42: Proportion des bois feuillus mesurés (%) | CV42: 05151 | CW42: 251 | CX42: 280
A43: Sous-total pour l'aide au transport en longueur et au mesurage optimisé ($/ha) - taux à inscrire à l'état d'avancement et au RATF | G43: =IFERROR(IF($G$42<=$G$39,IF(AND(EXACT(UPPER($G$15),UPPER(Menus!$A$2)),EXACT(UPPER($G$16),UPPER(Menus!$A$2)),EXACT(UPPER($G$17),UPPER(Menus!$A$2)),EXACT(UPPER($G$38),UPPER(Menus!$A$2)),EXACT(UPPER($G$41),UPPER(Menus!$A$2)),$G$39>0,$G$39<=1),ROUND('Majorations applicables'!$B$47*$G$42,2),0),0),0) -> 0 | H43: =IFERROR(IF(OR(EXACT(UPPER($G$4),UPPER(Menus!$A$663)),EXACT(UPPER($G$4),UPPER(Menus!$A$664))),IF($H$42<=$H$39,IF(AND(EXACT(UPPER($H$15),UPPER(Menus!$A$2)),EXACT(UPPER($H$16),UPPER(Menus!$A$2)),EXACT(UPPER($H$17),UPPER(Menus!$A$2)),EXACT(UPPER($H$38),UPPER(Menus!$A$2)),EXACT(UPPER($H$41),UPPER(Menus!$A$2)),$H$39>0,$H$39<=1),ROUND('Majorations applicables'!$B$47*$H$42,2),0),0),0),0) -> 0 | I43: =IFERROR(IF(EXACT(UPPER($G$4),UPPER(Menus!$A$664)),IF($I$42<=$I$39,IF(AND(EXACT(UPPER($I$15),UPPER(Menus!$A$2)),EXACT(UPPER($I$16),UPPER(Menus!$A$2)),EXACT(UPPER($I$17),UPPER(Menus!$A$2)),EXACT(UPPER($I$38),UPPER(Menus!$A$2)),EXACT(UPPER($I$41),UPPER(Menus!$A$2)),$I$39>0,$I$39<=1),ROUND('Majorations applicables'!$B$47*$I$42,2),0),0),0),0) -> 0 | CV43: 06252 | CW43: 255 | CX43: 120
A44: Taux global pour le transport et le mesurage optimisés | G44: =IFERROR(ROUND(SUM($G$40,$G$43),2),0) -> 0 | H44: =IFERROR(ROUND(SUM($H$40,$H$43),2),0) -> 0 | I44: =IFERROR(ROUND(SUM($I$40,$I$43),2),0) -> 0 | CV44: 06451 | CW44: 256 | CX44: 200
A45: Résumé de l'aide | CV45: 06452 | CW45: 257 | CX45: 280
A46: Grand total pour la mesure d'accès au marché ($) | G46: =IFERROR(ROUND($G$19*$G$36,2),0) -> 0 | H46: =IFERROR(ROUND($H$19*$H$36,2),0) -> 0 | I46: =IFERROR(ROUND($I$19*$I$36,2),0) -> 0 | CV46: 07151 | CW46: 258 | CX46: 280
A47: Grand total pour le transport et le mesurage optimisés ($) | G47: =IFERROR(ROUND($G$19*$G$44,2),0) -> 0 | H47: =IFERROR(ROUND($H$19*$H$44,2),0) -> 0 | I47: =IFERROR(ROUND($I$19*$I$44,2),0) -> 0 | CV47: 07152 | CW47: 259 | CX47: 280
A48: Grand total admissible ($) | G48: =IFERROR(ROUND(SUM($G$46:$G$47),2),0) -> 0 | H48: =IFERROR(ROUND(SUM($H$46:$H$47),2),0) -> 0 | I48: =IFERROR(ROUND(SUM($I$46:$I$47),2),0) -> 0 | CV48: 07251 | CW48: 260 | CX48: 280
CV49: 07351 | CW49: 261 | CX49: 280
A50: Section réservée à l'usage de la Planification | CV50: 07352 | CW50: 262 | CX50: 280
A51: Remarques | CV51: 07451 | CW51: 263 | CX51: 280
CV52: 08251 | CW52: 266 | CX52: 200
A53: J'atteste que les renseignements fournis dans ce document afin de calculer l'aide supplémentaire sont complets et conformes à la vérité, au meilleur de mes connaissances. | CV53: 08665 | CW53: 276 | CX53: 280
G54: =TODAY() -> 2024-07-19 | CV54: 08666 | CW54: 277 | CX54: 280
CV55: 08751 | CW55: 278 | CX55: 280
CV56: 08762 | CW56: 279 | CX56: 280
A57: Nom et prénom de l'ingénieur forestier | CV57: 08763 | CW57: 280 | CX57: 280
CV58: 08764 | CW58: 281 | CX58: 280
CV59: 09351 | CW59: 282 | CX59: 280
A60: Signature de l'ingénieur forestier | G60: Date (AAAA-MM-JJ) | CV60: 09352 | CW60: 283 | CX60: 280
A61: Section réservée à l'usage du BGAD | CV61: 09451 | CW61: 284 | CX61: 280
A62: Remarques | CV62: 09452 | CW62: 285 | CX62: 280
CV63: 09551 | CW63: 286 | CX63: 280
A64: J'atteste que les renseignements fournis dans ce document afin de calculer l'aide supplémentaire sont complets et conformes à la vérité, au meilleur de mes connaissances. | CV64: 09751 | CW64: 287 | CX64: 280
G65: =TODAY() -> 2024-07-19 | CV65: 11161 | CW65: 288 | CX65: 280
CV66: 11262 | CW66: 289 | CX66: 280
CV67: 11263 | CW67: 290 | CX67: 280
A68: Nom et prénom de l'ingénieur forestier | CW68: 291 | CX68: 280
CW69: 292 | CX69: 280
CW70: 350 | CX70: 0
A71: Signature de l'ingénieur forestier | G71: Date (AAAA-MM-JJ) | CW71: 351 | CX71: 0
A72: Section réservée à l'usage du Ministère | CW72: 352 | CX72: 40
A73: Remarques | CW73: 353 | CX73: 40
CW74: 354 | CX74: 120
A75: J'atteste que les renseignements fournis dans ce document afin de calculer l'aide supplémentaire sont complets et conformes à la vérité, au meilleur de mes connaissances. | CW75: 355 | CX75: 180
G76: =TODAY() -> 2024-07-19 | CW76: 356 | CX76: 240
CW77: 357 | CX77: 240
CW78: 450 | CX78: 60
A79: Nom et prénom de l'ingénieur forestier | CW79: 451 | CX79: 0
CW80: 452 | CX80: 0
CW81: 453 | CX81: 0
A82: Signature de l'ingénieur forestier | G82: Date (AAAA-MM-JJ) | CW82: 454 | CX82: 0
CW83: 455 | CX83: 0
CW84: 456 | CX84: 0
CW85: 457 | CX85: 0
CW86: 458 | CX86: 60
CW87: 459 | CX87: 60
CW88: 460 | CX88: 200
CW89: 461 | CX89: 240
CW90: 551 | CX90: 0
CW91: 650 | CX91: 0
CW92: 651 | CX92: 40
CW93: 652 | CX93: 200
CW94: 653 | CX94: 140
CW95: 654 | CX95: 200
CW96: 655 | CX96: 40
CW97: 656 | CX97: 140
CW98: 657 | CX98: 140
CW99: 658 | CX99: 220
CW100: 659 | CX100: 280
CW101: 660 | CX101: 160
CW102: 661 | CX102: 40
CW103: 662 | CX103: 0
CW104: 750 | CX104: 0
CW105: 751 | CX105: 40
CW106: 752 | CX106: 220
CW107: 753 | CX107: 280
CW108: 754 | CX108: 80
CW109: 755 | CX109: 60
CW110: 756 | CX110: 260
CW111: 757 | CX111: 260
CW112: 758 | CX112: 280
CW113: 850 | CX113: 0
CW114: 851 | CX114: 0
CW115: 852 | CX115: 0
CW116: 853 | CX116: 0
CW117: 854 | CX117: 0
CW118: 855 | CX118: 0
CW119: 856 | CX119: 60
CW120: 857 | CX120: 80
CW121: 858 | CX121: 100
CW122: 859 | CX122: 180
CW123: 860 | CX123: 260
CW124: 861 | CX124: 240
CW125: 862 | CX125: 280
CW126: 863 | CX126: 280
CW127: 864 | CX127: 280
CW128: 865 | CX128: 280
CW129: 866 | CX129: 280
CW130: 867 | CX130: 280
CW131: 868 | CX131: 280
CW132: 869 | CX132: 280
CW133: 870 | CX133: 280
CW134: 871 | CX134: 280
CW135: 872 | CX135: 280
CW136: 873 | CX136: 280
CW137: 874 | CX137: 280
CW138: 875 | CX138: 280
CW139: 876 | CX139: 280
CW140: 877 | CX140: 280
CW141: 878 | CX141: 280
CW142: 879 | CX142: 280
CW143: 880 | CX143: 280
CW144: 881 | CX144: 280
CW145: 882 | CX145: 280
CW146: 883 | CX146: 280
CW147: 884 | CX147: 280
CW148: 885 | CX148: 280
CW149: 886 | CX149: 280
CW150: 887 | CX150: 280
CW151: 888 | CX151: 280
CW152: 889 | CX152: 240
CW153: 890 | CX153: 280
CW154: 891 | CX154: 280
CW155: 892 | CX155: 280
CW156: 950 | CX156: 280
CW157: 951 | CX157: 280
CW158: 952 | CX158: 280
CW159: 953 | CX159: 280
CW160: 954 | CX160: 280
CW161: 955 | CX161: 280
CW162: 956 | CX162: 280
CW163: 957 | CX163: 280
CW164: 960 | CX164: 280
CW165: 961 | CX165: 280
CW166: 962 | CX166: 280
CW167: 963 | CX167: 280
CW168: 964 | CX168: 280
CW169: 965 | CX169: 280
CW170: 966 | CX170: 280
CW171: 967 | CX171: 280
CW172: 970 | CX172: 280
CW173: 980 | CX173: 280
CW174: 981 | CX174: 280
CW175: 982 | CX175: 280
CW176: 983 | CX176: 280
CW177: 984 | CX177: 280
CW178: 985 | CX178: 280
CW179: 986 | CX179: 280
CW180: 987 | CX180: 280
CW181: 990 | CX181: 280
CW182: 995 | CX182: 0

Sheet Versions du fichier - Volet I (hidden)
A1: Programme d’investissement en aménagement forestier (PIAF) - Volet I Forêt publique Suivi des versions du fichier de l’annexe au rapport et au calcul des taux d'investissement pour les coupes partielles pour l'exercice 2024-2025 | T1: Version 2 : 2024-07-19 | AG1: =TODAY() -> 2024-07-19
A3: Version 1 - Consultation | B3: Nom du fichier : | C3: Calcul_aide_PIAF_Volet_I_CP_2024-2025_2023-05-15
A4: =A3 -> Version 1 - Consultation | B4: Date de mise en ligne : | C4: 2023-05-15 ou dans les jours suivants.
A5: =A4 -> Version 1 - Consultation | B5: Remarques : | C5: • Version initiale proposée pour la période de consultation
A7: Version 1 | B7: Nom du fichier : | C7: Calcul_aide_PIAF_Volet_I_CP_2024-2025_2024-06-12
A8: =A7 -> Version 1 | B8: Date de mise en ligne : | C8: 2024-06-25 ou dans les jours suivants.
A9: =A8 -> Version 1 | B9: Remarques : | C9: • Version initiale pour la publication finale
A11: Version 2 | B11: Nom du fichier : | C11: Calcul_aide_PIAF_Volet_I_CP_2024-2025_2024-07-19
A12: =A11 -> Version 2 | B12: Date de mise en ligne : | C12: 2024-07-19 ou dans les jours suivants.
A13: =A12 -> Version 2 | B13: Remarques : | C13: • Correction des totaux et code de zone à effacer

Sheet Versions du fichier - Volet II (hidden)
A1: Programme d’investissement en aménagement forestier (PIAF) - Volet II Forêt publique Suivi des versions du fichier de l’annexe au rapport et au calcul de l'aide pour le transport et l'optimisation des bois feuillus issus de coupes partielles et de l'aide pour le transport des bois feuillus issus de coupes de régénération pour l'exercice 2024-2025 | T1: Version 1 - Consultation : 2024-05-16 | AG1: =TODAY() -> 2024-07-19
A3: Version 1 - Volet II - Consultation | B3: Nom du fichier : | C3: Calcul_aide_PIAF_Volet_I_CP_2024-2025_2024-05-15
A4: =A3 -> Version 1 - Volet II - Consultation | B4: Date de mise en ligne : | C4: 2024-05-15 ou dans les jours suivants.
A5: =A4 -> Version 1 - Volet II - Consultation | B5: Remarques : | C5: • Version initiale proposée pour la période de consultation
A6: =A5 -> Version 1 - Volet II - Consultation

Sheet Calculs grille (hidden)
A1: Famille | B1: Traitement | C1: Type | D1: Équipement / Modalité | E1: Taux | F1: Paiement | G1: Information | H1: 2018-2019 | I1: 2018-2019 | J1: 2019-2020 | K1: 2019-2020 | L1: 2020-2021 | M1: 2020-2021 | N1: 20201-2022 | O1: 2021-2022 | P1: 2022-2023 | Q1: 2022-2023 | R1: Source 2022-2023
H2: Non arrondis | J2: Non arrondis | L2: Non arrondis | N2: Non arrondis | P2: Non arrondis
A3: Travaux techniques | B3: Activités liées au martelage pour les traitements commerciaux | C3: Délimitation de secteurs | E3: Taux fixe | F3: Kilomètre délimité | H3: 75.85640034 | I3: 76 | J3: 84.09786157 | K3: 84 | L3: 86.29941398 | M3: 86 | N3: 90.64524831 | O3: =ROUND(N3,0) -> 91 | P3: 144.2127249 | Q3: =ROUND(P3,0) -> 144 | R3: [Annexe_TSNC_2024-2025_2024-05-06.xlsm]Calculs grille'!K199
A4: Travaux techniques | B4: Activités liées au martelage pour les traitements commerciaux | C4: Martelage feuillus | E4: Taux fixe | F4: Hectare | G4: Ce taux n'est pas utilisé, remplacé par l'équation à taux variable | H4: 143.0570511 | I4: 143 | J4: 158.5995647 | K4: 159 | L4: 162.7514569 | M4: 163 | N4: 170.9472353 | O4: =ROUND(N4,0) -> 171 | P4: 197.5358336 | Q4: =ROUND(P4,0) -> 198 | R4: [Annexe_TSNC_2024-2025_2024-05-06.xlsm]Calculs grille'!K200
A5: Travaux techniques | B5: Activités liées au martelage pour les traitements commerciaux | C5: Martelage résineux | E5: Taux fixe | F5: Hectare | G5: Ce taux n'est pas utilisé, remplacé par l'équation à taux variable | H5: 162.876243 | I5: 163 | J5: 180.572024 | K5: 181 | L5: 185.2991213 | M5: 185 | N5: 194.6303467 | O5: =ROUND(N5,0) -> 195 | P5: 224.9025421 | Q5: =ROUND(P5,0) -> 225 | R5: [Annexe_TSNC_2024-2025_2024-05-06.xlsm]Calculs grille'!K201
A6: Travaux techniques | B6: Activités liées au martelage pour les traitements commerciaux | C6: Martelage à taux variable | E6: Taux variable | F6: Hectare | G6: (Constante 1 - (Variable 1 * PF) + (Variable 2 * NbMSCROP)) * TC | H6: 144.2301161 | I6: 144.23 | J6: 159.9000781 | K6: 159.9 | L6: 164.0860157 | M6: 164.09 | N6: 172.3489992 | O6: =ROUND(N6,2) -> 172.35 | P6: 167.7943903 | Q6: =ROUND(P6,2) -> 167.79 | R6: [Annexe_TSNC_2024-2025_2024-05-06.xlsm]Calculs grille'!K202
A7: Travaux techniques | B7: Activités liées au martelage pour les traitements commerciaux | C7: Martelage à taux variable | E7: Taux variable | F7: Hectare | G7: (Constante 1 - (Variable 1 * PF) + (Variable 2 * NbMSCROP)) * TC | H7: 35.68247104 | I7: 35.68 | J7: 39.55921315 | K7: 39.56 | L7: 40.59481238 | M7: 40.59 | N7: 42.6390711 | O7: =ROUND(N7,2) -> 42.64 | P7: 41.51226274 | Q7: =ROUND(P7,2) -> 41.51 | R7: [Annexe_TSNC_2024-2025_2024-05-06.xlsm]Calculs grille'!K203
A8: Travaux techniques | B8: Activités liées au martelage pour les traitements commerciaux | C8: Martelage à taux variable | E8: Taux variable | F8: Hectare | G8: (Constante 1 - (Variable 1 * PF) + (Variable 2 * NbMSCROP)) * TC | H8: 4.092196416 | I8: 4.09 | J8: 4.536795394 | K8: 4.54 | L8: 4.655561706 | M8: 4.66 | N8: 4.89000478 | O8: =ROUND(N8,2) -> 4.89 | P8: 4.760778272 | Q8: =ROUND(P8,2) -> 4.76 | R8: [Annexe_TSNC_2024-2025_2024-05-06.xlsm]Calculs grille'!K204
A9: Travaux techniques | B9: Activités liées au martelage pour les traitements commerciaux | C9: Martelage en éclaircie commerciale en peuplement résineux (ou mixte à tendance résineuse) | D9: Martelage négatif | E9: Taux fixe | F9: Hectare | H9: 183.4482309 | I9: 183 | J9: 203.379067 | K9: 203 | L9: 208.7032176 | M9: 209 | N9: 219.2130179 | O9: =ROUND(N9,0) -> 219 | P9: 253.3087251 | Q9: =ROUND(P9,0) -> 253 | R9: [Annexe_TSNC_2024-2025_2024-05-06.xlsm]Calculs grille'!K205
A10: Travaux techniques | B10: Activités liées au martelage pour les traitements commerciaux | C10: Martelage en éclaircie commerciale en peuplement résineux (ou mixte à tendance résineuse) | D10: Martelage positif | E10: Taux fixe | F10: Hectare | H10: 95.61940559 | I10: 96 | J10: 106.0080296 | K10: 106 | L10: 108.7831565 | M10: 109 | N10: 114.2612189 | O10: =ROUND(N10,0) -> 114 | P10: 132.0330515 | Q10: =ROUND(P10,0) -> 132 | R10: [Annexe_TSNC_2024-2025_2024-05-06.xlsm]Calculs grille'!K206
A11: Travaux techniques | B11: Activités liées au martelage pour les traitements commerciaux | C11: Inventaire après martelage | E11: Taux fixe | F11: Hectare | H11: 23.22943928 | I11: 23 | J11: 25.75321476 | K11: 26 | L11: 26.42739424 | M11: 26 | N11: 27.75821529 | O11: =ROUND(N11,0) -> 28 | P11: 32.07564128 | Q11: =ROUND(P11,0) -> 32 | R11: [Annexe_TSNC_2024-2025_2024-05-06.xlsm]Calculs grille'!K207
A12: Travaux technique | B12: Valeur des activités liées au martelage pour les traitements commerciaux | C12: Martelage | E12: Taux variable | F12: Taux moyen | G12: Constante | H12: 8.916 | I12: 8.916 | J12: 8.916 | K12: 8.916 | L12: 8.916 | M12: 8.916 | N12: 8.916 | O12: 8.916 | P12: 8.916 | Q12: 8.916 | R12: Pas de référence parce que pas utilisé

Sheet Menus (hidden)
A1: Question
A2: Oui
A3: Non
A5: UA 2023
A6: 01171
A7: 01272
A8: 02371
A9: 02471
A10: 02571
A11: 02651
A12: 02661
A13: 02662
A14: 02663
A15: 02664
A16: 02665
A17: 02666
A18: 02751
A19: 03771
A20: 03772
A21: 04151
A22: 04251
A23: 04351
A24: 04352
A25: 05151
A26: 06151
A27: 06271
A28: 06452
A29: 06471
A30: 07151
A31: 07152
A32: 07251
A33: 07351
A34: 07352
A35: 07451
A36: 08151
A37: 08152
A38: 08251
A39: 08351
A40: 08451
A41: 08462
A42: 08551
A43: 08562
A44: 08651
A45: 08652
A46: 08663
A47: 08664
A48: 08665
A49: 08666
A50: 08751
A51: 08762
A52: 08763
A53: 08764
A54: 09351
A55: 09352
A56: 09471
A57: 09551
A58: 09751
A59: 11161
A60: 11262
A61: 11263
A62: 12171
A63: 096001
A65: Codes_Dica : OK 2022-02-07 n36
A66: CJB-EMR
A67: CJP
A68: CJP-AM
A69: CJPG
A70: CJPG-AM
A71: CJT-EMR
A72: CPI_CP-ENS_B
A73: CPI_CP-ENS_U
A74: CPI_CP-SEC_B
A75: CPI_CP-SEC_U
A76: CPI_RL-1INR_ENS
A77: CPI_RL-1INR_MUL
A78: CPI_RL-1INR_SEC
A79: CPI_RL-2I_ENS
A80: CPI_RL-2I_MUL
A81: CPI_RL-2I_SEC
A82: CPI_RL-3I_ENS
A83: CPI_RL-3I_MUL
A84: CPI_RL-3I_SEC
A85: CPI_RL-MUL
A86: CPI_RL-PR
A87: CPR_BA
A88: CPR_T
A89: CPR_U-ENS
A90: CPR_U-PR
A91: CPR_U-SEC
A92: EC_MIXTE-BAS
A93: EC_MIXTE-HAUT
A94: EC_MIXTE-NEUTRE
A95: EC_SEL-BAS
A96: EC_SEL-HAUT
A97: EC_SEL-NEUTRE
A98: EJ_P-CLAS
A99: EJ_P-INI
A100: EJ_PG-CLAS
A101: EJ_PG-INI
A102: Inscrire une valeur
A104: Codes_RATF : OK 2022-02-07 n114
A105: 1INRENSMFM
A106: 1INRENSMSF
A107: 1INRENSOFM
A108: 1INRENSOSF
A109: 1INRMULMFM
A110: 1INRMULMSF
A111: 1INRMULOFM
A112: 1INRMULOSF
A113: 1INRSECMFM
A114: 1INRSECMSF
A115: 1INRSECOFM
A116: 1INRSECOSF
A117: 2IMULMFM
A118: 2IMULMSF
A119: 2IMULOFM
A120: 2IMULOSF
A121: 3IMULMFM
A122: 3IMULMSF
A123: 3IMULOFM
A124: 3IMULOSF
A125: CJBM
A126: CJBMO
A127: CJPAMM
A128: CJPAMO
A129: CJPGAMM
A130: CJPGAMO
A131: CJPGM
A132: CJPGO
A133: CJPM
A134: CJPO
A135: CJTM
A136: CJTMO
A137: CPIENSBMSF
A138: CPIENSBOSF
A139: CPIL2ENOFM
A140: CPIL2ENOSF
A141: CPIL2SEOFM
A142: CPIL2SEOSF
A143: CPIL3ENOFM
A144: CPIL3ENOSF
A145: CPIL3SEOFM
A146: CPIL3SEOSF
A147: CPILMULOFM
A148: CPILMULOSF
A149: CPIRL2ENFM
A150: CPIRL2ENSF
A151: CPIRL2SEFM
A152: CPIRL2SESF
A153: CPIRL3ENFM
A154: CPIRL3ENSF
A155: CPIRL3SEFM
A156: CPIRL3SESF
A157: CPIRLMULFM
A158: CPIRLMULSF
A159: CPIRLPRFM
A160: CPIRLPROFM
A161: CPIRLPROSF
A162: CPIRLPRSF
A163: CPISECBMSF
A164: CPISECBOSF
A165: CPIUENSFM
A166: CPIUENSOFM
A167: CPIUENSOSF
A168: CPIUENSSF
A169: CPIUSECFM
A170: CPIUSECOFM
A171: CPIUSECOSF
A172: CPIUSECSF
A173: CPRBAMFM
A174: CPRBAMSF
A175: CPRBAOFM
A176: CPRBAOSF
A177: CPRTMFM
A178: CPRTMSF
A179: CPRTOFM
A180: CPRTOSF
A181: CPRUENSFM
A182: CPRUENSOFM
A183: CPRUENSOSF
A184: CPRUENSSF
A185: CPRUPRFM
A186: CPRUPROFM
A187: CPRUPROSF
A188: CPRUPRSF
A189: CPRUSECFM
A190: CPRUSECOFM
A191: CPRUSECOSF
A192: CPRUSECSF
A193: ECMIXBASF2
A194: ECMIXBASFM
A195: ECMIXBASSF
A196: ECMIXHASF2
A197: ECMIXHAUFM
A198: ECMIXHAUSF
A199: ECMIXNESF2
A200: ECMIXNEUFM
A201: ECMIXNEUSF
A202: ECSELBASF2
A203: ECSELBASFM
... 3356 more rows

Sheet Majorations applicables (hidden)
A1: Formule | B1: M1 | C1: M2 | D1: M3 | E1: M4 | F1: M5 | G1: M6 | I1: Total
A2: Formule 1 - EC1 | B2: HCP | C2: PE | D2: =Réduction_Programme_remboursement_chemins -> PRCCM | E2: RUB | I2: =B2&" - "&C2&" - "&D2&" - "&E2&"" -> HCP - PE - PRCCM - RUB
A3: Formule 1 - EC2 | B3: HCP | C3: PE | D3: =Réduction_Programme_remboursement_chemins -> PRCCM | E3: RUB | I3: =B3&" - "&C3&" - "&D3&" - "&E3&"" -> HCP - PE - PRCCM - RUB
A4: Formule 2 | B4: HCP | C4: PE | D4: =Réduction_Programme_remboursement_chemins -> PRCCM | E4: RUB | I4: =B4&" - "&C4&" - "&D4&" - "&E4&"" -> HCP - PE - PRCCM - RUB
A5: Formule 4 | B5: BNT | C5: HCP | D5: PE | E5: =Réduction_Programme_remboursement_chemins -> PRCCM | F5: RTR | G5: RUB | I5: =B5&" - "&C5&" - "&D5&" - "&E5&" - "&F5&" - "&G5&"" -> BNT - HCP - PE - PRCCM - RTR - RUB
A6: Formule 6 | B6: BNT | C6: HCP | D6: PE | E6: =Réduction_Programme_remboursement_chemins -> PRCCM | F6: RTR | G6: RUB | I6: =B6&" - "&C6&" - "&D6&" - "&E6&" - "&F6&" - "&G6&"" -> BNT - HCP - PE - PRCCM - RTR - RUB
A7: Formule 7 | B7: =Réduction_Programme_remboursement_chemins -> PRCCM | C7: RTR | D7: BNT | E7: PE | F7: RUB | G7: HCP-COVID | H7: DCP-COVID | I7: =B7&" - "&C7&" - "&D7&" - "&E7&" - "&F7&" - "&G7&" ou "&H7 -> PRCCM - RTR - BNT - PE - RUB - HCP-COVID ou DCP-COVID
A8: Inscrire une valeur | I8: Inscrire une valeur à la cellule I13
A10: PE
A11: Pente A | B11: =(0+1) -> 1
A12: Pente B | B12: =(0+1) -> 1
A13: Pente C | B13: =(1+0.007) -> 1.007
A14: Pente D | B14: =(1+0.026) -> 1.026
A15: Pente E et plus | B15: =(1+0.061) -> 1.061
A17: BNT | B17: Constantes et formule référencée
A18: Formule | B18: ="BNT = ("&$B$19&" x Pr"&$B$20&") - ("&$B$21&" x Pr) + "&$B$22 -> BNT = (1,8 x Pr2) - (2,7 x Pr) + 1
A19: C1 | B19: 1.8
A20: C2 | B20: 2
A21: C3 | B21: 2.7
A22: C4 | B22: 1
A24: PRCCM | B24: Constantes et formule référencée
A25: Formule | B25: ="PRCCM = ("&$B$26&" / P) - ("&$B$27&")" -> PRCCM = (126,252 / P) - (0,779)
A26: C1 | B26: 126.252
A27: C2 | B27: 0.779
A29: Pr 2020-2021
A30: Pr (%) = LP x 2 / (LP x 2 + SE + ZNT)
A32: PCT Investissement
A33: 0.9
A35: Volet II (Transport CP - Formule)
A36: Formule | B36: =$B$37&" * Distance aller - "&$B$38 -> 2,29 * Distance aller - 330
A37: C1 | B37: 2.29
A38: C2 | B38: 330
A40: Volet II (Transport CT - Formule)
A41: Formule | B41: =$B$42&" * Distance aller - "&$B$43 -> 0,038 * Distance aller - 5,5
A42: C1 | B42: 0.038
A43: C2 | B43: 5.5
A45: Volet II (Transport en longueur et mesurage optimisé)
A46: Bois transporté en longueur | B46: 66
A47: Mesurage optimisé | B47: 95
A49: Plancher d'investissement
A50: Travaux techniques | B50: 45.14
A51: Rubannage | B51: ='Calcul des taux (formules)'!$C$980005 -> 65.61
A53: Traitement | B53: Équation_texte | C53: Équation_référencée
A54: Martelage | B54: Taux ($/ha) = (174,22 - (43,10 * PF) + (4,94 * NbMSCROP)) * TC | C54: ="Taux ($/ha) = ("&TEXT('Calculs grille'!$Q$6,"0,00")&" - ("&TEXT('Calculs grille'!$Q$7,"0,00")&" * PF) + ("&TEXT('Calculs grille'!$Q$8,"0,00")&" * NbMSCROP)) * TC" -> Taux ($/ha) = (167,79 - (41,51 * PF) + (4,76 * NbMSCROP)) * TC
A56: Majorations applicables
A57: =H57 -> HPVTM - DTPVTM - CEAF4 - ISO 4 | B57: Martelage | C57: Martelage | D57: HPVTM | E57: DTPVTM | F57: CEAF4 | G57: ISO 4 | H57: =D57&" - "&E57&" - "&F57&" - "&G57 -> HPVTM - DTPVTM - CEAF4 - ISO 4
A58: HPVTM - DTPVTM - CEAF4 - ISO 4 | B58: Martelage | C58: Martelage positif - EC (résineux ou mixte résineux) | D58: HPVTM | E58: DTPVTM | F58: CEAF4 | G58: ISO 4 | H58: =D58&" - "&E58&" - "&F58&" - "&G58 -> HPVTM - DTPVTM - CEAF4 - ISO 4
A59: HPVTM - DTPVTM - CEAF4 - ISO 4 | B59: Martelage | C59: Martelage négatif - EC (résineux ou mixte résineux) | D59: HPVTM | E59: DTPVTM | F59: CEAF4 | G59: ISO 4 | H59: =D59&" - "&E59&" - "&F59&" - "&G59 -> HPVTM - DTPVTM - CEAF4 - ISO 4
A61: Majoration contexte sanitaire et ajustement pour le carburant | B61: Valeur nette | C61: Valeur brute
A62: Majoration pour équipement sanitaire | B62: 0.0045 | C62: 0.08
A63: Carburant TSC (opération mécanisées) | B63: =ROUND($C$63,4) -> 0.1894 | C63: 0.1894
A64: Carburant TSC (opérations manuelles) | B64: =ROUND($C$64,4) -> 0.1174 | C64: 0.1174

Sheet RXF (hidden)
A1: Traitement | B1: Onglet | C1: Taux total | D1: Taux sans vérification | E1: Grand total | F1: Vérification | G1: Grand total sans vérification
A2: =Menus!A3543 -> Martelage | B2: Martelage | C2: =Martelage!G50 -> 0 | D2: =Martelage!G50-Martelage!G47 -> 0 | E2: =Martelage!G54 -> 0 | F2: =Martelage!G47*Martelage!G51 -> 0 | G2: =E2-F2 -> 0
A3: =Menus!A3544 -> Martelage négatif - EC (résineux ou mixte résineux) | B3: Martelage | C3: =Martelage!$G$63 -> 0 | D3: =Martelage!$G$63-Martelage!$G$60 -> 0 | E3: =Martelage!$G$67 -> 0 | F3: =Martelage!$G$64*Martelage!$G$60 -> 0 | G3: =E3-F3 -> 0
A4: =Menus!A3545 -> Martelage positif - EC (résineux ou mixte résineux) | B4: Martelage | C4: =Martelage!$G$63 -> 0 | D4: =Martelage!$G$63-Martelage!$G$60 -> 0 | E4: =Martelage!$G$67 -> 0 | F4: =Martelage!$G$64*Martelage!$G$60 -> 0 | G4: =E4-F4 -> 0

Sheet Log (hidden)
A1: Utilisateur | B1: Date | C1: OS | D1: Excel
A2: St-Pierre, Stéphane (BMMB) | B2: 2022-05-04T10:58:00 | C2: Windows (64-bit) NT 10.00 | D2: 16.0
A3: St-Pierre, Stéphane (BMMB) | B3: 2022-07-05T10:29:51 | C3: Windows (64-bit) NT 10.00 | D3: 16.0
A4: Pouliot, Simon (DPF) | B4: 2022-07-12T07:34:56 | C4: Windows (64-bit) NT 10.00 | D4: 16.0
A5: St-Pierre, Stéphane (BMMB) | B5: 2022-07-12T07:43:53 | C5: Windows (64-bit) NT 10.00 | D5: 16.0
A6: St-Pierre, Stéphane (BMMB) | B6: 2022-10-03T15:07:31 | C6: Windows (64-bit) NT 10.00 | D6: 16.0
A7: St-Pierre, Stéphane (BMMB) | B7: 2022-10-03T15:15:12 | C7: Windows (64-bit) NT 10.00 | D7: 16.0
A8: St-Pierre, Stéphane (BMMB) | B8: 2022-10-03T15:18:01 | C8: Windows (64-bit) NT 10.00 | D8: 16.0
A9: St-Pierre, Stéphane (BMMB) | B9: 2022-10-03T15:21:59 | C9: Windows (64-bit) NT 10.00 | D9: 16.0
A10: St-Pierre, Stéphane (BMMB) | B10: 2023-03-15T13:46:30 | C10: Windows (64-bit) NT 10.00 | D10: 16.0
A11: Gagné, Jean-Benoit (BMMB) | B11: 2023-03-20T10:49:06 | C11: Windows (64-bit) NT 10.00 | D11: 16.0
A12: Gagné, Jean-Benoit (BMMB) | B12: 2023-03-22T14:09:17 | C12: Windows (64-bit) NT 10.00 | D12: 16.0
A13: Gagné, Jean-Benoit (BMMB) | B13: 2023-04-04T09:36:43 | C13: Windows (64-bit) NT 10.00 | D13: 16.0
A14: Gagné, Jean-Benoit (BMMB) | B14: 2023-04-19T08:33:27 | C14: Windows (64-bit) NT 10.00 | D14: 16.0
A15: Gagné, Jean-Benoit (BMMB) | B15: 2023-06-13T10:02:36 | C15: Windows (64-bit) NT 10.00 | D15: 16.0
A16: Gagné, Jean-Benoit (BMMB) | B16: 2023-06-13T10:53:14 | C16: Windows (64-bit) NT 10.00 | D16: 16.0
A17: Gagné, Jean-Benoit (BMMB) | B17: 2023-06-13T10:55:19 | C17: Windows (64-bit) NT 10.00 | D17: 16.0
A18: Gagné, Jean-Benoit (BMMB) | B18: 2023-06-19T09:48:54 | C18: Windows (64-bit) NT 10.00 | D18: 16.0
A19: Gagné, Jean-Benoit (BMMB) | B19: 2023-07-12T11:02:28 | C19: Windows (64-bit) NT 10.00 | D19: 16.0
A20: Gagné, Jean-Benoit (BMMB) | B20: 2023-07-12T11:20:45 | C20: Windows (64-bit) NT 10.00 | D20: 16.0
A21: Gagné, Jean-Benoit (BMMB) | B21: 2023-07-13T13:28:53 | C21: Windows (64-bit) NT 10.00 | D21: 16.0
A22: Gagné, Jean-Benoit (BMMB) | B22: 2023-12-19T14:20:18 | C22: Windows (64-bit) NT 10.00 | D22: 16.0
A23: Gagné, Jean-Benoit (BMMB) | B23: 2024-03-19T10:24:12 | C23: Windows (64-bit) NT 10.00 | D23: 16.0
A24: Gagné, Jean-Benoit (BMMB) | B24: 2024-05-22T08:43:48 | C24: Windows (64-bit) NT 10.00 | D24: 16.0
A25: Gagné, Jean-Benoit (BMMB) | B25: 2024-05-22T08:58:43 | C25: Windows (64-bit) NT 10.00 | D25: 16.0
A26: Gagné, Jean-Benoit (BMMB) | B26: 2024-05-22T13:34:56 | C26: Windows (64-bit) NT 10.00 | D26: 16.0
A27: Gagné, Jean-Benoit (BMMB) | B27: 2024-05-23T09:34:02 | C27: Windows (64-bit) NT 10.00 | D27: 16.0
A28: Gagné, Jean-Benoit (BMMB) | B28: 2024-05-23T09:38:51 | C28: Windows (64-bit) NT 10.00 | D28: 16.0
A29: Gagné, Jean-Benoit (BMMB) | B29: 2024-05-23T09:40:25 | C29: Windows (64-bit) NT 10.00 | D29: 16.0
A30: Gagné, Jean-Benoit (BMMB) | B30: 2024-05-23T09:44:59 | C30: Windows (64-bit) NT 10.00 | D30: 16.0
A31: Gagné, Jean-Benoit (BMMB) | B31: 2024-05-23T09:48:00 | C31: Windows (64-bit) NT 10.00 | D31: 16.0
A32: Gagné, Jean-Benoit (BMMB) | B32: 2024-05-23T09:49:14 | C32: Windows (64-bit) NT 10.00 | D32: 16.0
A33: Gagné, Jean-Benoit (BMMB) | B33: 2024-05-23T10:14:43 | C33: Windows (64-bit) NT 10.00 | D33: 16.0
A34: Gagné, Jean-Benoit (BMMB) | B34: 2024-06-12T13:47:41 | C34: Windows (64-bit) NT 10.00 | D34: 16.0
A35: Gagné, Jean-Benoit (BMMB) | B35: 2024-06-21T09:04:51 | C35: Windows (64-bit) NT 10.00 | D35: 16.0
A36: Gagné, Jean-Benoit (BMMB) | B36: 2024-06-25T11:08:31 | C36: Windows (64-bit) NT 10.00 | D36: 16.0
A37: Gagné, Jean-Benoit (BMMB) | B37: 2024-06-25T11:24:22 | C37: Windows (64-bit) NT 10.00 | D37: 16.0
A38: Gagné, Jean-Benoit (BMMB) | B38: 2024-06-25T11:39:31 | C38: Windows (64-bit) NT 10.00 | D38: 16.0
A39: Gagné, Jean-Benoit (BMMB) | B39: 2024-06-25T15:07:20 | C39: Windows (64-bit) NT 10.00 | D39: 16.0
A40: Gagné, Jean-Benoit (BMMB) | B40: 2024-07-19T12:57:37 | C40: Windows (64-bit) NT 10.00 | D40: 16.0
